Body Name,Body,Organisational unit,Service division,Expenditure category,Date,Transacton number,Net amount,Supplier,Narrative
Tendring DC,http://statistics.data.gov.uk/id/local-authority-district/22UN,Corporate Services,1880 - Office Accommodation Expenses,2100 - Building Repairs,07/08/2012,1049538-1,290,2100061 - A R & J Pardoe,AR & J PARDOE
Tendring DC,http://statistics.data.gov.uk/id/local-authority-district/22UN,Corporate Services,1880 - Office Accommodation Expenses,2100 - Building Repairs,07/08/2012,1049538-2,90,2100061 - A R & J Pardoe,AR & J PARDOE
Tendring DC,http://statistics.data.gov.uk/id/local-authority-district/22UN,Corporate Services,1880 - Office Accommodation Expenses,2100 - Building Repairs,14/08/2012,1049658-1,378,2100072 - Acorn Pressurisation Services Ltd,ACORN
Tendring DC,http://statistics.data.gov.uk/id/local-authority-district/22UN,Corporate Services,1880 - Office Accommodation Expenses,2100 - Building Repairs,14/08/2012,1049663-1,485,2101609 - Adcock Refrigeration & Air Conditioning Ltd,ADCOCK
Tendring DC,http://statistics.data.gov.uk/id/local-authority-district/22UN,Corporate Services,1880 - Office Accommodation Expenses,2100 - Building Repairs,14/08/2012,1049664-1,94.5,2101609 - Adcock Refrigeration & Air Conditioning Ltd,ADCOCK
Tendring DC,http://statistics.data.gov.uk/id/local-authority-district/22UN,Corporate Services,7716 - Jaywick Strategic Leadership group initiatives,3060 - Running Costs - Diesel,07/08/2012,1049656-1,58.39,2101825 - Allstar Business Solutions Ltd,DIESEL
Tendring DC,http://statistics.data.gov.uk/id/local-authority-district/22UN,Corporate Services,1950 - Transport,3062 - Running Costs - Petrol,14/08/2012,1049678-1,171.67,2101825 - Allstar Business Solutions Ltd,COURIER FUEL
Tendring DC,http://statistics.data.gov.uk/id/local-authority-district/22UN,Corporate Services,7746 - Town Centres & Jaywick Business Support,5500 - Miscellaneous Expenses,21/08/2012,1049723-1,325,2110789 - Association of Town Centre Management,BRISTOL SUMMER SCHOOL
Tendring DC,http://statistics.data.gov.uk/id/local-authority-district/22UN,Corporate Services,1880 - Office Accommodation Expenses,4080 - Materials & Consumables,21/08/2012,2099659-1,59.19,2100099 - B & Q Trade Account,B&Q
Tendring DC,http://statistics.data.gov.uk/id/local-authority-district/22UN,Corporate Services,1880 - Office Accommodation Expenses,4080 - Materials & Consumables,21/08/2012,2099660-1,162.45,2100099 - B & Q Trade Account,BQ
Tendring DC,http://statistics.data.gov.uk/id/local-authority-district/22UN,Corporate Services,7716 - Jaywick Strategic Leadership group initiatives,4710 - Telephones - Charges,21/08/2012,2099492-1,47.99,2100168 - British Telecommunications plc,May - Aug Usage
Tendring DC,http://statistics.data.gov.uk/id/local-authority-district/22UN,Corporate Services,7716 - Jaywick Strategic Leadership group initiatives,4710 - Telephones - Charges,21/08/2012,2099493-1,53.29,2100168 - British Telecommunications plc,May-Aug Usge
Tendring DC,http://statistics.data.gov.uk/id/local-authority-district/22UN,Corporate Services,7716 - Jaywick Strategic Leadership group initiatives,4710 - Telephones - Charges,21/08/2012,2099493-2,-0.01,2100168 - British Telecommunications plc,May-Aug Usge
Tendring DC,http://statistics.data.gov.uk/id/local-authority-district/22UN,Corporate Services,7716 - Jaywick Strategic Leadership group initiatives,4710 - Telephones - Charges,21/08/2012,2099494-1,58.68,2100168 - British Telecommunications plc,May - Aug usage
Tendring DC,http://statistics.data.gov.uk/id/local-authority-district/22UN,Corporate Services,8150 - Office Cleaning,4080 - Materials & Consumables,21/08/2012,2099654-1,70.4,2101624 - Bunzl,Bunzl
Tendring DC,http://statistics.data.gov.uk/id/local-authority-district/22UN,Corporate Services,8150 - Office Cleaning,4080 - Materials & Consumables,21/08/2012,2099655-1,342.46,2101624 - Bunzl,Bunzl
Tendring DC,http://statistics.data.gov.uk/id/local-authority-district/22UN,Corporate Services,8150 - Office Cleaning,4080 - Materials & Consumables,21/08/2012,2099662-1,52.63,2101624 - Bunzl,Bunzl
Tendring DC,http://statistics.data.gov.uk/id/local-authority-district/22UN,Corporate Services,1320 - Print Unit Service Unit,4302 - External Print Unit Expenses,14/08/2012,2099197-1,40,2104320 - C3 Imaging Colchester,Job 188
Tendring DC,http://statistics.data.gov.uk/id/local-authority-district/22UN,Corporate Services,1880 - Office Accommodation Expenses,2100 - Building Repairs,07/08/2012,2099083-1,375.69,2100858 - Chelmer Electrical Ltd,Chelmer Electrical
Tendring DC,http://statistics.data.gov.uk/id/local-authority-district/22UN,Corporate Services,1210 - Facilities Management Service Unit,5500 - Miscellaneous Expenses,07/08/2012,2099085-1,477,2100205 - Chelmsford Safety Supplies Ltd,Chelmsford Safety Sup
Tendring DC,http://statistics.data.gov.uk/id/local-authority-district/22UN,Corporate Services,7716 - Jaywick Strategic Leadership group initiatives,4200 - Clothing & Uniforms,21/08/2012,2099495-1,111,2100205 - Chelmsford Safety Supplies Ltd,Uniform
Tendring DC,http://statistics.data.gov.uk/id/local-authority-district/22UN,Corporate Services,1860 - Depots General,2100 - Building Repairs,14/08/2012,1049659-1,66,2100314 - Cooper & Brome (Plumbing & Heating) Ltd,COOPER & BROME
Tendring DC,http://statistics.data.gov.uk/id/local-authority-district/22UN,Corporate Services,1880 - Office Accommodation Expenses,2100 - Building Repairs,14/08/2012,1049660-1,66,2100314 - Cooper & Brome (Plumbing & Heating) Ltd,COOPER BROME
Tendring DC,http://statistics.data.gov.uk/id/local-authority-district/22UN,Corporate Services,1860 - Depots General,2100 - Building Repairs,14/08/2012,1049660-2,66,2100314 - Cooper & Brome (Plumbing & Heating) Ltd,COOPER BROME
Tendring DC,http://statistics.data.gov.uk/id/local-authority-district/22UN,Corporate Services,1880 - Office Accommodation Expenses,2308 - Energy Costs - Gas (Including LPG),21/08/2012,2099640-1,34.44,2104620 - Corona Energy Retail 4 Limited,Corona Energy
Tendring DC,http://statistics.data.gov.uk/id/local-authority-district/22UN,Corporate Services,1860 - Depots General,2308 - Energy Costs - Gas (Including LPG),21/08/2012,2099640-2,125.66,2104620 - Corona Energy Retail 4 Limited,Corona Energy
Tendring DC,http://statistics.data.gov.uk/id/local-authority-district/22UN,Corporate Services,1880 - Office Accommodation Expenses,2308 - Energy Costs - Gas (Including LPG),21/08/2012,2099640-3,57.29,2104620 - Corona Energy Retail 4 Limited,Corona Energy
Tendring DC,http://statistics.data.gov.uk/id/local-authority-district/22UN,Corporate Services,1880 - Office Accommodation Expenses,2308 - Energy Costs - Gas (Including LPG),21/08/2012,2099640-4,12.98,2104620 - Corona Energy Retail 4 Limited,Corona Energy
Tendring DC,http://statistics.data.gov.uk/id/local-authority-district/22UN,Corporate Services,1880 - Office Accommodation Expenses,2308 - Energy Costs - Gas (Including LPG),21/08/2012,2099640-5,201.81,2104620 - Corona Energy Retail 4 Limited,Corona Energy
Tendring DC,http://statistics.data.gov.uk/id/local-authority-district/22UN,Corporate Services,6160 - Princes Theatre,2308 - Energy Costs - Gas (Including LPG),21/08/2012,2099640-6,22.42,2104620 - Corona Energy Retail 4 Limited,Corona Energy
Tendring DC,http://statistics.data.gov.uk/id/local-authority-district/22UN,Corporate Services,1860 - Depots General,2308 - Energy Costs - Gas (Including LPG),21/08/2012,2099641-1,146.04,2104620 - Corona Energy Retail 4 Limited,Corona Energy
Tendring DC,http://statistics.data.gov.uk/id/local-authority-district/22UN,Corporate Services,1880 - Office Accommodation Expenses,2308 - Energy Costs - Gas (Including LPG),21/08/2012,2099641-2,40,2104620 - Corona Energy Retail 4 Limited,Corona Energy
Tendring DC,http://statistics.data.gov.uk/id/local-authority-district/22UN,Corporate Services,1880 - Office Accommodation Expenses,2308 - Energy Costs - Gas (Including LPG),21/08/2012,2099641-3,67,2104620 - Corona Energy Retail 4 Limited,Corona Energy
Tendring DC,http://statistics.data.gov.uk/id/local-authority-district/22UN,Corporate Services,1880 - Office Accommodation Expenses,2308 - Energy Costs - Gas (Including LPG),21/08/2012,2099641-4,12.84,2104620 - Corona Energy Retail 4 Limited,Corona Energy
Tendring DC,http://statistics.data.gov.uk/id/local-authority-district/22UN,Corporate Services,1880 - Office Accommodation Expenses,2308 - Energy Costs - Gas (Including LPG),21/08/2012,2099641-5,228.17,2104620 - Corona Energy Retail 4 Limited,Corona Energy
Tendring DC,http://statistics.data.gov.uk/id/local-authority-district/22UN,Corporate Services,6980 - Essex Family Needs Project,5500 - Miscellaneous Expenses,07/08/2012,1049495-1,100,2111169 - CVS Tendring,HIRE OF SAMS HALL FCN
Tendring DC,http://statistics.data.gov.uk/id/local-authority-district/22UN,Corporate Services,7746 - Town Centres & Jaywick Business Support,5160 - Advertising,21/08/2012,2099731-1,300,2103510 - Direct Solutions,Leaflets Shop Local
Tendring DC,http://statistics.data.gov.uk/id/local-authority-district/22UN,Corporate Services,8025 - Car Parks - Off St,5160 - Advertising,21/08/2012,2099731-2,200,2103510 - Direct Solutions,Leaflets Shop Local
Tendring DC,http://statistics.data.gov.uk/id/local-authority-district/22UN,Corporate Services,1100 - Corporate Services Manager Service Unit,4400 - Maintenance Under Service Agreements,21/08/2012,1049722-1,23.16,2102826 - Eden Springs UK Ltd,EDEN
Tendring DC,http://statistics.data.gov.uk/id/local-authority-district/22UN,Corporate Services,1880 - Office Accommodation Expenses,2304 - Energy Costs - Electricity,21/08/2012,1049728-1,4576,2105146 - EDF Energy 1 Ltd,EDF
Tendring DC,http://statistics.data.gov.uk/id/local-authority-district/22UN,Corporate Services,6160 - Princes Theatre,2304 - Energy Costs - Electricity,21/08/2012,1049728-2,508.42,2105146 - EDF Energy 1 Ltd,EDF
Tendring DC,http://statistics.data.gov.uk/id/local-authority-district/22UN,Corporate Services,6885 - Public Halls-Jaywick Community Centre,2304 - Energy Costs - Electricity,28/08/2012,1049840-1,612.33,2107644 - Eon,15 MAY-16 AUG 2012
Tendring DC,http://statistics.data.gov.uk/id/local-authority-district/22UN,Corporate Services,7746 - Town Centres & Jaywick Business Support,2304 - Energy Costs - Electricity,14/08/2012,2099193-1,54.04,2107644 - Eon,July Usage
Tendring DC,http://statistics.data.gov.uk/id/local-authority-district/22UN,Corporate Services,7400 - Jaywick Enterprise Centre (Starter Units),2704 - Building Cleaning,14/08/2012,2099207-1,135,2110579 - Fields Total Cleaning,July Clean
Tendring DC,http://statistics.data.gov.uk/id/local-authority-district/22UN,Corporate Services,7025 - CDRP Support,4900 - Grants,07/08/2012,2099068-1,90,2100546 - GCS Alarms,GCS Security - Swap Hard drives
Tendring DC,http://statistics.data.gov.uk/id/local-authority-district/22UN,Corporate Services,1880 - Office Accommodation Expenses,4632 - Security,07/08/2012,2099082-1,40,2100546 - GCS Alarms,GCS
Tendring DC,http://statistics.data.gov.uk/id/local-authority-district/22UN,Corporate Services,1880 - Office Accommodation Expenses,4632 - Security,07/08/2012,2099086-1,50,2100546 - GCS Alarms,GCS
Tendring DC,http://statistics.data.gov.uk/id/local-authority-district/22UN,Corporate Services,1880 - Office Accommodation Expenses,4632 - Security,21/08/2012,2099653-1,25,2100546 - GCS Alarms,GCS
Tendring DC,http://statistics.data.gov.uk/id/local-authority-district/22UN,Corporate Services,1880 - Office Accommodation Expenses,4632 - Security,21/08/2012,2099661-1,50,2100546 - GCS Alarms,GCS
Tendring DC,http://statistics.data.gov.uk/id/local-authority-district/22UN,Corporate Services,1880 - Office Accommodation Expenses,2100 - Building Repairs,07/08/2012,1049627-1,124.17,2100588 - Grantleys,GRANTLEYS
Tendring DC,http://statistics.data.gov.uk/id/local-authority-district/22UN,Corporate Services,1880 - Office Accommodation Expenses,2100 - Building Repairs,14/08/2012,1049662-1,135,2106272 - Greenleaf Pest Control Services,GPCS
Tendring DC,http://statistics.data.gov.uk/id/local-authority-district/22UN,Corporate Services,7716 - Jaywick Strategic Leadership group initiatives,4674 - Hired Facilities,21/08/2012,1049757-1,10,2100615 - Healey Tool Hire & Sales Limited,HIRE OF GENERATORS
Tendring DC,http://statistics.data.gov.uk/id/local-authority-district/22UN,Corporate Services,1880 - Office Accommodation Expenses,4666 - Hygiene Services,07/08/2012,2099081-1,22.22,2104976 - Initial Washroom Solutions,Initial
Tendring DC,http://statistics.data.gov.uk/id/local-authority-district/22UN,Corporate Services,1860 - Depots General,4666 - Hygiene Services,07/08/2012,2099081-2,11.11,2104976 - Initial Washroom Solutions,Initial
Tendring DC,http://statistics.data.gov.uk/id/local-authority-district/22UN,Corporate Services,1880 - Office Accommodation Expenses,4666 - Hygiene Services,07/08/2012,2099081-3,22.22,2104976 - Initial Washroom Solutions,Initial
Tendring DC,http://statistics.data.gov.uk/id/local-authority-district/22UN,Corporate Services,1880 - Office Accommodation Expenses,4666 - Hygiene Services,07/08/2012,2099081-4,11.11,2104976 - Initial Washroom Solutions,Initial
Tendring DC,http://statistics.data.gov.uk/id/local-authority-district/22UN,Corporate Services,1880 - Office Accommodation Expenses,4666 - Hygiene Services,07/08/2012,2099081-5,93.13,2104976 - Initial Washroom Solutions,Initial
Tendring DC,http://statistics.data.gov.uk/id/local-authority-district/22UN,Corporate Services,1880 - Office Accommodation Expenses,4666 - Hygiene Services,07/08/2012,2099081-6,5.55,2104976 - Initial Washroom Solutions,Initial
Tendring DC,http://statistics.data.gov.uk/id/local-authority-district/22UN,Corporate Services,1880 - Office Accommodation Expenses,4666 - Hygiene Services,07/08/2012,2099081-7,11.11,2104976 - Initial Washroom Solutions,Initial
Tendring DC,http://statistics.data.gov.uk/id/local-authority-district/22UN,Corporate Services,4820 - Public Conveniences,4080 - Materials & Consumables,07/08/2012,2099081-8,33.33,2104976 - Initial Washroom Solutions,Initial
Tendring DC,http://statistics.data.gov.uk/id/local-authority-district/22UN,Corporate Services,7400 - Jaywick Enterprise Centre (Starter Units),2704 - Building Cleaning,21/08/2012,2099500-1,5.55,2104976 - Initial Washroom Solutions,Sanitact Unit
Tendring DC,http://statistics.data.gov.uk/id/local-authority-district/22UN,Corporate Services,1880 - Office Accommodation Expenses,4666 - Hygiene Services,21/08/2012,2099656-1,22.22,2104976 - Initial Washroom Solutions,Initial
Tendring DC,http://statistics.data.gov.uk/id/local-authority-district/22UN,Corporate Services,1860 - Depots General,4666 - Hygiene Services,21/08/2012,2099656-2,11.11,2104976 - Initial Washroom Solutions,Initial
Tendring DC,http://statistics.data.gov.uk/id/local-authority-district/22UN,Corporate Services,1880 - Office Accommodation Expenses,4666 - Hygiene Services,21/08/2012,2099656-3,22.22,2104976 - Initial Washroom Solutions,Initial
Tendring DC,http://statistics.data.gov.uk/id/local-authority-district/22UN,Corporate Services,1880 - Office Accommodation Expenses,4666 - Hygiene Services,21/08/2012,2099656-4,11.11,2104976 - Initial Washroom Solutions,Initial
Tendring DC,http://statistics.data.gov.uk/id/local-authority-district/22UN,Corporate Services,1880 - Office Accommodation Expenses,4666 - Hygiene Services,21/08/2012,2099656-5,93.13,2104976 - Initial Washroom Solutions,Initial
Tendring DC,http://statistics.data.gov.uk/id/local-authority-district/22UN,Corporate Services,1880 - Office Accommodation Expenses,4666 - Hygiene Services,21/08/2012,2099656-6,33.33,2104976 - Initial Washroom Solutions,Initial
Tendring DC,http://statistics.data.gov.uk/id/local-authority-district/22UN,Corporate Services,1880 - Office Accommodation Expenses,4666 - Hygiene Services,21/08/2012,2099656-7,11.11,2104976 - Initial Washroom Solutions,Initial
Tendring DC,http://statistics.data.gov.uk/id/local-authority-district/22UN,Corporate Services,1880 - Office Accommodation Expenses,4666 - Hygiene Services,21/08/2012,2099656-8,0.56,2104976 - Initial Washroom Solutions,Initial
Tendring DC,http://statistics.data.gov.uk/id/local-authority-district/22UN,Corporate Services,1860 - Depots General,4448 - Confidential Waste,21/08/2012,2099652-1,91.65,2110936 - IPPlus (UK) Ltd,Ancora
Tendring DC,http://statistics.data.gov.uk/id/local-authority-district/22UN,Corporate Services,7716 - Jaywick Strategic Leadership group initiatives,5936 - Contingency,21/08/2012,1049721-1,1900,2100756 - Jaywick Community Forum,LOTUS WAY PROJECT
Tendring DC,http://statistics.data.gov.uk/id/local-authority-district/22UN,Corporate Services,1210 - Facilities Management Service Unit,3302 - Car Allowances - Officers,07/08/2012,2099034-1,50,REDACTED PERSONAL DATA,REDACTED PERSONAL DATA
Tendring DC,http://statistics.data.gov.uk/id/local-authority-district/22UN,Corporate Services,1880 - Office Accommodation Expenses,2100 - Building Repairs,14/08/2012,1049661-1,185,2100758 - K A Hockley Ltd,KA HOCKLEY
Tendring DC,http://statistics.data.gov.uk/id/local-authority-district/22UN,Corporate Services,1320 - Print Unit Service Unit,4080 - Materials & Consumables,21/08/2012,1049755-1,45,2100864 - Leston Stationery Ltd,CARD
Tendring DC,http://statistics.data.gov.uk/id/local-authority-district/22UN,Corporate Services,1320 - Print Unit Service Unit,4080 - Materials & Consumables,14/08/2012,2099196-1,249.25,2100864 - Leston Stationery Ltd,100g Paper
Tendring DC,http://statistics.data.gov.uk/id/local-authority-district/22UN,Corporate Services,7460 - Economic Promotion,5164 - Project Expenses,07/08/2012,1049652-1,13,REDACTED PERSONAL DATA,REDACTED PERSONAL DATA
Tendring DC,http://statistics.data.gov.uk/id/local-authority-district/22UN,Corporate Services,1040 - Regeneration Projects Service Unit,4300 - Printing & Stationery,28/08/2012,2099853-1,6.48,REDACTED PERSONAL DATA,REDACTED PERSONAL DATA
Tendring DC,http://statistics.data.gov.uk/id/local-authority-district/22UN,Corporate Services,7025 - CDRP Support,4900 - Grants,07/08/2012,1049466-1,150,2109450 - Monster Merchandise Ltd,COMMUNITY SAFETY T-SHIRTS
Tendring DC,http://statistics.data.gov.uk/id/local-authority-district/22UN,Corporate Services,7025 - CDRP Support,4900 - Grants,07/08/2012,1049465-1,375,2103915 - MRL Productions,PROJECTIONS-ONE PUNCH
Tendring DC,http://statistics.data.gov.uk/id/local-authority-district/22UN,Corporate Services,1880 - Office Accommodation Expenses,2100 - Building Repairs,14/08/2012,1049665-1,440,2100967 - N Rudelhoff,NR ELECTRICAL
Tendring DC,http://statistics.data.gov.uk/id/local-authority-district/22UN,Corporate Services,1880 - Office Accommodation Expenses,2100 - Building Repairs,14/08/2012,1049665-2,60,2100967 - N Rudelhoff,NR ELECTRICAL
Tendring DC,http://statistics.data.gov.uk/id/local-authority-district/22UN,Corporate Services,1880 - Office Accommodation Expenses,2100 - Building Repairs,14/08/2012,1049666-1,427,2100967 - N Rudelhoff,NR ELECTRICAL
Tendring DC,http://statistics.data.gov.uk/id/local-authority-district/22UN,Corporate Services,1880 - Office Accommodation Expenses,2100 - Building Repairs,14/08/2012,1049666-2,170,2100967 - N Rudelhoff,NR ELECTRICAL
Tendring DC,http://statistics.data.gov.uk/id/local-authority-district/22UN,Corporate Services,1880 - Office Accommodation Expenses,2100 - Building Repairs,14/08/2012,1049667-1,503,2100967 - N Rudelhoff,NR ELECTRICAL
Tendring DC,http://statistics.data.gov.uk/id/local-authority-district/22UN,Corporate Services,1880 - Office Accommodation Expenses,2100 - Building Repairs,14/08/2012,1049667-2,20,2100967 - N Rudelhoff,NR ELECTRICAL
Tendring DC,http://statistics.data.gov.uk/id/local-authority-district/22UN,Corporate Services,1880 - Office Accommodation Expenses,2100 - Building Repairs,14/08/2012,1049667-3,69,2100967 - N Rudelhoff,NR ELECTRICAL
Tendring DC,http://statistics.data.gov.uk/id/local-authority-district/22UN,Corporate Services,1880 - Office Accommodation Expenses,2100 - Building Repairs,14/08/2012,1049668-1,365,2100967 - N Rudelhoff,NR ELECTRICAL
Tendring DC,http://statistics.data.gov.uk/id/local-authority-district/22UN,Corporate Services,1880 - Office Accommodation Expenses,2100 - Building Repairs,14/08/2012,1049668-2,69,2100967 - N Rudelhoff,NR ELECTRICAL
Tendring DC,http://statistics.data.gov.uk/id/local-authority-district/22UN,Corporate Services,1880 - Office Accommodation Expenses,2100 - Building Repairs,14/08/2012,1049668-3,58,2100967 - N Rudelhoff,NR ELECTRICAL
Tendring DC,http://statistics.data.gov.uk/id/local-authority-district/22UN,Corporate Services,1880 - Office Accommodation Expenses,2100 - Building Repairs,14/08/2012,1049669-1,35,2100967 - N Rudelhoff,NR ELECTRICAL
Tendring DC,http://statistics.data.gov.uk/id/local-authority-district/22UN,Corporate Services,1880 - Office Accommodation Expenses,2100 - Building Repairs,14/08/2012,1049669-2,189,2100967 - N Rudelhoff,NR ELECTRICAL
Tendring DC,http://statistics.data.gov.uk/id/local-authority-district/22UN,Corporate Services,1880 - Office Accommodation Expenses,2100 - Building Repairs,14/08/2012,1049669-3,69,2100967 - N Rudelhoff,NR ELECTRICAL
Tendring DC,http://statistics.data.gov.uk/id/local-authority-district/22UN,Corporate Services,1880 - Office Accommodation Expenses,2100 - Building Repairs,14/08/2012,1049669-4,120,2100967 - N Rudelhoff,NR ELECTRICAL
Tendring DC,http://statistics.data.gov.uk/id/local-authority-district/22UN,Corporate Services,1880 - Office Accommodation Expenses,2100 - Building Repairs,14/08/2012,1049670-1,572,2100967 - N Rudelhoff,NR ELECTRICAL
Tendring DC,http://statistics.data.gov.uk/id/local-authority-district/22UN,Corporate Services,1880 - Office Accommodation Expenses,2100 - Building Repairs,14/08/2012,1049671-1,219,2100967 - N Rudelhoff,NR ELECTRICAL
Tendring DC,http://statistics.data.gov.uk/id/local-authority-district/22UN,Corporate Services,1880 - Office Accommodation Expenses,2100 - Building Repairs,14/08/2012,1049672-1,69,2100967 - N Rudelhoff,NR ELECTRICAL
Tendring DC,http://statistics.data.gov.uk/id/local-authority-district/22UN,Corporate Services,1880 - Office Accommodation Expenses,2100 - Building Repairs,14/08/2012,1049672-2,23,2100967 - N Rudelhoff,NR ELECTRICAL
Tendring DC,http://statistics.data.gov.uk/id/local-authority-district/22UN,Corporate Services,1320 - Print Unit Service Unit,4302 - External Print Unit Expenses,21/08/2012,2099735-1,118,2111479 - Neil Goss Litho Printing,Job 221
Tendring DC,http://statistics.data.gov.uk/id/local-authority-district/22UN,Corporate Services,1320 - Print Unit Service Unit,4302 - External Print Unit Expenses,21/08/2012,2099736-1,365,2111479 - Neil Goss Litho Printing,Job 227
Tendring DC,http://statistics.data.gov.uk/id/local-authority-district/22UN,Corporate Services,1320 - Print Unit Service Unit,4302 - External Print Unit Expenses,21/08/2012,2099737-1,395,2111479 - Neil Goss Litho Printing,Job 232
Tendring DC,http://statistics.data.gov.uk/id/local-authority-district/22UN,Corporate Services,1320 - Print Unit Service Unit,4302 - External Print Unit Expenses,07/08/2012,1049453-1,120,2111844 - Optimumprint,JOB 185/185
Tendring DC,http://statistics.data.gov.uk/id/local-authority-district/22UN,Corporate Services,1320 - Print Unit Service Unit,4302 - External Print Unit Expenses,07/08/2012,1049454-1,1175,2111844 - Optimumprint,JOB 083
Tendring DC,http://statistics.data.gov.uk/id/local-authority-district/22UN,Corporate Services,7240 - Electoral Registration Expenses,4300 - Printing & Stationery,21/08/2012,2099584-1,1411.92,2103246 - Print.uk.com,Canvass 1st reminder run
Tendring DC,http://statistics.data.gov.uk/id/local-authority-district/22UN,Corporate Services,7220 - Election Expenses,4486 - Election Expenses,21/08/2012,2099585-1,1610.75,2103246 - Print.uk.com,St Barts Election
Tendring DC,http://statistics.data.gov.uk/id/local-authority-district/22UN,Corporate Services,7736 - Economic Assessment Duty,5500 - Miscellaneous Expenses,14/08/2012,1049676-1,3500,2112399 - Regional Network Solutions Ltd,WIFI CONSULTANCY
Tendring DC,http://statistics.data.gov.uk/id/local-authority-district/22UN,Corporate Services,1100 - Corporate Services Manager Service Unit,4400 - Maintenance Under Service Agreements,07/08/2012,1049496-1,524.65,2101090 - Ricoh UK Ltd,B/W COLOUR COPIES
Tendring DC,http://statistics.data.gov.uk/id/local-authority-district/22UN,Corporate Services,7240 - Electoral Registration Expenses,4700 - Postage,07/08/2012,1049482-1,3366.33,2101139 - Royal Mail,ELECTORAL POSTAGE
Tendring DC,http://statistics.data.gov.uk/id/local-authority-district/22UN,Corporate Services,7240 - Electoral Registration Expenses,4700 - Postage,07/08/2012,1049483-1,2519.86,2101139 - Royal Mail,ELECTORAL POSTAGE
Tendring DC,http://statistics.data.gov.uk/id/local-authority-district/22UN,Corporate Services,7220 - Election Expenses,4486 - Election Expenses,07/08/2012,1049484-1,1163.39,2101139 - Royal Mail,ST BARTS POSTAGE
Tendring DC,http://statistics.data.gov.uk/id/local-authority-district/22UN,Corporate Services,7240 - Electoral Registration Expenses,4700 - Postage,21/08/2012,2099586-1,1193.16,2101139 - Royal Mail,Electoral Postage
Tendring DC,http://statistics.data.gov.uk/id/local-authority-district/22UN,Corporate Services,7240 - Electoral Registration Expenses,4700 - Postage,21/08/2012,2099587-1,83,2101139 - Royal Mail,Electoral Postage
Tendring DC,http://statistics.data.gov.uk/id/local-authority-district/22UN,Corporate Services,7240 - Electoral Registration Expenses,4700 - Postage,21/08/2012,2099588-1,2300.38,2101139 - Royal Mail,Electoral Postage
Tendring DC,http://statistics.data.gov.uk/id/local-authority-district/22UN,Corporate Services,1880 - Office Accommodation Expenses,2100 - Building Repairs,14/08/2012,1049657-1,910,2101280 - S Parkin,PARKIN CONSTRUCTIONS
Tendring DC,http://statistics.data.gov.uk/id/local-authority-district/22UN,Corporate Services,1880 - Office Accommodation Expenses,2100 - Building Repairs,14/08/2012,1049657-2,820,2101280 - S Parkin,PARKIN CONSTRUCTIONS
Tendring DC,http://statistics.data.gov.uk/id/local-authority-district/22UN,Corporate Services,7040 - Civic Ceremonial Expenses,4080 - Materials & Consumables,21/08/2012,2099801-1,17.05,2101276 - Smiths Service Centre,Engrave Chairmans Chain
Tendring DC,http://statistics.data.gov.uk/id/local-authority-district/22UN,Corporate Services,1880 - Office Accommodation Expenses,2100 - Building Repairs,07/08/2012,2099084-1,11.08,2101360 - Stannah Lift Services Limited,Stannah
Tendring DC,http://statistics.data.gov.uk/id/local-authority-district/22UN,Corporate Services,1880 - Office Accommodation Expenses,2100 - Building Repairs,07/08/2012,2099084-2,11.08,2101360 - Stannah Lift Services Limited,Stannah
Tendring DC,http://statistics.data.gov.uk/id/local-authority-district/22UN,Corporate Services,7716 - Jaywick Strategic Leadership group initiatives,4300 - Printing & Stationery,07/08/2012,1049573-1,35.55,2106628 - Tendring District Council,PETTY CASH CORPORATE SVS
Tendring DC,http://statistics.data.gov.uk/id/local-authority-district/22UN,Corporate Services,7716 - Jaywick Strategic Leadership group initiatives,4040 - Equipment & Tools,07/08/2012,1049573-10,14.99,2106628 - Tendring District Council,PETTY CASH CORPORATE SVS
Tendring DC,http://statistics.data.gov.uk/id/local-authority-district/22UN,Corporate Services,7716 - Jaywick Strategic Leadership group initiatives,4040 - Equipment & Tools,07/08/2012,1049573-11,22.05,2106628 - Tendring District Council,PETTY CASH CORPORATE SVS
Tendring DC,http://statistics.data.gov.uk/id/local-authority-district/22UN,Corporate Services,7716 - Jaywick Strategic Leadership group initiatives,4040 - Equipment & Tools,07/08/2012,1049573-12,9.99,2106628 - Tendring District Council,PETTY CASH CORPORATE SVS
Tendring DC,http://statistics.data.gov.uk/id/local-authority-district/22UN,Corporate Services,7716 - Jaywick Strategic Leadership group initiatives,4040 - Equipment & Tools,07/08/2012,1049573-13,8.99,2106628 - Tendring District Council,PETTY CASH CORPORATE SVS
Tendring DC,http://statistics.data.gov.uk/id/local-authority-district/22UN,Corporate Services,7716 - Jaywick Strategic Leadership group initiatives,4040 - Equipment & Tools,07/08/2012,1049573-14,1.66,2106628 - Tendring District Council,PETTY CASH CORPORATE SVS
Tendring DC,http://statistics.data.gov.uk/id/local-authority-district/22UN,Corporate Services,8025 - Car Parks - Off St,9150 - Car Parking - Fees And Charges,07/08/2012,1049573-15,3.33,2106628 - Tendring District Council,PETTY CASH CORPORATE SVS
Tendring DC,http://statistics.data.gov.uk/id/local-authority-district/22UN,Corporate Services,7716 - Jaywick Strategic Leadership group initiatives,5500 - Miscellaneous Expenses,07/08/2012,1049573-2,6.75,2106628 - Tendring District Council,PETTY CASH CORPORATE SVS
Tendring DC,http://statistics.data.gov.uk/id/local-authority-district/22UN,Corporate Services,7716 - Jaywick Strategic Leadership group initiatives,4800 - Hospitality,07/08/2012,1049573-3,29.6,2106628 - Tendring District Council,PETTY CASH CORPORATE SVS
Tendring DC,http://statistics.data.gov.uk/id/local-authority-district/22UN,Corporate Services,7716 - Jaywick Strategic Leadership group initiatives,4800 - Hospitality,07/08/2012,1049573-4,8.5,2106628 - Tendring District Council,PETTY CASH CORPORATE SVS
Tendring DC,http://statistics.data.gov.uk/id/local-authority-district/22UN,Corporate Services,7716 - Jaywick Strategic Leadership group initiatives,4300 - Printing & Stationery,07/08/2012,1049573-5,5.7,2106628 - Tendring District Council,PETTY CASH CORPORATE SVS
Tendring DC,http://statistics.data.gov.uk/id/local-authority-district/22UN,Corporate Services,7716 - Jaywick Strategic Leadership group initiatives,4300 - Printing & Stationery,07/08/2012,1049573-6,2.88,2106628 - Tendring District Council,PETTY CASH CORPORATE SVS
Tendring DC,http://statistics.data.gov.uk/id/local-authority-district/22UN,Corporate Services,7716 - Jaywick Strategic Leadership group initiatives,4040 - Equipment & Tools,07/08/2012,1049573-7,16.65,2106628 - Tendring District Council,PETTY CASH CORPORATE SVS
Tendring DC,http://statistics.data.gov.uk/id/local-authority-district/22UN,Corporate Services,7716 - Jaywick Strategic Leadership group initiatives,4040 - Equipment & Tools,07/08/2012,1049573-8,2.19,2106628 - Tendring District Council,PETTY CASH CORPORATE SVS
Tendring DC,http://statistics.data.gov.uk/id/local-authority-district/22UN,Corporate Services,1100 - Corporate Services Manager Service Unit,1702 - Training - Books Etc,07/08/2012,1049573-9,10,2106628 - Tendring District Council,PETTY CASH CORPORATE SVS
Tendring DC,http://statistics.data.gov.uk/id/local-authority-district/22UN,Corporate Services,1100 - Corporate Services Manager Service Unit,1700 - Training - Courses,07/08/2012,1049485-1,236,2104780 - The Association of Electoral Administrators,ACR COURSE ELECTION A/C'S
Tendring DC,http://statistics.data.gov.uk/id/local-authority-district/22UN,Corporate Services,7220 - Election Expenses,4486 - Election Expenses,07/08/2012,1049486-1,50,2104780 - The Association of Electoral Administrators,EASTERN BRANCH TRAINING
Tendring DC,http://statistics.data.gov.uk/id/local-authority-district/22UN,Corporate Services,1100 - Corporate Services Manager Service Unit,1700 - Training - Courses,07/08/2012,1049487-1,60,2104780 - The Association of Electoral Administrators,EXTRA FEE NON-MEMBER
Tendring DC,http://statistics.data.gov.uk/id/local-authority-district/22UN,Corporate Services,1880 - Office Accommodation Expenses,4632 - Security,07/08/2012,2099064-1,20,REDACTED PERSONAL DATA,REDACTED PERSONAL DATA
Tendring DC,http://statistics.data.gov.uk/id/local-authority-district/22UN,Corporate Services,1880 - Office Accommodation Expenses,4632 - Security,07/08/2012,2099074-1,120,2101437 - Tower Security (Tendring) Ltd,Tower Security
Tendring DC,http://statistics.data.gov.uk/id/local-authority-district/22UN,Corporate Services,1860 - Depots General,4632 - Security,07/08/2012,2099075-1,120,2101437 - Tower Security (Tendring) Ltd,Tower Security
Tendring DC,http://statistics.data.gov.uk/id/local-authority-district/22UN,Corporate Services,1880 - Office Accommodation Expenses,4632 - Security,07/08/2012,2099076-1,120,2101437 - Tower Security (Tendring) Ltd,Tower Security
Tendring DC,http://statistics.data.gov.uk/id/local-authority-district/22UN,Corporate Services,1860 - Depots General,4632 - Security,07/08/2012,2099077-1,120,2101437 - Tower Security (Tendring) Ltd,Tower Security
Tendring DC,http://statistics.data.gov.uk/id/local-authority-district/22UN,Corporate Services,1880 - Office Accommodation Expenses,4632 - Security,07/08/2012,2099078-1,20,2101437 - Tower Security (Tendring) Ltd,Tower Security
Tendring DC,http://statistics.data.gov.uk/id/local-authority-district/22UN,Corporate Services,1880 - Office Accommodation Expenses,4632 - Security,07/08/2012,2099078-2,20,2101437 - Tower Security (Tendring) Ltd,Tower Security
Tendring DC,http://statistics.data.gov.uk/id/local-authority-district/22UN,Corporate Services,1880 - Office Accommodation Expenses,4632 - Security,07/08/2012,2099079-1,20,2101437 - Tower Security (Tendring) Ltd,Tower Security
Tendring DC,http://statistics.data.gov.uk/id/local-authority-district/22UN,Corporate Services,1880 - Office Accommodation Expenses,4632 - Security,07/08/2012,2099080-1,20,2101437 - Tower Security (Tendring) Ltd,Tower Security
Tendring DC,http://statistics.data.gov.uk/id/local-authority-district/22UN,Corporate Services,1880 - Office Accommodation Expenses,2100 - Building Repairs,07/08/2012,2099063-1,109.11,REDACTED PERSONAL DATA,REDACTED PERSONAL DATA
Tendring DC,http://statistics.data.gov.uk/id/local-authority-district/22UN,Corporate Services,1880 - Office Accommodation Expenses,2100 - Building Repairs,21/08/2012,2099658-1,104.82,2101457 - Town Council of Frinton and Walton,Town Council - FW
Tendring DC,http://statistics.data.gov.uk/id/local-authority-district/22UN,Corporate Services,7400 - Jaywick Enterprise Centre (Starter Units),4446 - Bulk Bin Collection,21/08/2012,1049756-1,120.83,2101092 - Veolia ES (UK) Limited,JULY COLLECTION
Tendring DC,http://statistics.data.gov.uk/id/local-authority-district/22UN,Corporate Services,1880 - Office Accommodation Expenses,4446 - Bulk Bin Collection,07/08/2012,2099055-1,90,2101092 - Veolia ES (UK) Limited,Veolia
Tendring DC,http://statistics.data.gov.uk/id/local-authority-district/22UN,Corporate Services,1880 - Office Accommodation Expenses,4446 - Bulk Bin Collection,07/08/2012,2099056-1,90,2101092 - Veolia ES (UK) Limited,Veolia
Tendring DC,http://statistics.data.gov.uk/id/local-authority-district/22UN,Corporate Services,1880 - Office Accommodation Expenses,4446 - Bulk Bin Collection,07/08/2012,2099057-1,90,2101092 - Veolia ES (UK) Limited,Veolia
Tendring DC,http://statistics.data.gov.uk/id/local-authority-district/22UN,Corporate Services,1880 - Office Accommodation Expenses,4446 - Bulk Bin Collection,07/08/2012,2099058-1,90,2101092 - Veolia ES (UK) Limited,Veolia
Tendring DC,http://statistics.data.gov.uk/id/local-authority-district/22UN,Corporate Services,1880 - Office Accommodation Expenses,4446 - Bulk Bin Collection,07/08/2012,2099059-1,90,2101092 - Veolia ES (UK) Limited,Veolia
Tendring DC,http://statistics.data.gov.uk/id/local-authority-district/22UN,Corporate Services,1880 - Office Accommodation Expenses,4446 - Bulk Bin Collection,21/08/2012,2099647-1,210.1,REDACTED PERSONAL DATA,REDACTED PERSONAL DATA
Tendring DC,http://statistics.data.gov.uk/id/local-authority-district/22UN,Corporate Services,1880 - Office Accommodation Expenses,4446 - Bulk Bin Collection,21/08/2012,2099648-1,731.82,REDACTED PERSONAL DATA,REDACTED PERSONAL DATA
Tendring DC,http://statistics.data.gov.uk/id/local-authority-district/22UN,Corporate Services,1880 - Office Accommodation Expenses,4446 - Bulk Bin Collection,21/08/2012,2099649-1,61.62,REDACTED PERSONAL DATA,REDACTED PERSONAL DATA
Tendring DC,http://statistics.data.gov.uk/id/local-authority-district/22UN,Corporate Services,1880 - Office Accommodation Expenses,4446 - Bulk Bin Collection,21/08/2012,2099650-1,104.78,REDACTED PERSONAL DATA,REDACTED PERSONAL DATA
Tendring DC,http://statistics.data.gov.uk/id/local-authority-district/22UN,Corporate Services,1880 - Office Accommodation Expenses,4446 - Bulk Bin Collection,21/08/2012,2099651-1,281.18,REDACTED PERSONAL DATA,REDACTED PERSONAL DATA
Tendring DC,http://statistics.data.gov.uk/id/local-authority-district/22UN,Corporate Services,1880 - Office Accommodation Expenses,2500 - Water Services - Metered,21/08/2012,2099657-1,22.9,2101318 - Veolia Water East Ltd,Veolia Water
Tendring DC,http://statistics.data.gov.uk/id/local-authority-district/22UN,Corporate Services,1880 - Office Accommodation Expenses,2520 - Sewerage & Environmental Charges,21/08/2012,2099657-2,76.94,2101318 - Veolia Water East Ltd,Veolia Water
Tendring DC,http://statistics.data.gov.uk/id/local-authority-district/22UN,Corporate Services,1320 - Print Unit Service Unit,4350 - Photocopier Hire,21/08/2012,1049754-1,1964.1,2101527 - Xerox Finance Ltd,252 RENTAL
Tendring DC,http://statistics.data.gov.uk/id/local-authority-district/22UN,Corporate Services,1100 - Corporate Services Manager Service Unit,4300 - Printing & Stationery,07/08/2012,1049481-1,114.1,2107546 - XMA Limited,PRINT CARTRIDGES
Tendring DC,http://statistics.data.gov.uk/id/local-authority-district/22UN,Corporate Services,1040 - Regeneration Projects Service Unit,4300 - Printing & Stationery,21/08/2012,2099755-1,147.31,2107546 - XMA Limited,Laserjet Toner
Tendring DC,http://statistics.data.gov.uk/id/local-authority-district/22UN,Corporate Services,1040 - Regeneration Projects Service Unit,4300 - Printing & Stationery,21/08/2012,2099756-1,51.56,2107546 - XMA Limited,Inkjet Cartridges
Tendring DC,http://statistics.data.gov.uk/id/local-authority-district/22UN,Corporate Services,1880 - Office Accommodation Expenses,4000 - Furniture,07/08/2012,1049641-1,195,2111995 - Yes 2 Limited,YES2SOLUTIONS
Tendring DC,http://statistics.data.gov.uk/id/local-authority-district/22UN,Corporate Services,1880 - Office Accommodation Expenses,4000 - Furniture,07/08/2012,2099060-1,1891.6,2111995 - Yes 2 Limited,Yes 2 Solutions
Tendring DC,http://statistics.data.gov.uk/id/local-authority-district/22UN,Corporate Services,1880 - Office Accommodation Expenses,4000 - Furniture,07/08/2012,2099061-1,733.85,2111995 - Yes 2 Limited,Yes 2 Solutions
Tendring DC,http://statistics.data.gov.uk/id/local-authority-district/22UN,Life Opportunities,5480 - HRA - Repair & Maintenance,2073 - Smoke Alarm Service/Testing,14/08/2012,2099445-1,634.48,REDACTED PERSONAL DATA,REDACTED PERSONAL DATA
Tendring DC,http://statistics.data.gov.uk/id/local-authority-district/22UN,Life Opportunities,5480 - HRA - Repair & Maintenance,2075 - Gas Service Contract Servicing/Testing (Domestic I,14/08/2012,2099445-2,10914.61,REDACTED PERSONAL DATA,REDACTED PERSONAL DATA
Tendring DC,http://statistics.data.gov.uk/id/local-authority-district/22UN,Life Opportunities,5480 - HRA - Repair & Maintenance,2076 - Gas Service Contract Other Refurbishment/Repairs (,14/08/2012,2099445-3,9103.28,REDACTED PERSONAL DATA,REDACTED PERSONAL DATA
Tendring DC,http://statistics.data.gov.uk/id/local-authority-district/22UN,Life Opportunities,5480 - HRA - Repair & Maintenance,2092 - Plumbing,07/08/2012,1049543-1,522,REDACTED PERSONAL DATA,REDACTED PERSONAL DATA
Tendring DC,http://statistics.data.gov.uk/id/local-authority-district/22UN,Life Opportunities,5480 - HRA - Repair & Maintenance,2092 - Plumbing,07/08/2012,1049544-1,294,REDACTED PERSONAL DATA,REDACTED PERSONAL DATA
Tendring DC,http://statistics.data.gov.uk/id/local-authority-district/22UN,Life Opportunities,5480 - HRA - Repair & Maintenance,2092 - Plumbing,28/08/2012,1049785-1,448.1,REDACTED PERSONAL DATA,REDACTED PERSONAL DATA
Tendring DC,http://statistics.data.gov.uk/id/local-authority-district/22UN,Life Opportunities,5480 - HRA - Repair & Maintenance,2092 - Plumbing,28/08/2012,1049786-1,210,REDACTED PERSONAL DATA,REDACTED PERSONAL DATA
Tendring DC,http://statistics.data.gov.uk/id/local-authority-district/22UN,Life Opportunities,8540 - Leisure Centre Clacton,4400 - Maintenance Under Service Agreements,14/08/2012,2099364-1,266.93,2100072 - Acorn Pressurisation Services Ltd,
Tendring DC,http://statistics.data.gov.uk/id/local-authority-district/22UN,Life Opportunities,8540 - Leisure Centre Clacton,4400 - Maintenance Under Service Agreements,14/08/2012,2099114-1,540,2108105 - AFI Uplift Ltd,
Tendring DC,http://statistics.data.gov.uk/id/local-authority-district/22UN,Life Opportunities,5860 - Manningtree Sports Centre,4597 - Hired Services - Payments to Contractors,28/08/2012,1049777-1,3400,2109999 - Air Conditioning Solutions (UK) Ltd,NEW AIR CONDITIONING UNITS FITNESS SUITE
Tendring DC,http://statistics.data.gov.uk/id/local-authority-district/22UN,Life Opportunities,5480 - HRA - Repair & Maintenance,2017 - Mechanical Equipment /Extract Fans,07/08/2012,1049448-1,591,REDACTED PERSONAL DATA,REDACTED PERSONAL DATA
Tendring DC,http://statistics.data.gov.uk/id/local-authority-district/22UN,Life Opportunities,5480 - HRA - Repair & Maintenance,2017 - Mechanical Equipment /Extract Fans,07/08/2012,1049449-1,438.3,REDACTED PERSONAL DATA,REDACTED PERSONAL DATA
Tendring DC,http://statistics.data.gov.uk/id/local-authority-district/22UN,Life Opportunities,5480 - HRA - Repair & Maintenance,2017 - Mechanical Equipment /Extract Fans,07/08/2012,1049450-1,854.5,REDACTED PERSONAL DATA,REDACTED PERSONAL DATA
Tendring DC,http://statistics.data.gov.uk/id/local-authority-district/22UN,Life Opportunities,5480 - HRA - Repair & Maintenance,2017 - Mechanical Equipment /Extract Fans,07/08/2012,1049451-1,665.5,REDACTED PERSONAL DATA,REDACTED PERSONAL DATA
Tendring DC,http://statistics.data.gov.uk/id/local-authority-district/22UN,Life Opportunities,5480 - HRA - Repair & Maintenance,2017 - Mechanical Equipment /Extract Fans,14/08/2012,2099185-1,631,REDACTED PERSONAL DATA,REDACTED PERSONAL DATA
Tendring DC,http://statistics.data.gov.uk/id/local-authority-district/22UN,Life Opportunities,5480 - HRA - Repair & Maintenance,2017 - Mechanical Equipment /Extract Fans,14/08/2012,2099186-1,438.3,REDACTED PERSONAL DATA,REDACTED PERSONAL DATA
Tendring DC,http://statistics.data.gov.uk/id/local-authority-district/22UN,Life Opportunities,6740 - Careline,3060 - Running Costs - Diesel,14/08/2012,2099399-1,560.97,2101825 - Allstar Business Solutions Ltd,Fuel Cards - June & July 12
Tendring DC,http://statistics.data.gov.uk/id/local-authority-district/22UN,Life Opportunities,8540 - Leisure Centre Clacton,4597 - Hired Services - Payments to Contractors,14/08/2012,2099311-1,400,REDACTED PERSONAL DATA,REDACTED PERSONAL DATA
Tendring DC,http://statistics.data.gov.uk/id/local-authority-district/22UN,Life Opportunities,5800 - Brightlingsea Sports Centre,1180 - Instructors / Coaches Fee,14/08/2012,2099311-2,400,REDACTED PERSONAL DATA,REDACTED PERSONAL DATA
Tendring DC,http://statistics.data.gov.uk/id/local-authority-district/22UN,Life Opportunities,5800 - Brightlingsea Sports Centre,5316 - General Provisions,14/08/2012,1049687-1,31.1,2112373 - Anglian Sports Nutrition Ltd,ANGLIAN SPORTS NUTRITION
Tendring DC,http://statistics.data.gov.uk/id/local-authority-district/22UN,Life Opportunities,8540 - Leisure Centre Clacton,2520 - Sewerage & Environmental Charges,14/08/2012,1049694-1,1827.96,2112315 - Anglian Water Business,JAN-JUN
Tendring DC,http://statistics.data.gov.uk/id/local-authority-district/22UN,Life Opportunities,5240 - HRA - Managing Tenancies,5242 - Tenant Relations,07/08/2012,1049562-1,10,REDACTED PERSONAL DATA,REDACTED PERSONAL DATA
Tendring DC,http://statistics.data.gov.uk/id/local-authority-district/22UN,Life Opportunities,5240 - HRA - Managing Tenancies,5242 - Tenant Relations,14/08/2012,2099303-1,10,REDACTED PERSONAL DATA,REDACTED PERSONAL DATA
Tendring DC,http://statistics.data.gov.uk/id/local-authority-district/22UN,Life Opportunities,5240 - HRA - Managing Tenancies,5242 - Tenant Relations,28/08/2012,2099840-1,10,REDACTED PERSONAL DATA,REDACTED PERSONAL DATA
Tendring DC,http://statistics.data.gov.uk/id/local-authority-district/22UN,Life Opportunities,7520 - Tourism Publicity Marketing Promotion,5160 - Advertising,21/08/2012,2099478-1,100,2102337 - Archant Regional Ltd,Extra Copies
Tendring DC,http://statistics.data.gov.uk/id/local-authority-district/22UN,Life Opportunities,7520 - Tourism Publicity Marketing Promotion,5160 - Advertising,28/08/2012,2099885-1,225,2102337 - Archant Regional Ltd,Coastal Life
Tendring DC,http://statistics.data.gov.uk/id/local-authority-district/22UN,Life Opportunities,6740 - Careline,5160 - Advertising,28/08/2012,2099885-2,200,2102337 - Archant Regional Ltd,Coastal Life
Tendring DC,http://statistics.data.gov.uk/id/local-authority-district/22UN,Life Opportunities,8510 - Dovercourt Swimming Pool & All Weather Facilities,2100 - Building Repairs,14/08/2012,1049683-1,72.91,2100048 - Argos Business Solutions,DOVERCOURT POOL
Tendring DC,http://statistics.data.gov.uk/id/local-authority-district/22UN,Life Opportunities,6160 - Princes Theatre,4040 - Equipment & Tools,21/08/2012,2099639-1,115.23,2100048 - Argos Business Solutions,Henry Hoover
Tendring DC,http://statistics.data.gov.uk/id/local-authority-district/22UN,Life Opportunities,5240 - HRA - Managing Tenancies,4312 - Tenancy Stationery,28/08/2012,2099830-1,47.24,REDACTED COMMERCIAL CONFIDENTIALITY,REDACTED COMMERCIAL CONFIDENTIALITY
Tendring DC,http://statistics.data.gov.uk/id/local-authority-district/22UN,Life Opportunities,6160 - Princes Theatre,4622 - Hired Services - Artistes and Production Companies,28/08/2012,2099857-1,3501.18,REDACTED PERSONAL DATA,REDACTED PERSONAL DATA
Tendring DC,http://statistics.data.gov.uk/id/local-authority-district/22UN,Life Opportunities,8520 - Frinton & Walton Swimming Pool,5300 - Resaleable Items,14/08/2012,2099172-1,465.21,2100088 - ASA Merchandising Ltd,Frinton & Walton Pool
Tendring DC,http://statistics.data.gov.uk/id/local-authority-district/22UN,Life Opportunities,8540 - Leisure Centre Clacton,5300 - Resaleable Items,21/08/2012,2099601-1,220.24,2100088 - ASA Merchandising Ltd,
Tendring DC,http://statistics.data.gov.uk/id/local-authority-district/22UN,Life Opportunities,8520 - Frinton & Walton Swimming Pool,5300 - Resaleable Items,28/08/2012,2099894-1,135.29,2100088 - ASA Merchandising Ltd,Frinton & Walton Pool
Tendring DC,http://statistics.data.gov.uk/id/local-authority-district/22UN,Life Opportunities,5860 - Manningtree Sports Centre,4597 - Hired Services - Payments to Contractors,14/08/2012,1049679-1,180,2110101 - ASM Ltd,FOOTBALL COACHING JUL
Tendring DC,http://statistics.data.gov.uk/id/local-authority-district/22UN,Life Opportunities,5480 - HRA - Repair & Maintenance,2012 - Responsive Maintenance - Clearance And Cleaning,07/08/2012,1049452-1,120,REDACTED PERSONAL DATA,REDACTED PERSONAL DATA
Tendring DC,http://statistics.data.gov.uk/id/local-authority-district/22UN,Life Opportunities,5480 - HRA - Repair & Maintenance,2012 - Responsive Maintenance - Clearance And Cleaning,14/08/2012,2099184-1,85,REDACTED PERSONAL DATA,REDACTED PERSONAL DATA
Tendring DC,http://statistics.data.gov.uk/id/local-authority-district/22UN,Life Opportunities,5480 - HRA - Repair & Maintenance,2012 - Responsive Maintenance - Clearance And Cleaning,21/08/2012,2099645-1,85,REDACTED PERSONAL DATA,REDACTED PERSONAL DATA
Tendring DC,http://statistics.data.gov.uk/id/local-authority-district/22UN,Life Opportunities,8520 - Frinton & Walton Swimming Pool,4400 - Maintenance Under Service Agreements,14/08/2012,1049702-1,81.07,2112129 - Autobar Vending Services Ltd,FRINTON WALTON POOL
Tendring DC,http://statistics.data.gov.uk/id/local-authority-district/22UN,Life Opportunities,6160 - Princes Theatre,9352 - Opportunity Bookings,14/08/2012,2099365-1,1834.12,2112441 - Back to Broadway Ltd,Broadway Settlement
Tendring DC,http://statistics.data.gov.uk/id/local-authority-district/22UN,Life Opportunities,5860 - Manningtree Sports Centre,4040 - Equipment & Tools,14/08/2012,1049681-1,39.84,2106358 - Baker Ross Ltd,CRAFT SUPPLIER FOR HOLIDAY ACTIVITIES
Tendring DC,http://statistics.data.gov.uk/id/local-authority-district/22UN,Life Opportunities,5860 - Manningtree Sports Centre,4040 - Equipment & Tools,28/08/2012,1049773-1,25.5,2106358 - Baker Ross Ltd,ART & CRAFT SUPPLIES
Tendring DC,http://statistics.data.gov.uk/id/local-authority-district/22UN,Life Opportunities,6160 - Princes Theatre,4200 - Clothing & Uniforms,07/08/2012,1049582-1,6,2109068 - Ballantyne Edwards Ltd,PRINCES THEATRE EMB
Tendring DC,http://statistics.data.gov.uk/id/local-authority-district/22UN,Life Opportunities,6160 - Princes Theatre,4200 - Clothing & Uniforms,14/08/2012,2099124-1,12.84,2109068 - Ballantyne Edwards Ltd,Waistcoats
Tendring DC,http://statistics.data.gov.uk/id/local-authority-district/22UN,Life Opportunities,7620 - Air Show,5500 - Miscellaneous Expenses,21/08/2012,2099474-1,655.65,2109068 - Ballantyne Edwards Ltd,Airshow TShirts
Tendring DC,http://statistics.data.gov.uk/id/local-authority-district/22UN,Life Opportunities,8540 - Leisure Centre Clacton,4200 - Clothing & Uniforms,21/08/2012,2099563-1,364.33,2109068 - Ballantyne Edwards Ltd,
Tendring DC,http://statistics.data.gov.uk/id/local-authority-district/22UN,Life Opportunities,8540 - Leisure Centre Clacton,4300 - Printing & Stationery,14/08/2012,2099396-1,60.7,REDACTED PERSONAL DATA,REDACTED PERSONAL DATA
Tendring DC,http://statistics.data.gov.uk/id/local-authority-district/22UN,Life Opportunities,8540 - Leisure Centre Clacton,4300 - Printing & Stationery,14/08/2012,2099397-1,7.15,REDACTED PERSONAL DATA,REDACTED PERSONAL DATA
Tendring DC,http://statistics.data.gov.uk/id/local-authority-district/22UN,Life Opportunities,8540 - Leisure Centre Clacton,5196 - Credit Card Charges,21/08/2012,2099508-1,33.9,2100141 - Barclaycard Merchant Services,July
Tendring DC,http://statistics.data.gov.uk/id/local-authority-district/22UN,Life Opportunities,8540 - Leisure Centre Clacton,5196 - Credit Card Charges,21/08/2012,2099508-2,480.87,2100141 - Barclaycard Merchant Services,July
Tendring DC,http://statistics.data.gov.uk/id/local-authority-district/22UN,Life Opportunities,5820 - Harwich Sports Centre,5196 - Credit Card Charges,21/08/2012,2099509-1,16.95,2100141 - Barclaycard Merchant Services,PDQ - Barclaycard Payment
Tendring DC,http://statistics.data.gov.uk/id/local-authority-district/22UN,Life Opportunities,5820 - Harwich Sports Centre,5196 - Credit Card Charges,21/08/2012,2099509-2,22.89,2100141 - Barclaycard Merchant Services,PDQ - Barclaycard Payment
Tendring DC,http://statistics.data.gov.uk/id/local-authority-district/22UN,Life Opportunities,8510 - Dovercourt Swimming Pool & All Weather Facilities,5196 - Credit Card Charges,21/08/2012,2099510-1,126.83,2100141 - Barclaycard Merchant Services,Dovercourt Pool
Tendring DC,http://statistics.data.gov.uk/id/local-authority-district/22UN,Life Opportunities,8510 - Dovercourt Swimming Pool & All Weather Facilities,5196 - Credit Card Charges,21/08/2012,2099510-2,33.9,2100141 - Barclaycard Merchant Services,Dovercourt Pool
Tendring DC,http://statistics.data.gov.uk/id/local-authority-district/22UN,Life Opportunities,8520 - Frinton & Walton Swimming Pool,5196 - Credit Card Charges,21/08/2012,2099511-1,216.46,2100141 - Barclaycard Merchant Services,Frinton & Walton Pool
Tendring DC,http://statistics.data.gov.uk/id/local-authority-district/22UN,Life Opportunities,8520 - Frinton & Walton Swimming Pool,5196 - Credit Card Charges,21/08/2012,2099511-2,35.1,2100141 - Barclaycard Merchant Services,Frinton & Walton Pool
Tendring DC,http://statistics.data.gov.uk/id/local-authority-district/22UN,Life Opportunities,8520 - Frinton & Walton Swimming Pool,5196 - Credit Card Charges,21/08/2012,2099511-3,16.95,2100141 - Barclaycard Merchant Services,Frinton & Walton Pool
Tendring DC,http://statistics.data.gov.uk/id/local-authority-district/22UN,Life Opportunities,5140 - Homelessness,4683 - Other Homelessness Expenses,28/08/2012,2099851-1,700,REDACTED PERSONAL DATA,REDACTED PERSONAL DATA
Tendring DC,http://statistics.data.gov.uk/id/local-authority-district/22UN,Life Opportunities,H805 - Major Refurbishment of Heating,C200 - Main Contractor,21/08/2012,2099802-1,38684.47,2100155 - Blue Flame (Colchester) Ltd,HEATER REFURB CONTRACT 09/12
Tendring DC,http://statistics.data.gov.uk/id/local-authority-district/22UN,Life Opportunities,6160 - Princes Theatre,4080 - Materials & Consumables,21/08/2012,2099480-1,177.5,2100117 - Brian Birt Carpets Ltd,Red Carpet
Tendring DC,http://statistics.data.gov.uk/id/local-authority-district/22UN,Life Opportunities,5480 - HRA - Repair & Maintenance,2008 - Responsive Maintenance - Floor Wall And Ceiling Fi,28/08/2012,2099866-1,45,REDACTED PERSONAL DATA,REDACTED PERSONAL DATA
Tendring DC,http://statistics.data.gov.uk/id/local-authority-district/22UN,Life Opportunities,5240 - HRA - Managing Tenancies,6625 - Tenants Compensation Scheme,14/08/2012,2099306-1,5.7,REDACTED COMMERCIAL CONFIDENTIALITY,REDACTED COMMERCIAL CONFIDENTIALITY
Tendring DC,http://statistics.data.gov.uk/id/local-authority-district/22UN,Life Opportunities,5340 - HRA - Communal Central Heating,2304 - Energy Costs - Electricity,14/08/2012,2099401-1,1352.89,REDACTED PERSONAL DATA,REDACTED PERSONAL DATA
Tendring DC,http://statistics.data.gov.uk/id/local-authority-district/22UN,Life Opportunities,5360 - HRA - Sheltered Units,2304 - Energy Costs - Electricity,14/08/2012,2099401-2,543.34,REDACTED PERSONAL DATA,REDACTED PERSONAL DATA
Tendring DC,http://statistics.data.gov.uk/id/local-authority-district/22UN,Life Opportunities,5440 - HRA - Communal Electricity,2304 - Energy Costs - Electricity,14/08/2012,2099401-3,4706.17,REDACTED PERSONAL DATA,REDACTED PERSONAL DATA
Tendring DC,http://statistics.data.gov.uk/id/local-authority-district/22UN,Life Opportunities,5440 - HRA - Communal Electricity,2304 - Energy Costs - Electricity,14/08/2012,2099401-4,344.8,REDACTED PERSONAL DATA,REDACTED PERSONAL DATA
Tendring DC,http://statistics.data.gov.uk/id/local-authority-district/22UN,Life Opportunities,5440 - HRA - Communal Electricity,2304 - Energy Costs - Electricity,14/08/2012,2099401-5,-719.29,REDACTED PERSONAL DATA,REDACTED PERSONAL DATA
Tendring DC,http://statistics.data.gov.uk/id/local-authority-district/22UN,Life Opportunities,5340 - HRA - Communal Central Heating,2304 - Energy Costs - Electricity,14/08/2012,2099402-1,951.52,2100197 - British Gas Trading Ltd,Elec June 2012
Tendring DC,http://statistics.data.gov.uk/id/local-authority-district/22UN,Life Opportunities,5360 - HRA - Sheltered Units,2304 - Energy Costs - Electricity,14/08/2012,2099402-2,249.51,2100197 - British Gas Trading Ltd,Elec June 2012
Tendring DC,http://statistics.data.gov.uk/id/local-authority-district/22UN,Life Opportunities,5440 - HRA - Communal Electricity,2304 - Energy Costs - Electricity,14/08/2012,2099402-3,13000.22,2100197 - British Gas Trading Ltd,Elec June 2012
Tendring DC,http://statistics.data.gov.uk/id/local-authority-district/22UN,Life Opportunities,5440 - HRA - Communal Electricity,2304 - Energy Costs - Electricity,14/08/2012,2099402-4,286.44,2100197 - British Gas Trading Ltd,Elec June 2012
Tendring DC,http://statistics.data.gov.uk/id/local-authority-district/22UN,Life Opportunities,5440 - HRA - Communal Electricity,2304 - Energy Costs - Electricity,14/08/2012,2099402-5,-5829.88,2100197 - British Gas Trading Ltd,Elec June 2012
Tendring DC,http://statistics.data.gov.uk/id/local-authority-district/22UN,Life Opportunities,5440 - HRA - Communal Electricity,2304 - Energy Costs - Electricity,14/08/2012,2099402-6,-2942.94,2100197 - British Gas Trading Ltd,Elec June 2012
Tendring DC,http://statistics.data.gov.uk/id/local-authority-district/22UN,Life Opportunities,5340 - HRA - Communal Central Heating,2304 - Energy Costs - Electricity,21/08/2012,2099753-1,1196.56,2100197 - British Gas Trading Ltd,March 2012 Elec
Tendring DC,http://statistics.data.gov.uk/id/local-authority-district/22UN,Life Opportunities,5360 - HRA - Sheltered Units,2304 - Energy Costs - Electricity,21/08/2012,2099753-2,480.87,2100197 - British Gas Trading Ltd,March 2012 Elec
Tendring DC,http://statistics.data.gov.uk/id/local-authority-district/22UN,Life Opportunities,5440 - HRA - Communal Electricity,2304 - Energy Costs - Electricity,21/08/2012,2099753-3,10369.59,2100197 - British Gas Trading Ltd,March 2012 Elec
Tendring DC,http://statistics.data.gov.uk/id/local-authority-district/22UN,Life Opportunities,5440 - HRA - Communal Electricity,2304 - Energy Costs - Electricity,21/08/2012,2099753-4,901.73,2100197 - British Gas Trading Ltd,March 2012 Elec
Tendring DC,http://statistics.data.gov.uk/id/local-authority-district/22UN,Life Opportunities,5440 - HRA - Communal Electricity,2304 - Energy Costs - Electricity,21/08/2012,2099753-5,-1636.93,2100197 - British Gas Trading Ltd,March 2012 Elec
Tendring DC,http://statistics.data.gov.uk/id/local-authority-district/22UN,Life Opportunities,5340 - HRA - Communal Central Heating,2304 - Energy Costs - Electricity,21/08/2012,2099754-1,3771.35,2100197 - British Gas Trading Ltd,Elec April 2012
Tendring DC,http://statistics.data.gov.uk/id/local-authority-district/22UN,Life Opportunities,5360 - HRA - Sheltered Units,2304 - Energy Costs - Electricity,21/08/2012,2099754-2,752.76,2100197 - British Gas Trading Ltd,Elec April 2012
Tendring DC,http://statistics.data.gov.uk/id/local-authority-district/22UN,Life Opportunities,5440 - HRA - Communal Electricity,2304 - Energy Costs - Electricity,21/08/2012,2099754-3,9805.06,2100197 - British Gas Trading Ltd,Elec April 2012
Tendring DC,http://statistics.data.gov.uk/id/local-authority-district/22UN,Life Opportunities,5440 - HRA - Communal Electricity,2304 - Energy Costs - Electricity,21/08/2012,2099754-4,1187.94,2100197 - British Gas Trading Ltd,Elec April 2012
Tendring DC,http://statistics.data.gov.uk/id/local-authority-district/22UN,Life Opportunities,5440 - HRA - Communal Electricity,2304 - Energy Costs - Electricity,21/08/2012,2099754-5,-967.19,2100197 - British Gas Trading Ltd,Elec April 2012
Tendring DC,http://statistics.data.gov.uk/id/local-authority-district/22UN,Life Opportunities,5440 - HRA - Communal Electricity,2304 - Energy Costs - Electricity,21/08/2012,2099754-6,-114.04,2100197 - British Gas Trading Ltd,Elec April 2012
Tendring DC,http://statistics.data.gov.uk/id/local-authority-district/22UN,Life Opportunities,5340 - HRA - Communal Central Heating,2304 - Energy Costs - Electricity,21/08/2012,2099754-7,-735.13,2100197 - British Gas Trading Ltd,Elec April 2012
Tendring DC,http://statistics.data.gov.uk/id/local-authority-district/22UN,Life Opportunities,5360 - HRA - Sheltered Units,2304 - Energy Costs - Electricity,21/08/2012,2099754-8,-101.71,2100197 - British Gas Trading Ltd,Elec April 2012
Tendring DC,http://statistics.data.gov.uk/id/local-authority-district/22UN,Life Opportunities,7000 - CCTV,4718 - Fixed Communication Lines,14/08/2012,2099431-1,139.18,2100168 - British Telecommunications plc,BT Bill April - May 12
Tendring DC,http://statistics.data.gov.uk/id/local-authority-district/22UN,Life Opportunities,6740 - Careline,4710 - Telephones - Charges,28/08/2012,2099825-1,119.64,2100168 - British Telecommunications plc,BT 675927
Tendring DC,http://statistics.data.gov.uk/id/local-authority-district/22UN,Life Opportunities,6740 - Careline,4710 - Telephones - Charges,28/08/2012,2099826-1,58.89,2100168 - British Telecommunications plc,BT 670718
Tendring DC,http://statistics.data.gov.uk/id/local-authority-district/22UN,Life Opportunities,5360 - HRA - Sheltered Units,2700 - Cleaning Materials,07/08/2012,1049589-1,23.91,REDACTED COMMERCIAL CONFIDENTIALITY,REDACTED COMMERCIAL CONFIDENTIALITY
Tendring DC,http://statistics.data.gov.uk/id/local-authority-district/22UN,Life Opportunities,5360 - HRA - Sheltered Units,2700 - Cleaning Materials,07/08/2012,1049590-1,13.75,REDACTED COMMERCIAL CONFIDENTIALITY,REDACTED COMMERCIAL CONFIDENTIALITY
Tendring DC,http://statistics.data.gov.uk/id/local-authority-district/22UN,Life Opportunities,5360 - HRA - Sheltered Units,2700 - Cleaning Materials,07/08/2012,1049592-1,39.77,REDACTED COMMERCIAL CONFIDENTIALITY,REDACTED COMMERCIAL CONFIDENTIALITY
Tendring DC,http://statistics.data.gov.uk/id/local-authority-district/22UN,Life Opportunities,5360 - HRA - Sheltered Units,2700 - Cleaning Materials,07/08/2012,1049593-1,9.46,REDACTED COMMERCIAL CONFIDENTIALITY,REDACTED COMMERCIAL CONFIDENTIALITY
Tendring DC,http://statistics.data.gov.uk/id/local-authority-district/22UN,Life Opportunities,5360 - HRA - Sheltered Units,2700 - Cleaning Materials,07/08/2012,1049594-1,25.23,REDACTED COMMERCIAL CONFIDENTIALITY,REDACTED COMMERCIAL CONFIDENTIALITY
Tendring DC,http://statistics.data.gov.uk/id/local-authority-district/22UN,Life Opportunities,8520 - Frinton & Walton Swimming Pool,2700 - Cleaning Materials,14/08/2012,1049691-1,128.83,2101624 - Bunzl,FRINTON WALTON POOL
Tendring DC,http://statistics.data.gov.uk/id/local-authority-district/22UN,Life Opportunities,8520 - Frinton & Walton Swimming Pool,2700 - Cleaning Materials,14/08/2012,1049703-1,84.9,2101624 - Bunzl,FRINTON WALTON POOL
Tendring DC,http://statistics.data.gov.uk/id/local-authority-district/22UN,Life Opportunities,8520 - Frinton & Walton Swimming Pool,2700 - Cleaning Materials,28/08/2012,1049812-1,108.28,2101624 - Bunzl,FRINTON POOL
Tendring DC,http://statistics.data.gov.uk/id/local-authority-district/22UN,Life Opportunities,5860 - Manningtree Sports Centre,2700 - Cleaning Materials,28/08/2012,1049817-1,67.35,2101624 - Bunzl,CLEANING SUPPLIES
Tendring DC,http://statistics.data.gov.uk/id/local-authority-district/22UN,Life Opportunities,5860 - Manningtree Sports Centre,2700 - Cleaning Materials,28/08/2012,1049818-1,20.41,2101624 - Bunzl,CLEANING SUPPLIES
Tendring DC,http://statistics.data.gov.uk/id/local-authority-district/22UN,Life Opportunities,5360 - HRA - Sheltered Units,2700 - Cleaning Materials,28/08/2012,1049823-1,2.07,REDACTED COMMERCIAL CONFIDENTIALITY,REDACTED COMMERCIAL CONFIDENTIALITY
Tendring DC,http://statistics.data.gov.uk/id/local-authority-district/22UN,Life Opportunities,5360 - HRA - Sheltered Units,2700 - Cleaning Materials,28/08/2012,1049846-1,-9.46,REDACTED COMMERCIAL CONFIDENTIALITY,REDACTED COMMERCIAL CONFIDENTIALITY
Tendring DC,http://statistics.data.gov.uk/id/local-authority-district/22UN,Life Opportunities,8540 - Leisure Centre Clacton,2700 - Cleaning Materials,14/08/2012,2099113-1,154.36,2101624 - Bunzl,
Tendring DC,http://statistics.data.gov.uk/id/local-authority-district/22UN,Life Opportunities,5360 - HRA - Sheltered Units,2700 - Cleaning Materials,14/08/2012,2099177-1,15.96,REDACTED COMMERCIAL CONFIDENTIALITY,REDACTED COMMERCIAL CONFIDENTIALITY
Tendring DC,http://statistics.data.gov.uk/id/local-authority-district/22UN,Life Opportunities,5360 - HRA - Sheltered Units,2700 - Cleaning Materials,21/08/2012,2099454-1,32.68,REDACTED COMMERCIAL CONFIDENTIALITY,REDACTED COMMERCIAL CONFIDENTIALITY
Tendring DC,http://statistics.data.gov.uk/id/local-authority-district/22UN,Life Opportunities,5360 - HRA - Sheltered Units,2700 - Cleaning Materials,21/08/2012,2099456-1,35.83,REDACTED COMMERCIAL CONFIDENTIALITY,REDACTED COMMERCIAL CONFIDENTIALITY
Tendring DC,http://statistics.data.gov.uk/id/local-authority-district/22UN,Life Opportunities,8540 - Leisure Centre Clacton,2700 - Cleaning Materials,21/08/2012,2099562-1,254.41,REDACTED PERSONAL DATA,REDACTED PERSONAL DATA
Tendring DC,http://statistics.data.gov.uk/id/local-authority-district/22UN,Life Opportunities,8510 - Dovercourt Swimming Pool & All Weather Facilities,2700 - Cleaning Materials,21/08/2012,2099750-1,22.81,REDACTED PERSONAL DATA,REDACTED PERSONAL DATA
Tendring DC,http://statistics.data.gov.uk/id/local-authority-district/22UN,Life Opportunities,5880 - Management Of Sport & Leisure Facilities,2100 - Building Repairs,14/08/2012,2099354-1,648,2100240 - C & W Fencing Ltd,
Tendring DC,http://statistics.data.gov.uk/id/local-authority-district/22UN,Life Opportunities,8520 - Frinton & Walton Swimming Pool,2100 - Building Repairs,28/08/2012,1049808-1,111.33,2100280 - C H Lindsey & Son Ltd,FRINTON POOL
Tendring DC,http://statistics.data.gov.uk/id/local-authority-district/22UN,Life Opportunities,8520 - Frinton & Walton Swimming Pool,2100 - Building Repairs,28/08/2012,1049809-1,540.48,2100280 - C H Lindsey & Son Ltd,FRINTON POOL
Tendring DC,http://statistics.data.gov.uk/id/local-authority-district/22UN,Life Opportunities,8540 - Leisure Centre Clacton,2100 - Building Repairs,14/08/2012,2099099-1,145.28,2100280 - C H Lindsey & Son Ltd,
Tendring DC,http://statistics.data.gov.uk/id/local-authority-district/22UN,Life Opportunities,8540 - Leisure Centre Clacton,2100 - Building Repairs,14/08/2012,2099149-1,522.9,2100280 - C H Lindsey & Son Ltd,
Tendring DC,http://statistics.data.gov.uk/id/local-authority-district/22UN,Life Opportunities,8520 - Frinton & Walton Swimming Pool,2100 - Building Repairs,21/08/2012,2099461-1,321.7,2100280 - C H Lindsey & Son Ltd,Frinron & Walton Pool
Tendring DC,http://statistics.data.gov.uk/id/local-authority-district/22UN,Life Opportunities,8520 - Frinton & Walton Swimming Pool,2100 - Building Repairs,21/08/2012,2099608-1,-101.3,2100280 - C H Lindsey & Son Ltd,Frinton & Walton Pool
Tendring DC,http://statistics.data.gov.uk/id/local-authority-district/22UN,Life Opportunities,5800 - Brightlingsea Sports Centre,4000 - Furniture,07/08/2012,2099054-1,166.67,REDACTED PERSONAL DATA,REDACTED PERSONAL DATA
Tendring DC,http://statistics.data.gov.uk/id/local-authority-district/22UN,Life Opportunities,8540 - Leisure Centre Clacton,4400 - Maintenance Under Service Agreements,14/08/2012,2099101-1,318.36,2100281 - Cannon Hygiene,July Sept
Tendring DC,http://statistics.data.gov.uk/id/local-authority-district/22UN,Life Opportunities,6160 - Princes Theatre,4000 - Furniture,28/08/2012,2099886-1,500,2100202 - Capita Business Services Ltd,PAYE Maintenance
Tendring DC,http://statistics.data.gov.uk/id/local-authority-district/22UN,Life Opportunities,8540 - Leisure Centre Clacton,1700 - Training - Courses,28/08/2012,1049781-1,320,2112389 - Central YMCA,
Tendring DC,http://statistics.data.gov.uk/id/local-authority-district/22UN,Life Opportunities,8540 - Leisure Centre Clacton,1700 - Training - Courses,14/08/2012,2099100-1,82,2112389 - Central YMCA,
Tendring DC,http://statistics.data.gov.uk/id/local-authority-district/22UN,Life Opportunities,8540 - Leisure Centre Clacton,9275 - Lifestyles Plus - DD,14/08/2012,2099310-1,35.83,REDACTED PERSONAL DATA,REDACTED PERSONAL DATA
Tendring DC,http://statistics.data.gov.uk/id/local-authority-district/22UN,Life Opportunities,5260 - HRA - Rent Collection And Accounting,4635 - Cash Collection Contract,28/08/2012,1049821-1,151.37,REDACTED COMMERCIAL CONFIDENTIALITY,REDACTED COMMERCIAL CONFIDENTIALITY
Tendring DC,http://statistics.data.gov.uk/id/local-authority-district/22UN,Life Opportunities,8520 - Frinton & Walton Swimming Pool,1700 - Training - Courses,28/08/2012,1049810-1,41.67,2111888 - Chartered Institute for the Management of Sport and Physical Activity,FRINTON POOL
Tendring DC,http://statistics.data.gov.uk/id/local-authority-district/22UN,Life Opportunities,5240 - HRA - Managing Tenancies,5242 - Tenant Relations,07/08/2012,1049591-1,150,REDACTED COMMERCIAL CONFIDENTIALITY,REDACTED COMMERCIAL CONFIDENTIALITY
Tendring DC,http://statistics.data.gov.uk/id/local-authority-district/22UN,Life Opportunities,8540 - Leisure Centre Clacton,5500 - Miscellaneous Expenses,14/08/2012,2099095-1,256,2107364 - Chelmer Cash Registers,
Tendring DC,http://statistics.data.gov.uk/id/local-authority-district/22UN,Life Opportunities,5220 - HRA - Policy & Management,5253 - HRA Health & Safety Expenses,07/08/2012,1049596-1,44.5,REDACTED COMMERCIAL CONFIDENTIALITY,REDACTED COMMERCIAL CONFIDENTIALITY
Tendring DC,http://statistics.data.gov.uk/id/local-authority-district/22UN,Life Opportunities,1650 - Building Services Service Unit,4040 - Equipment & Tools,21/08/2012,1049731-1,320.88,REDACTED COMMERCIAL CONFIDENTIALITY,REDACTED COMMERCIAL CONFIDENTIALITY
Tendring DC,http://statistics.data.gov.uk/id/local-authority-district/22UN,Life Opportunities,8520 - Frinton & Walton Swimming Pool,4200 - Clothing & Uniforms,14/08/2012,2099168-1,165,2100205 - Chelmsford Safety Supplies Ltd,Frinton & Walton Pool
Tendring DC,http://statistics.data.gov.uk/id/local-authority-district/22UN,Life Opportunities,5800 - Brightlingsea Sports Centre,5160 - Advertising,14/08/2012,1049686-1,104,2100246 - Chronicle Publishing Services,CHRONICLE PUBLISHING
Tendring DC,http://statistics.data.gov.uk/id/local-authority-district/22UN,Life Opportunities,6160 - Princes Theatre,5308 - Ice Cream,07/08/2012,1049585-1,326.34,2108623 - CICC Ltd,ICE CREAM
Tendring DC,http://statistics.data.gov.uk/id/local-authority-district/22UN,Life Opportunities,8510 - Dovercourt Swimming Pool & All Weather Facilities,2100 - Building Repairs,14/08/2012,1049685-1,80.17,2100267 - City Electrical Factors Ltd Anglia Division,DOVERCOURT POOL
Tendring DC,http://statistics.data.gov.uk/id/local-authority-district/22UN,Life Opportunities,8540 - Leisure Centre Clacton,2100 - Building Repairs,14/08/2012,2099117-1,75.42,2100267 - City Electrical Factors Ltd Anglia Division,
Tendring DC,http://statistics.data.gov.uk/id/local-authority-district/22UN,Life Opportunities,8540 - Leisure Centre Clacton,2100 - Building Repairs,14/08/2012,2099117-2,1.93,2100267 - City Electrical Factors Ltd Anglia Division,
Tendring DC,http://statistics.data.gov.uk/id/local-authority-district/22UN,Life Opportunities,8540 - Leisure Centre Clacton,2100 - Building Repairs,14/08/2012,2099334-1,-43.17,2100267 - City Electrical Factors Ltd Anglia Division,
Tendring DC,http://statistics.data.gov.uk/id/local-authority-district/22UN,Life Opportunities,8540 - Leisure Centre Clacton,2100 - Building Repairs,14/08/2012,2099334-2,-1.11,2100267 - City Electrical Factors Ltd Anglia Division,
Tendring DC,http://statistics.data.gov.uk/id/local-authority-district/22UN,Life Opportunities,5365 - HRA - Colne Housing Soc Shel Units,4404 - Service Agreement - Foundry Court,14/08/2012,2099138-1,500,REDACTED COMMERCIAL CONFIDENTIALITY,REDACTED COMMERCIAL CONFIDENTIALITY
Tendring DC,http://statistics.data.gov.uk/id/local-authority-district/22UN,Life Opportunities,1650 - Building Services Service Unit,4040 - Equipment & Tools,21/08/2012,1049733-1,50,REDACTED COMMERCIAL CONFIDENTIALITY,REDACTED COMMERCIAL CONFIDENTIALITY
Tendring DC,http://statistics.data.gov.uk/id/local-authority-district/22UN,Life Opportunities,5260 - HRA - Rent Collection And Accounting,4460 - Legal & Professional Expenses,21/08/2012,2099514-1,920,REDACTED COMMERCIAL CONFIDENTIALITY,REDACTED COMMERCIAL CONFIDENTIALITY
Tendring DC,http://statistics.data.gov.uk/id/local-authority-district/22UN,Life Opportunities,6620 - Corporate Management - General,5190 - Bank Commission Charges,21/08/2012,2099514-2,2,REDACTED COMMERCIAL CONFIDENTIALITY,REDACTED COMMERCIAL CONFIDENTIALITY
Tendring DC,http://statistics.data.gov.uk/id/local-authority-district/22UN,Life Opportunities,5480 - HRA - Repair & Maintenance,2077 - Gas Service Contract  Servicing/Testing (Large Sca,14/08/2012,2099447-1,1538.76,2100314 - Cooper & Brome (Plumbing & Heating) Ltd,Large Scale Boilers
Tendring DC,http://statistics.data.gov.uk/id/local-authority-district/22UN,Life Opportunities,5480 - HRA - Repair & Maintenance,2078 - Gas Service Contract Other Refurbishment/Repairs (,14/08/2012,2099447-2,2092.13,2100314 - Cooper & Brome (Plumbing & Heating) Ltd,Large Scale Boilers
Tendring DC,http://statistics.data.gov.uk/id/local-authority-district/22UN,Life Opportunities,5340 - HRA - Communal Central Heating,2308 - Energy Costs - Gas (Including LPG),07/08/2012,1049640-1,4948.98,2104620 - Corona Energy Retail 4 Limited,SHU'S JUNE 2012
Tendring DC,http://statistics.data.gov.uk/id/local-authority-district/22UN,Life Opportunities,5360 - HRA - Sheltered Units,2308 - Energy Costs - Gas (Including LPG),07/08/2012,1049640-2,41.71,2104620 - Corona Energy Retail 4 Limited,SHU'S JUNE 2012
Tendring DC,http://statistics.data.gov.uk/id/local-authority-district/22UN,Life Opportunities,8540 - Leisure Centre Clacton,2308 - Energy Costs - Gas (Including LPG),14/08/2012,1049693-1,1444.01,2104620 - Corona Energy Retail 4 Limited,JUNE
Tendring DC,http://statistics.data.gov.uk/id/local-authority-district/22UN,Life Opportunities,8520 - Frinton & Walton Swimming Pool,2308 - Energy Costs - Gas (Including LPG),28/08/2012,1049766-1,2833.83,2104620 - Corona Energy Retail 4 Limited,FRINTON POOL
Tendring DC,http://statistics.data.gov.uk/id/local-authority-district/22UN,Life Opportunities,8510 - Dovercourt Swimming Pool & All Weather Facilities,2308 - Energy Costs - Gas (Including LPG),28/08/2012,1049767-1,2251.5,2104620 - Corona Energy Retail 4 Limited,DOVERCOURT POOL
Tendring DC,http://statistics.data.gov.uk/id/local-authority-district/22UN,Life Opportunities,8540 - Leisure Centre Clacton,2308 - Energy Costs - Gas (Including LPG),28/08/2012,1049816-1,1246.39,2104620 - Corona Energy Retail 4 Limited,JULY
Tendring DC,http://statistics.data.gov.uk/id/local-authority-district/22UN,Life Opportunities,5340 - HRA - Communal Central Heating,2308 - Energy Costs - Gas (Including LPG),28/08/2012,2099829-1,4176.83,REDACTED PERSONAL DATA,REDACTED PERSONAL DATA
Tendring DC,http://statistics.data.gov.uk/id/local-authority-district/22UN,Life Opportunities,5360 - HRA - Sheltered Units,2308 - Energy Costs - Gas (Including LPG),28/08/2012,2099829-2,36.8,REDACTED PERSONAL DATA,REDACTED PERSONAL DATA
Tendring DC,http://statistics.data.gov.uk/id/local-authority-district/22UN,Life Opportunities,5140 - Homelessness,4683 - Other Homelessness Expenses,14/08/2012,2099300-1,550,REDACTED PERSONAL DATA,REDACTED PERSONAL DATA
Tendring DC,http://statistics.data.gov.uk/id/local-authority-district/22UN,Life Opportunities,7620 - Air Show,4800 - Hospitality,21/08/2012,2099476-1,60,2102038 - Crispins Sandwich Bar Ltd,Buffet
Tendring DC,http://statistics.data.gov.uk/id/local-authority-district/22UN,Life Opportunities,H920 - DFGs,C400 - Grant payments,21/08/2012,2099560-1,589,REDACTED PERSONAL DATA,REDACTED PERSONAL DATA
Tendring DC,http://statistics.data.gov.uk/id/local-authority-district/22UN,Life Opportunities,6160 - Princes Theatre,4622 - Hired Services - Artistes and Production Companies,14/08/2012,2099129-1,4719.73,2103152 - Dance Foundation,Curtains Wide Settlement
Tendring DC,http://statistics.data.gov.uk/id/local-authority-district/22UN,Life Opportunities,6160 - Princes Theatre,4220 - Laundry,14/08/2012,2099122-1,29.1,2100397 - Danes of Colchester Ltd,Theatre Laundry
Tendring DC,http://statistics.data.gov.uk/id/local-authority-district/22UN,Life Opportunities,6160 - Princes Theatre,4220 - Laundry,14/08/2012,2099122-2,0.43,2100397 - Danes of Colchester Ltd,Theatre Laundry
Tendring DC,http://statistics.data.gov.uk/id/local-authority-district/22UN,Life Opportunities,6160 - Princes Theatre,4220 - Laundry,14/08/2012,2099123-1,158.23,2100397 - Danes of Colchester Ltd,Theatre Laundry
Tendring DC,http://statistics.data.gov.uk/id/local-authority-district/22UN,Life Opportunities,8540 - Leisure Centre Clacton,1700 - Training - Courses,14/08/2012,2099313-1,95,2105434 - David Benton,D Benton Training Exp
Tendring DC,http://statistics.data.gov.uk/id/local-authority-district/22UN,Life Opportunities,5140 - Homelessness,4683 - Other Homelessness Expenses,14/08/2012,2099301-1,920,REDACTED PERSONAL DATA,REDACTED PERSONAL DATA
Tendring DC,http://statistics.data.gov.uk/id/local-authority-district/22UN,Life Opportunities,6740 - Careline,5160 - Advertising,21/08/2012,2099545-1,930,2102946 - Dream 100.2fm,Dream 100 Advert
Tendring DC,http://statistics.data.gov.uk/id/local-authority-district/22UN,Life Opportunities,8510 - Dovercourt Swimming Pool & All Weather Facilities,4081 - Chemicals,28/08/2012,1049762-1,260,2100433 - East Essex Pool Care,DOVERCOURT POOL
Tendring DC,http://statistics.data.gov.uk/id/local-authority-district/22UN,Life Opportunities,8510 - Dovercourt Swimming Pool & All Weather Facilities,4081 - Chemicals,28/08/2012,1049763-1,390,2100433 - East Essex Pool Care,DOVERCOURT POOL
Tendring DC,http://statistics.data.gov.uk/id/local-authority-district/22UN,Life Opportunities,8510 - Dovercourt Swimming Pool & All Weather Facilities,2100 - Building Repairs,28/08/2012,1049764-1,1389.38,2100433 - East Essex Pool Care,DOVERCOURT POOL
Tendring DC,http://statistics.data.gov.uk/id/local-authority-district/22UN,Life Opportunities,8510 - Dovercourt Swimming Pool & All Weather Facilities,4081 - Chemicals,28/08/2012,1049845-1,-32,2100433 - East Essex Pool Care,DOVERCOURT POOL
Tendring DC,http://statistics.data.gov.uk/id/local-authority-district/22UN,Life Opportunities,8530 - Brightlingsea Swimming Pool,4081 - Chemicals,14/08/2012,2099139-1,1098.65,2100433 - East Essex Pool Care,
Tendring DC,http://statistics.data.gov.uk/id/local-authority-district/22UN,Life Opportunities,8530 - Brightlingsea Swimming Pool,4081 - Chemicals,14/08/2012,2099140-1,448,2100433 - East Essex Pool Care,
Tendring DC,http://statistics.data.gov.uk/id/local-authority-district/22UN,Life Opportunities,8530 - Brightlingsea Swimming Pool,4081 - Chemicals,14/08/2012,2099141-1,110,2100433 - East Essex Pool Care,
Tendring DC,http://statistics.data.gov.uk/id/local-authority-district/22UN,Life Opportunities,8530 - Brightlingsea Swimming Pool,4081 - Chemicals,14/08/2012,2099142-1,267,2100433 - East Essex Pool Care,
Tendring DC,http://statistics.data.gov.uk/id/local-authority-district/22UN,Life Opportunities,8530 - Brightlingsea Swimming Pool,4081 - Chemicals,14/08/2012,2099143-1,152,2100433 - East Essex Pool Care,
Tendring DC,http://statistics.data.gov.uk/id/local-authority-district/22UN,Life Opportunities,8530 - Brightlingsea Swimming Pool,4081 - Chemicals,14/08/2012,2099144-1,403,2100433 - East Essex Pool Care,
Tendring DC,http://statistics.data.gov.uk/id/local-authority-district/22UN,Life Opportunities,8530 - Brightlingsea Swimming Pool,4081 - Chemicals,14/08/2012,2099145-1,190,2100433 - East Essex Pool Care,
Tendring DC,http://statistics.data.gov.uk/id/local-authority-district/22UN,Life Opportunities,8540 - Leisure Centre Clacton,2100 - Building Repairs,14/08/2012,2099153-1,203.99,2100433 - East Essex Pool Care,
Tendring DC,http://statistics.data.gov.uk/id/local-authority-district/22UN,Life Opportunities,8540 - Leisure Centre Clacton,4081 - Chemicals,14/08/2012,2099154-1,267,2100433 - East Essex Pool Care,
Tendring DC,http://statistics.data.gov.uk/id/local-authority-district/22UN,Life Opportunities,8540 - Leisure Centre Clacton,4081 - Chemicals,14/08/2012,2099155-1,277.5,2100433 - East Essex Pool Care,
Tendring DC,http://statistics.data.gov.uk/id/local-authority-district/22UN,Life Opportunities,8540 - Leisure Centre Clacton,4081 - Chemicals,14/08/2012,2099156-1,17,2100433 - East Essex Pool Care,
Tendring DC,http://statistics.data.gov.uk/id/local-authority-district/22UN,Life Opportunities,8540 - Leisure Centre Clacton,4081 - Chemicals,14/08/2012,2099157-1,354.5,2100433 - East Essex Pool Care,
Tendring DC,http://statistics.data.gov.uk/id/local-authority-district/22UN,Life Opportunities,8540 - Leisure Centre Clacton,4081 - Chemicals,14/08/2012,2099158-1,188.5,2100433 - East Essex Pool Care,
Tendring DC,http://statistics.data.gov.uk/id/local-authority-district/22UN,Life Opportunities,8540 - Leisure Centre Clacton,4081 - Chemicals,14/08/2012,2099159-1,64.9,2100433 - East Essex Pool Care,
Tendring DC,http://statistics.data.gov.uk/id/local-authority-district/22UN,Life Opportunities,8510 - Dovercourt Swimming Pool & All Weather Facilities,4081 - Chemicals,28/08/2012,2099899-1,431.1,2100433 - East Essex Pool Care,Dovercourt Pool
Tendring DC,http://statistics.data.gov.uk/id/local-authority-district/22UN,Life Opportunities,8510 - Dovercourt Swimming Pool & All Weather Facilities,4081 - Chemicals,28/08/2012,2099900-1,193.9,2100433 - East Essex Pool Care,Dovercourt Pool
Tendring DC,http://statistics.data.gov.uk/id/local-authority-district/22UN,Life Opportunities,8510 - Dovercourt Swimming Pool & All Weather Facilities,4081 - Chemicals,28/08/2012,2099901-1,378.5,2100433 - East Essex Pool Care,Dovercourt Pool
Tendring DC,http://statistics.data.gov.uk/id/local-authority-district/22UN,Life Opportunities,8510 - Dovercourt Swimming Pool & All Weather Facilities,4081 - Chemicals,28/08/2012,2099902-1,76,2100433 - East Essex Pool Care,Dovercourt Pool
Tendring DC,http://statistics.data.gov.uk/id/local-authority-district/22UN,Life Opportunities,8540 - Leisure Centre Clacton,2304 - Energy Costs - Electricity,14/08/2012,2099160-1,6930.49,2105146 - EDF Energy 1 Ltd,July
Tendring DC,http://statistics.data.gov.uk/id/local-authority-district/22UN,Life Opportunities,8510 - Dovercourt Swimming Pool & All Weather Facilities,2304 - Energy Costs - Electricity,21/08/2012,2099469-1,2676.33,2105146 - EDF Energy 1 Ltd,Dovercourt Pool
Tendring DC,http://statistics.data.gov.uk/id/local-authority-district/22UN,Life Opportunities,5820 - Harwich Sports Centre,2100 - Building Repairs,14/08/2012,1049712-1,40,2103477 - Entrac Electrical,FIXED SOCKET
Tendring DC,http://statistics.data.gov.uk/id/local-authority-district/22UN,Life Opportunities,5820 - Harwich Sports Centre,2100 - Building Repairs,14/08/2012,2099146-1,127.26,2103477 - Entrac Electrical,Supply Lamps
Tendring DC,http://statistics.data.gov.uk/id/local-authority-district/22UN,Life Opportunities,5360 - HRA - Sheltered Units,2304 - Energy Costs - Electricity,07/08/2012,1049601-1,6.62,2107644 - Eon,WKD JULY 2012
Tendring DC,http://statistics.data.gov.uk/id/local-authority-district/22UN,Life Opportunities,5480 - HRA - Repair & Maintenance,2304 - Energy Costs - Electricity,28/08/2012,2099870-1,16.75,REDACTED PERSONAL DATA,REDACTED PERSONAL DATA
Tendring DC,http://statistics.data.gov.uk/id/local-authority-district/22UN,Life Opportunities,8540 - Leisure Centre Clacton,4400 - Maintenance Under Service Agreements,14/08/2012,2099171-1,272,2111548 - Essex Lift Services Ltd,
Tendring DC,http://statistics.data.gov.uk/id/local-authority-district/22UN,Life Opportunities,8520 - Frinton & Walton Swimming Pool,4400 - Maintenance Under Service Agreements,14/08/2012,1049715-1,63.25,2100531 - Euro-Fire Ltd,FRINTON WALTON POOL
Tendring DC,http://statistics.data.gov.uk/id/local-authority-district/22UN,Life Opportunities,5860 - Manningtree Sports Centre,4597 - Hired Services - Payments to Contractors,28/08/2012,1049768-1,120,2100531 - Euro-Fire Ltd,MANNINGTREE SERVICE
Tendring DC,http://statistics.data.gov.uk/id/local-authority-district/22UN,Life Opportunities,7520 - Tourism Publicity Marketing Promotion,5160 - Advertising,21/08/2012,2099477-1,200,2109598 - Expo Management,Coach Monthly
Tendring DC,http://statistics.data.gov.uk/id/local-authority-district/22UN,Life Opportunities,7600 - Tourist Information Centres,4307 - Attractions Leaflet Printing,21/08/2012,2099475-1,561,2112393 - Express Newspapers,
Tendring DC,http://statistics.data.gov.uk/id/local-authority-district/22UN,Life Opportunities,7600 - Tourist Information Centres,4307 - Attractions Leaflet Printing,28/08/2012,2099883-1,561,2112393 - Express Newspapers,Daily Express
Tendring DC,http://statistics.data.gov.uk/id/local-authority-district/22UN,Life Opportunities,5480 - HRA - Repair & Maintenance,2058 - Fire Alarms Repairs,07/08/2012,1049447-1,50,REDACTED PERSONAL DATA,REDACTED PERSONAL DATA
Tendring DC,http://statistics.data.gov.uk/id/local-authority-district/22UN,Life Opportunities,7600 - Tourist Information Centres,9356 - Commission Sales,14/08/2012,2099339-1,1049.4,REDACTED PERSONAL DATA,REDACTED PERSONAL DATA
Tendring DC,http://statistics.data.gov.uk/id/local-authority-district/22UN,Life Opportunities,8540 - Leisure Centre Clacton,2904 - Premises Licensing - Other,21/08/2012,2099524-1,284.68,2107806 - Fitness Professionals Ltd,Body Training System
Tendring DC,http://statistics.data.gov.uk/id/local-authority-district/22UN,Life Opportunities,5140 - Homelessness,4683 - Other Homelessness Expenses,14/08/2012,2099336-1,650,REDACTED PERSONAL DATA,REDACTED PERSONAL DATA
Tendring DC,http://statistics.data.gov.uk/id/local-authority-district/22UN,Life Opportunities,6740 - Careline,1700 - Training - Courses,07/08/2012,1049457-1,340,2107351 - Frinton Training Services Ltd,FIRST AID TRAINING-AUGUST
Tendring DC,http://statistics.data.gov.uk/id/local-authority-district/22UN,Life Opportunities,5140 - Homelessness,4683 - Other Homelessness Expenses,14/08/2012,2099299-1,376.82,REDACTED PERSONAL DATA,REDACTED PERSONAL DATA
Tendring DC,http://statistics.data.gov.uk/id/local-authority-district/22UN,Life Opportunities,5140 - Homelessness,4683 - Other Homelessness Expenses,28/08/2012,2099850-1,25,REDACTED PERSONAL DATA,REDACTED PERSONAL DATA
Tendring DC,http://statistics.data.gov.uk/id/local-authority-district/22UN,Life Opportunities,H920 - DFGs,C400 - Grant payments,21/08/2012,2099806-1,4798.3,REDACTED PERSONAL DATA,REDACTED PERSONAL DATA
Tendring DC,http://statistics.data.gov.uk/id/local-authority-district/22UN,Life Opportunities,7000 - CCTV,4400 - Maintenance Under Service Agreements,07/08/2012,1049475-1,60,2100546 - GCS Alarms,FIX FOUNTAIN CAM 2
Tendring DC,http://statistics.data.gov.uk/id/local-authority-district/22UN,Life Opportunities,7000 - CCTV,4400 - Maintenance Under Service Agreements,07/08/2012,1049476-1,1430,2100546 - GCS Alarms,GCS-CAMS 36 & 37
Tendring DC,http://statistics.data.gov.uk/id/local-authority-district/22UN,Life Opportunities,7000 - CCTV,4400 - Maintenance Under Service Agreements,07/08/2012,1049477-1,330,2100546 - GCS Alarms,CARRYOUT TESTS-FRINTON GATES
Tendring DC,http://statistics.data.gov.uk/id/local-authority-district/22UN,Life Opportunities,7000 - CCTV,4400 - Maintenance Under Service Agreements,07/08/2012,1049478-1,70,2100546 - GCS Alarms,CHECK FRINTON CAM 3
Tendring DC,http://statistics.data.gov.uk/id/local-authority-district/22UN,Life Opportunities,7000 - CCTV,4400 - Maintenance Under Service Agreements,07/08/2012,1049479-1,50,2100546 - GCS Alarms,CHECK BELSIZE AVE-38
Tendring DC,http://statistics.data.gov.uk/id/local-authority-district/22UN,Life Opportunities,7000 - CCTV,4400 - Maintenance Under Service Agreements,07/08/2012,1049480-1,50,2100546 - GCS Alarms,CHECK BELSIZE PTZ
Tendring DC,http://statistics.data.gov.uk/id/local-authority-district/22UN,Life Opportunities,6740 - Careline,4400 - Maintenance Under Service Agreements,28/08/2012,1049843-1,60,2100546 - GCS Alarms,REPAIR OLD PIER STREET
Tendring DC,http://statistics.data.gov.uk/id/local-authority-district/22UN,Life Opportunities,7000 - CCTV,4400 - Maintenance Under Service Agreements,28/08/2012,1049844-1,50,2100546 - GCS Alarms,GCS
Tendring DC,http://statistics.data.gov.uk/id/local-authority-district/22UN,Life Opportunities,8540 - Leisure Centre Clacton,2100 - Building Repairs,14/08/2012,2099115-1,159,2100546 - GCS Alarms,
Tendring DC,http://statistics.data.gov.uk/id/local-authority-district/22UN,Life Opportunities,7000 - CCTV,4400 - Maintenance Under Service Agreements,14/08/2012,2099428-1,80,REDACTED PERSONAL DATA,REDACTED PERSONAL DATA
Tendring DC,http://statistics.data.gov.uk/id/local-authority-district/22UN,Life Opportunities,7000 - CCTV,4400 - Maintenance Under Service Agreements,21/08/2012,2099489-1,50,2100546 - GCS Alarms,
Tendring DC,http://statistics.data.gov.uk/id/local-authority-district/22UN,Life Opportunities,7000 - CCTV,4400 - Maintenance Under Service Agreements,21/08/2012,2099490-1,50,2100546 - GCS Alarms,Repair Network Viewer
Tendring DC,http://statistics.data.gov.uk/id/local-authority-district/22UN,Life Opportunities,7000 - CCTV,4400 - Maintenance Under Service Agreements,21/08/2012,2099491-1,50,2100546 - GCS Alarms,Repair Dovercourt Cam 1
Tendring DC,http://statistics.data.gov.uk/id/local-authority-district/22UN,Life Opportunities,7520 - Tourism Publicity Marketing Promotion,5160 - Advertising,28/08/2012,2099859-1,700,2100546 - GCS Alarms,Fit Banners for Airshow
Tendring DC,http://statistics.data.gov.uk/id/local-authority-district/22UN,Life Opportunities,8540 - Leisure Centre Clacton,2900 - Premises Licensing - Public Entertainment,21/08/2012,2099525-1,50,2110331 - GMS Recordings,Music Broadcasting - Lifestyles
Tendring DC,http://statistics.data.gov.uk/id/local-authority-district/22UN,Life Opportunities,8540 - Leisure Centre Clacton,4597 - Hired Services - Payments to Contractors,21/08/2012,2099547-1,54,2112422 - Goodies Ceramic Art,
Tendring DC,http://statistics.data.gov.uk/id/local-authority-district/22UN,Life Opportunities,8540 - Leisure Centre Clacton,2700 - Cleaning Materials,14/08/2012,2099170-1,72.1,2100509 - Granwax Products Ltd,
Tendring DC,http://statistics.data.gov.uk/id/local-authority-district/22UN,Life Opportunities,5480 - HRA - Repair & Maintenance,2017 - Mechanical Equipment /Extract Fans,28/08/2012,2099867-1,435,REDACTED PERSONAL DATA,REDACTED PERSONAL DATA
Tendring DC,http://statistics.data.gov.uk/id/local-authority-district/22UN,Life Opportunities,5480 - HRA - Repair & Maintenance,2017 - Mechanical Equipment /Extract Fans,28/08/2012,2099868-1,60,REDACTED PERSONAL DATA,REDACTED PERSONAL DATA
Tendring DC,http://statistics.data.gov.uk/id/local-authority-district/22UN,Life Opportunities,5480 - HRA - Repair & Maintenance,2017 - Mechanical Equipment /Extract Fans,28/08/2012,2099869-1,50,REDACTED PERSONAL DATA,REDACTED PERSONAL DATA
Tendring DC,http://statistics.data.gov.uk/id/local-authority-district/22UN,Life Opportunities,H920 - DFGs,C400 - Grant payments,28/08/2012,2099876-1,1800,REDACTED PERSONAL DATA,REDACTED PERSONAL DATA
Tendring DC,http://statistics.data.gov.uk/id/local-authority-district/22UN,Life Opportunities,5240 - HRA - Managing Tenancies,5242 - Tenant Relations,07/08/2012,1049578-1,44,REDACTED PERSONAL DATA,REDACTED PERSONAL DATA
Tendring DC,http://statistics.data.gov.uk/id/local-authority-district/22UN,Life Opportunities,5240 - HRA - Managing Tenancies,5242 - Tenant Relations,14/08/2012,2099188-1,98,REDACTED PERSONAL DATA,REDACTED PERSONAL DATA
Tendring DC,http://statistics.data.gov.uk/id/local-authority-district/22UN,Life Opportunities,7600 - Tourist Information Centres,9356 - Commission Sales,07/08/2012,1049565-1,986.57,2100635 - Hedingham & District Omnibuses Ltd,JULY COMMISSION
Tendring DC,http://statistics.data.gov.uk/id/local-authority-district/22UN,Life Opportunities,8510 - Dovercourt Swimming Pool & All Weather Facilities,2100 - Building Repairs,21/08/2012,2099466-1,34,2100645 - Helmsman,Dovercourt Pool
Tendring DC,http://statistics.data.gov.uk/id/local-authority-district/22UN,Life Opportunities,5260 - HRA - Rent Collection And Accounting,4460 - Legal & Professional Expenses,28/08/2012,2099843-1,110,REDACTED COMMERCIAL CONFIDENTIALITY,REDACTED COMMERCIAL CONFIDENTIALITY
Tendring DC,http://statistics.data.gov.uk/id/local-authority-district/22UN,Life Opportunities,5260 - HRA - Rent Collection And Accounting,4460 - Legal & Professional Expenses,28/08/2012,2099845-1,110,REDACTED COMMERCIAL CONFIDENTIALITY,REDACTED COMMERCIAL CONFIDENTIALITY
Tendring DC,http://statistics.data.gov.uk/id/local-authority-district/22UN,Life Opportunities,8540 - Leisure Centre Clacton,2100 - Building Repairs,28/08/2012,1049805-1,285,2111080 - Homecraft Contracts Electrical Ltd,
Tendring DC,http://statistics.data.gov.uk/id/local-authority-district/22UN,Life Opportunities,8540 - Leisure Centre Clacton,2100 - Building Repairs,28/08/2012,1049806-1,113,2111080 - Homecraft Contracts Electrical Ltd,
Tendring DC,http://statistics.data.gov.uk/id/local-authority-district/22UN,Life Opportunities,8520 - Frinton & Walton Swimming Pool,2100 - Building Repairs,14/08/2012,2099165-1,30,2111080 - Homecraft Contracts Electrical Ltd,Frinton & Walton Pool
Tendring DC,http://statistics.data.gov.uk/id/local-authority-district/22UN,Life Opportunities,8520 - Frinton & Walton Swimming Pool,2100 - Building Repairs,14/08/2012,2099166-1,90.5,2101848 - Homecraft Contracts Ltd,Frinton & Walton Pool
Tendring DC,http://statistics.data.gov.uk/id/local-authority-district/22UN,Life Opportunities,8510 - Dovercourt Swimming Pool & All Weather Facilities,2100 - Building Repairs,21/08/2012,2099464-1,138.5,2101848 - Homecraft Contracts Ltd,Dovercourt Pool
Tendring DC,http://statistics.data.gov.uk/id/local-authority-district/22UN,Life Opportunities,8510 - Dovercourt Swimming Pool & All Weather Facilities,2100 - Building Repairs,21/08/2012,2099465-1,100,2101848 - Homecraft Contracts Ltd,Dovercourt Pool
Tendring DC,http://statistics.data.gov.uk/id/local-authority-district/22UN,Life Opportunities,H920 - DFGs,C400 - Grant payments,21/08/2012,2099768-1,4439.74,REDACTED PERSONAL DATA,REDACTED PERSONAL DATA
Tendring DC,http://statistics.data.gov.uk/id/local-authority-district/22UN,Life Opportunities,8510 - Dovercourt Swimming Pool & All Weather Facilities,2100 - Building Repairs,21/08/2012,2099632-1,6.25,2100677 - Homecraft DIY Ltd,Dovercourt Pool
Tendring DC,http://statistics.data.gov.uk/id/local-authority-district/22UN,Life Opportunities,5240 - HRA - Managing Tenancies,4460 - Legal & Professional Expenses,28/08/2012,1049824-1,3895,REDACTED COMMERCIAL CONFIDENTIALITY,REDACTED COMMERCIAL CONFIDENTIALITY
Tendring DC,http://statistics.data.gov.uk/id/local-authority-district/22UN,Life Opportunities,5480 - HRA - Repair & Maintenance,2014 - Decoration Allowances,21/08/2012,2099644-1,278.29,REDACTED PERSONAL DATA,REDACTED PERSONAL DATA
Tendring DC,http://statistics.data.gov.uk/id/local-authority-district/22UN,Life Opportunities,8540 - Leisure Centre Clacton,2100 - Building Repairs,28/08/2012,1049815-1,42.05,2112464 - Indoor Sport Services Ltd,
Tendring DC,http://statistics.data.gov.uk/id/local-authority-district/22UN,Life Opportunities,5800 - Brightlingsea Sports Centre,1700 - Training - Courses,14/08/2012,2099376-1,229.17,2112471 - Innervate Training,Innervate Training
Tendring DC,http://statistics.data.gov.uk/id/local-authority-district/22UN,Life Opportunities,5800 - Brightlingsea Sports Centre,1700 - Training - Courses,14/08/2012,2099376-2,90,2112471 - Innervate Training,Innervate Training
Tendring DC,http://statistics.data.gov.uk/id/local-authority-district/22UN,Life Opportunities,1000 - Community Services Service Unit,4448 - Confidential Waste,14/08/2012,2099433-1,25.85,2110936 - IPPlus (UK) Ltd,50lb Confidential Waste
Tendring DC,http://statistics.data.gov.uk/id/local-authority-district/22UN,Life Opportunities,8520 - Frinton & Walton Swimming Pool,1700 - Training - Courses,14/08/2012,2099167-1,96,2100724 - IQL UK Ltd,Frinton & Walton Pool
Tendring DC,http://statistics.data.gov.uk/id/local-authority-district/22UN,Life Opportunities,8520 - Frinton & Walton Swimming Pool,9228 - Swimming Lessons,14/08/2012,2099307-1,43,REDACTED COMMERCIAL CONFIDENTIALITY,REDACTED COMMERCIAL CONFIDENTIALITY
Tendring DC,http://statistics.data.gov.uk/id/local-authority-district/22UN,Life Opportunities,8520 - Frinton & Walton Swimming Pool,4400 - Maintenance Under Service Agreements,14/08/2012,1049717-1,50,2111218 - J Cripps,FRINTON WALTON POOL
Tendring DC,http://statistics.data.gov.uk/id/local-authority-district/22UN,Life Opportunities,8520 - Frinton & Walton Swimming Pool,5300 - Resaleable Items,14/08/2012,1049700-1,427.18,2100755 - J P Lennard Ltd,FRINTON WALTON POOL
Tendring DC,http://statistics.data.gov.uk/id/local-authority-district/22UN,Life Opportunities,8520 - Frinton & Walton Swimming Pool,5300 - Resaleable Items,14/08/2012,1049701-1,315.58,2100755 - J P Lennard Ltd,FRINTON WALTON POOL
Tendring DC,http://statistics.data.gov.uk/id/local-authority-district/22UN,Life Opportunities,8540 - Leisure Centre Clacton,4200 - Clothing & Uniforms,14/08/2012,2099106-1,7,2100755 - J P Lennard Ltd,
Tendring DC,http://statistics.data.gov.uk/id/local-authority-district/22UN,Life Opportunities,8540 - Leisure Centre Clacton,2100 - Building Repairs,14/08/2012,2099107-1,131.3,2100755 - J P Lennard Ltd,
Tendring DC,http://statistics.data.gov.uk/id/local-authority-district/22UN,Life Opportunities,8540 - Leisure Centre Clacton,4000 - Furniture,14/08/2012,2099108-1,201.35,2100755 - J P Lennard Ltd,
Tendring DC,http://statistics.data.gov.uk/id/local-authority-district/22UN,Life Opportunities,8540 - Leisure Centre Clacton,4000 - Furniture,14/08/2012,2099109-1,73.06,2100755 - J P Lennard Ltd,
Tendring DC,http://statistics.data.gov.uk/id/local-authority-district/22UN,Life Opportunities,8540 - Leisure Centre Clacton,4200 - Clothing & Uniforms,14/08/2012,2099110-1,88.7,2100755 - J P Lennard Ltd,
Tendring DC,http://statistics.data.gov.uk/id/local-authority-district/22UN,Life Opportunities,8540 - Leisure Centre Clacton,2100 - Building Repairs,14/08/2012,2099111-1,200.7,2100755 - J P Lennard Ltd,
Tendring DC,http://statistics.data.gov.uk/id/local-authority-district/22UN,Life Opportunities,8560 - Happy Valley Recreation Ground Pitch & Putt,4040 - Equipment & Tools,14/08/2012,2099150-1,43.2,2100755 - J P Lennard Ltd,
Tendring DC,http://statistics.data.gov.uk/id/local-authority-district/22UN,Life Opportunities,8540 - Leisure Centre Clacton,2100 - Building Repairs,14/08/2012,2099151-1,41.15,2100755 - J P Lennard Ltd,
Tendring DC,http://statistics.data.gov.uk/id/local-authority-district/22UN,Life Opportunities,8540 - Leisure Centre Clacton,5300 - Resaleable Items,01/08/2012,2099163-1,98.94,2100755 - J P Lennard Ltd,
Tendring DC,http://statistics.data.gov.uk/id/local-authority-district/22UN,Life Opportunities,8540 - Leisure Centre Clacton,5300 - Resaleable Items,01/08/2012,2099163-2,-6.96,2100755 - J P Lennard Ltd,
Tendring DC,http://statistics.data.gov.uk/id/local-authority-district/22UN,Life Opportunities,8540 - Leisure Centre Clacton,5300 - Resaleable Items,14/08/2012,2099164-1,57.2,2100755 - J P Lennard Ltd,
Tendring DC,http://statistics.data.gov.uk/id/local-authority-district/22UN,Life Opportunities,8540 - Leisure Centre Clacton,5300 - Resaleable Items,14/08/2012,2099164-2,41.74,2100755 - J P Lennard Ltd,
Tendring DC,http://statistics.data.gov.uk/id/local-authority-district/22UN,Life Opportunities,8520 - Frinton & Walton Swimming Pool,5300 - Resaleable Items,28/08/2012,2099897-1,304.65,2100755 - J P Lennard Ltd,Frinton & Walton Pool
Tendring DC,http://statistics.data.gov.uk/id/local-authority-district/22UN,Life Opportunities,8520 - Frinton & Walton Swimming Pool,4200 - Clothing & Uniforms,28/08/2012,2099898-1,81.95,2100755 - J P Lennard Ltd,Frinton & Walton Pool
Tendring DC,http://statistics.data.gov.uk/id/local-authority-district/22UN,Life Opportunities,8540 - Leisure Centre Clacton,4597 - Hired Services - Payments to Contractors,14/08/2012,2099162-1,150,REDACTED PERSONAL DATA,REDACTED PERSONAL DATA
Tendring DC,http://statistics.data.gov.uk/id/local-authority-district/22UN,Life Opportunities,5140 - Homelessness,4683 - Other Homelessness Expenses,28/08/2012,2099849-1,695,REDACTED PERSONAL DATA,REDACTED PERSONAL DATA
Tendring DC,http://statistics.data.gov.uk/id/local-authority-district/22UN,Life Opportunities,H860 - Disabled Adaptations,C200 - Main Contractor,21/08/2012,1049734-1,3200,REDACTED PERSONAL DATA,REDACTED PERSONAL DATA
Tendring DC,http://statistics.data.gov.uk/id/local-authority-district/22UN,Life Opportunities,H860 - Disabled Adaptations,C200 - Main Contractor,21/08/2012,1049734-2,2495,REDACTED PERSONAL DATA,REDACTED PERSONAL DATA
Tendring DC,http://statistics.data.gov.uk/id/local-authority-district/22UN,Life Opportunities,5480 - HRA - Repair & Maintenance,2018 - Other Responsive Repairs,21/08/2012,2099630-1,3990,REDACTED PERSONAL DATA,REDACTED PERSONAL DATA
Tendring DC,http://statistics.data.gov.uk/id/local-authority-district/22UN,Life Opportunities,6160 - Princes Theatre,2100 - Building Repairs,21/08/2012,2099631-1,50,REDACTED PERSONAL DATA,REDACTED PERSONAL DATA
Tendring DC,http://statistics.data.gov.uk/id/local-authority-district/22UN,Life Opportunities,8540 - Leisure Centre Clacton,4597 - Hired Services - Payments to Contractors,14/08/2012,2099312-1,240,REDACTED PERSONAL DATA,REDACTED PERSONAL DATA
Tendring DC,http://statistics.data.gov.uk/id/local-authority-district/22UN,Life Opportunities,H920 - DFGs,C400 - Grant payments,21/08/2012,2099767-1,3716.15,REDACTED PERSONAL DATA,REDACTED PERSONAL DATA
Tendring DC,http://statistics.data.gov.uk/id/local-authority-district/22UN,Life Opportunities,5240 - HRA - Managing Tenancies,5242 - Tenant Relations,07/08/2012,1049561-1,10,REDACTED PERSONAL DATA,REDACTED PERSONAL DATA
Tendring DC,http://statistics.data.gov.uk/id/local-authority-district/22UN,Life Opportunities,5240 - HRA - Managing Tenancies,5242 - Tenant Relations,28/08/2012,2099838-1,10,REDACTED PERSONAL DATA,REDACTED PERSONAL DATA
Tendring DC,http://statistics.data.gov.uk/id/local-authority-district/22UN,Life Opportunities,8540 - Leisure Centre Clacton,5500 - Miscellaneous Expenses,14/08/2012,1049695-1,74.7,2107243 - Juice for Life Ltd,W/E 22-7-12
Tendring DC,http://statistics.data.gov.uk/id/local-authority-district/22UN,Life Opportunities,8540 - Leisure Centre Clacton,4597 - Hired Services - Payments to Contractors,14/08/2012,1049696-1,217.5,2107243 - Juice for Life Ltd,W/E 22-7-12
Tendring DC,http://statistics.data.gov.uk/id/local-authority-district/22UN,Life Opportunities,8540 - Leisure Centre Clacton,4597 - Hired Services - Payments to Contractors,14/08/2012,1049697-1,212.5,2107243 - Juice for Life Ltd,W/E 15-7-12
Tendring DC,http://statistics.data.gov.uk/id/local-authority-district/22UN,Life Opportunities,8540 - Leisure Centre Clacton,5500 - Miscellaneous Expenses,14/08/2012,1049698-1,42.75,2107243 - Juice for Life Ltd,W/E 15-7-12
Tendring DC,http://statistics.data.gov.uk/id/local-authority-district/22UN,Life Opportunities,8540 - Leisure Centre Clacton,5500 - Miscellaneous Expenses,14/08/2012,2099092-1,65.15,2107243 - Juice for Life Ltd,w/e 8-7-12
Tendring DC,http://statistics.data.gov.uk/id/local-authority-district/22UN,Life Opportunities,8540 - Leisure Centre Clacton,4597 - Hired Services - Payments to Contractors,14/08/2012,2099093-1,233.75,2107243 - Juice for Life Ltd,w/e 08-7-12
Tendring DC,http://statistics.data.gov.uk/id/local-authority-district/22UN,Life Opportunities,8540 - Leisure Centre Clacton,5500 - Miscellaneous Expenses,14/08/2012,2099147-1,57.65,2107243 - Juice for Life Ltd,w/e 29/7/12
Tendring DC,http://statistics.data.gov.uk/id/local-authority-district/22UN,Life Opportunities,8540 - Leisure Centre Clacton,4597 - Hired Services - Payments to Contractors,14/08/2012,2099148-1,206.25,2107243 - Juice for Life Ltd,w/e 29/7/12
Tendring DC,http://statistics.data.gov.uk/id/local-authority-district/22UN,Life Opportunities,8540 - Leisure Centre Clacton,5500 - Miscellaneous Expenses,21/08/2012,2099603-1,45.1,2107243 - Juice for Life Ltd,w/e 5-8-12
Tendring DC,http://statistics.data.gov.uk/id/local-authority-district/22UN,Life Opportunities,8540 - Leisure Centre Clacton,4597 - Hired Services - Payments to Contractors,21/08/2012,2099604-1,216.25,2107243 - Juice for Life Ltd,w/e 5-8-12
Tendring DC,http://statistics.data.gov.uk/id/local-authority-district/22UN,Life Opportunities,5480 - HRA - Repair & Maintenance,2064 - Domestic Appliance Repairs,07/08/2012,1049636-1,40,REDACTED PERSONAL DATA,REDACTED PERSONAL DATA
Tendring DC,http://statistics.data.gov.uk/id/local-authority-district/22UN,Life Opportunities,5480 - HRA - Repair & Maintenance,2064 - Domestic Appliance Repairs,07/08/2012,1049637-1,40,REDACTED PERSONAL DATA,REDACTED PERSONAL DATA
Tendring DC,http://statistics.data.gov.uk/id/local-authority-district/22UN,Life Opportunities,5480 - HRA - Repair & Maintenance,2064 - Domestic Appliance Repairs,07/08/2012,1049638-1,45,REDACTED PERSONAL DATA,REDACTED PERSONAL DATA
Tendring DC,http://statistics.data.gov.uk/id/local-authority-district/22UN,Life Opportunities,5480 - HRA - Repair & Maintenance,2064 - Domestic Appliance Repairs,07/08/2012,1049639-1,70,REDACTED PERSONAL DATA,REDACTED PERSONAL DATA
Tendring DC,http://statistics.data.gov.uk/id/local-authority-district/22UN,Life Opportunities,8540 - Leisure Centre Clacton,4597 - Hired Services - Payments to Contractors,14/08/2012,2099161-1,135,REDACTED PERSONAL DATA,REDACTED PERSONAL DATA
Tendring DC,http://statistics.data.gov.uk/id/local-authority-district/22UN,Life Opportunities,5480 - HRA - Repair & Maintenance,2018 - Other Responsive Repairs,28/08/2012,2099863-1,275,REDACTED PERSONAL DATA,REDACTED PERSONAL DATA
Tendring DC,http://statistics.data.gov.uk/id/local-authority-district/22UN,Life Opportunities,5480 - HRA - Repair & Maintenance,2018 - Other Responsive Repairs,28/08/2012,2099864-1,275,REDACTED PERSONAL DATA,REDACTED PERSONAL DATA
Tendring DC,http://statistics.data.gov.uk/id/local-authority-district/22UN,Life Opportunities,6160 - Princes Theatre,4622 - Hired Services - Artistes and Production Companies,14/08/2012,2099390-1,9794.2,2100789 - Ken Dodd,Ken Dodd
Tendring DC,http://statistics.data.gov.uk/id/local-authority-district/22UN,Life Opportunities,5820 - Harwich Sports Centre,2308 - Energy Costs - Gas (Including LPG),28/08/2012,1049774-1,118.37,2105075 - Kent County Council,GAS UTILITY BILL
Tendring DC,http://statistics.data.gov.uk/id/local-authority-district/22UN,Life Opportunities,5820 - Harwich Sports Centre,5300 - Resaleable Items,21/08/2012,2099457-1,149.8,2100870 - Kingswood Leisure Services Ltd,Re-sale Sports Equipment
Tendring DC,http://statistics.data.gov.uk/id/local-authority-district/22UN,Life Opportunities,5360 - HRA - Sheltered Units,4601 - Hired services - Cleaning,07/08/2012,1049597-1,357,REDACTED COMMERCIAL CONFIDENTIALITY,REDACTED COMMERCIAL CONFIDENTIALITY
Tendring DC,http://statistics.data.gov.uk/id/local-authority-district/22UN,Life Opportunities,5360 - HRA - Sheltered Units,4601 - Hired services - Cleaning,07/08/2012,1049598-1,748,REDACTED COMMERCIAL CONFIDENTIALITY,REDACTED COMMERCIAL CONFIDENTIALITY
Tendring DC,http://statistics.data.gov.uk/id/local-authority-district/22UN,Life Opportunities,5360 - HRA - Sheltered Units,4601 - Hired services - Cleaning,07/08/2012,1049599-1,588.88,REDACTED COMMERCIAL CONFIDENTIALITY,REDACTED COMMERCIAL CONFIDENTIALITY
Tendring DC,http://statistics.data.gov.uk/id/local-authority-district/22UN,Life Opportunities,5860 - Manningtree Sports Centre,4601 - Hired services - Cleaning,28/08/2012,1049776-1,140.25,2100851 - KO-SHEEN Contract Cleaning Ltd,CONTRACT CLEANING JULY 2012
Tendring DC,http://statistics.data.gov.uk/id/local-authority-district/22UN,Life Opportunities,5360 - HRA - Sheltered Units,4601 - Hired services - Cleaning,14/08/2012,2099190-1,374,REDACTED COMMERCIAL CONFIDENTIALITY,REDACTED COMMERCIAL CONFIDENTIALITY
Tendring DC,http://statistics.data.gov.uk/id/local-authority-district/22UN,Life Opportunities,5360 - HRA - Sheltered Units,4601 - Hired services - Cleaning,14/08/2012,2099191-1,588.88,REDACTED COMMERCIAL CONFIDENTIALITY,REDACTED COMMERCIAL CONFIDENTIALITY
Tendring DC,http://statistics.data.gov.uk/id/local-authority-district/22UN,Life Opportunities,5360 - HRA - Sheltered Units,4601 - Hired services - Cleaning,21/08/2012,2099452-1,824.5,REDACTED COMMERCIAL CONFIDENTIALITY,REDACTED COMMERCIAL CONFIDENTIALITY
Tendring DC,http://statistics.data.gov.uk/id/local-authority-district/22UN,Life Opportunities,8510 - Dovercourt Swimming Pool & All Weather Facilities,9250 - Premium Option Card,14/08/2012,2099340-1,5.83,REDACTED PERSONAL DATA,REDACTED PERSONAL DATA
Tendring DC,http://statistics.data.gov.uk/id/local-authority-district/22UN,Life Opportunities,7680 - Tour De Tendring,5500 - Miscellaneous Expenses,14/08/2012,2099128-1,391,2110881 - Laban Brown Design Ltd,Cycling Map Reprint
Tendring DC,http://statistics.data.gov.uk/id/local-authority-district/22UN,Life Opportunities,5480 - HRA - Repair & Maintenance,2018 - Other Responsive Repairs,14/08/2012,2099363-1,220,REDACTED PERSONAL DATA,REDACTED PERSONAL DATA
Tendring DC,http://statistics.data.gov.uk/id/local-authority-district/22UN,Life Opportunities,5800 - Brightlingsea Sports Centre,4000 - Furniture,14/08/2012,2099375-1,43,2103500 - Liquidline,Liquidline
Tendring DC,http://statistics.data.gov.uk/id/local-authority-district/22UN,Life Opportunities,5800 - Brightlingsea Sports Centre,4000 - Furniture,14/08/2012,2099377-1,120,2103500 - Liquidline,Liquidline
Tendring DC,http://statistics.data.gov.uk/id/local-authority-district/22UN,Life Opportunities,8540 - Leisure Centre Clacton,4400 - Maintenance Under Service Agreements,14/08/2012,2099103-1,80,2100837 - M A Williams,
Tendring DC,http://statistics.data.gov.uk/id/local-authority-district/22UN,Life Opportunities,5240 - HRA - Managing Tenancies,5242 - Tenant Relations,28/08/2012,2099839-1,10,REDACTED PERSONAL DATA,REDACTED PERSONAL DATA
Tendring DC,http://statistics.data.gov.uk/id/local-authority-district/22UN,Life Opportunities,6740 - Careline,5160 - Advertising,07/08/2012,1049456-1,295,2103382 - Majestic Publications Ltd,CARELINE ADVERT ST HELEN DIARY
Tendring DC,http://statistics.data.gov.uk/id/local-authority-district/22UN,Life Opportunities,5140 - Homelessness,4680 - Bed & Breakfast Accommodation,07/08/2012,1049628-1,140,REDACTED PERSONAL DATA,REDACTED PERSONAL DATA
Tendring DC,http://statistics.data.gov.uk/id/local-authority-district/22UN,Life Opportunities,5140 - Homelessness,9032 - Homelessness Accommodation Charges,07/08/2012,1049628-2,-16.45,REDACTED PERSONAL DATA,REDACTED PERSONAL DATA
Tendring DC,http://statistics.data.gov.uk/id/local-authority-district/22UN,Life Opportunities,5140 - Homelessness,4680 - Bed & Breakfast Accommodation,07/08/2012,1049629-1,140,REDACTED PERSONAL DATA,REDACTED PERSONAL DATA
Tendring DC,http://statistics.data.gov.uk/id/local-authority-district/22UN,Life Opportunities,5140 - Homelessness,9032 - Homelessness Accommodation Charges,07/08/2012,1049629-2,-16.45,REDACTED PERSONAL DATA,REDACTED PERSONAL DATA
Tendring DC,http://statistics.data.gov.uk/id/local-authority-district/22UN,Life Opportunities,5140 - Homelessness,4680 - Bed & Breakfast Accommodation,07/08/2012,1049630-1,120,REDACTED PERSONAL DATA,REDACTED PERSONAL DATA
Tendring DC,http://statistics.data.gov.uk/id/local-authority-district/22UN,Life Opportunities,5140 - Homelessness,9032 - Homelessness Accommodation Charges,07/08/2012,1049630-2,-7.05,REDACTED PERSONAL DATA,REDACTED PERSONAL DATA
Tendring DC,http://statistics.data.gov.uk/id/local-authority-district/22UN,Life Opportunities,5140 - Homelessness,4680 - Bed & Breakfast Accommodation,07/08/2012,1049631-1,280,REDACTED PERSONAL DATA,REDACTED PERSONAL DATA
Tendring DC,http://statistics.data.gov.uk/id/local-authority-district/22UN,Life Opportunities,5140 - Homelessness,9032 - Homelessness Accommodation Charges,07/08/2012,1049631-2,-16.45,REDACTED PERSONAL DATA,REDACTED PERSONAL DATA
Tendring DC,http://statistics.data.gov.uk/id/local-authority-district/22UN,Life Opportunities,5140 - Homelessness,4680 - Bed & Breakfast Accommodation,07/08/2012,1049632-1,300,REDACTED PERSONAL DATA,REDACTED PERSONAL DATA
Tendring DC,http://statistics.data.gov.uk/id/local-authority-district/22UN,Life Opportunities,5140 - Homelessness,9032 - Homelessness Accommodation Charges,07/08/2012,1049632-2,-11.75,REDACTED PERSONAL DATA,REDACTED PERSONAL DATA
Tendring DC,http://statistics.data.gov.uk/id/local-authority-district/22UN,Life Opportunities,5140 - Homelessness,4680 - Bed & Breakfast Accommodation,07/08/2012,1049633-1,420,REDACTED PERSONAL DATA,REDACTED PERSONAL DATA
Tendring DC,http://statistics.data.gov.uk/id/local-authority-district/22UN,Life Opportunities,5140 - Homelessness,9032 - Homelessness Accommodation Charges,07/08/2012,1049633-2,-16.45,REDACTED PERSONAL DATA,REDACTED PERSONAL DATA
Tendring DC,http://statistics.data.gov.uk/id/local-authority-district/22UN,Life Opportunities,5140 - Homelessness,4680 - Bed & Breakfast Accommodation,07/08/2012,1049634-1,700,REDACTED PERSONAL DATA,REDACTED PERSONAL DATA
Tendring DC,http://statistics.data.gov.uk/id/local-authority-district/22UN,Life Opportunities,5140 - Homelessness,9032 - Homelessness Accommodation Charges,07/08/2012,1049634-2,-16.45,REDACTED PERSONAL DATA,REDACTED PERSONAL DATA
Tendring DC,http://statistics.data.gov.uk/id/local-authority-district/22UN,Life Opportunities,5140 - Homelessness,4680 - Bed & Breakfast Accommodation,07/08/2012,1049635-1,700,REDACTED PERSONAL DATA,REDACTED PERSONAL DATA
Tendring DC,http://statistics.data.gov.uk/id/local-authority-district/22UN,Life Opportunities,5140 - Homelessness,9032 - Homelessness Accommodation Charges,07/08/2012,1049635-2,-16.45,REDACTED PERSONAL DATA,REDACTED PERSONAL DATA
Tendring DC,http://statistics.data.gov.uk/id/local-authority-district/22UN,Life Opportunities,5140 - Homelessness,4680 - Bed & Breakfast Accommodation,14/08/2012,2099392-1,140,REDACTED PERSONAL DATA,REDACTED PERSONAL DATA
Tendring DC,http://statistics.data.gov.uk/id/local-authority-district/22UN,Life Opportunities,5140 - Homelessness,9032 - Homelessness Accommodation Charges,14/08/2012,2099392-2,-16.45,REDACTED PERSONAL DATA,REDACTED PERSONAL DATA
Tendring DC,http://statistics.data.gov.uk/id/local-authority-district/22UN,Life Opportunities,5140 - Homelessness,4680 - Bed & Breakfast Accommodation,14/08/2012,2099393-1,280,REDACTED PERSONAL DATA,REDACTED PERSONAL DATA
Tendring DC,http://statistics.data.gov.uk/id/local-authority-district/22UN,Life Opportunities,5140 - Homelessness,9032 - Homelessness Accommodation Charges,14/08/2012,2099393-2,-16.45,REDACTED PERSONAL DATA,REDACTED PERSONAL DATA
Tendring DC,http://statistics.data.gov.uk/id/local-authority-district/22UN,Life Opportunities,5140 - Homelessness,4680 - Bed & Breakfast Accommodation,14/08/2012,2099394-1,40,REDACTED PERSONAL DATA,REDACTED PERSONAL DATA
Tendring DC,http://statistics.data.gov.uk/id/local-authority-district/22UN,Life Opportunities,5140 - Homelessness,4680 - Bed & Breakfast Accommodation,21/08/2012,2099633-1,140,REDACTED PERSONAL DATA,REDACTED PERSONAL DATA
Tendring DC,http://statistics.data.gov.uk/id/local-authority-district/22UN,Life Opportunities,5140 - Homelessness,9032 - Homelessness Accommodation Charges,21/08/2012,2099633-2,-16.45,REDACTED PERSONAL DATA,REDACTED PERSONAL DATA
Tendring DC,http://statistics.data.gov.uk/id/local-authority-district/22UN,Life Opportunities,5140 - Homelessness,4680 - Bed & Breakfast Accommodation,21/08/2012,2099634-1,280,REDACTED PERSONAL DATA,REDACTED PERSONAL DATA
Tendring DC,http://statistics.data.gov.uk/id/local-authority-district/22UN,Life Opportunities,5140 - Homelessness,9032 - Homelessness Accommodation Charges,21/08/2012,2099634-2,-16.45,REDACTED PERSONAL DATA,REDACTED PERSONAL DATA
Tendring DC,http://statistics.data.gov.uk/id/local-authority-district/22UN,Life Opportunities,5140 - Homelessness,4680 - Bed & Breakfast Accommodation,21/08/2012,2099635-1,280,REDACTED PERSONAL DATA,REDACTED PERSONAL DATA
Tendring DC,http://statistics.data.gov.uk/id/local-authority-district/22UN,Life Opportunities,5140 - Homelessness,9032 - Homelessness Accommodation Charges,21/08/2012,2099635-2,-16.45,REDACTED PERSONAL DATA,REDACTED PERSONAL DATA
Tendring DC,http://statistics.data.gov.uk/id/local-authority-district/22UN,Life Opportunities,5140 - Homelessness,4683 - Other Homelessness Expenses,28/08/2012,2099852-1,111.98,REDACTED PERSONAL DATA,REDACTED PERSONAL DATA
Tendring DC,http://statistics.data.gov.uk/id/local-authority-district/22UN,Life Opportunities,H860 - Disabled Adaptations,C200 - Main Contractor,07/08/2012,1049537-1,515,REDACTED PERSONAL DATA,REDACTED PERSONAL DATA
Tendring DC,http://statistics.data.gov.uk/id/local-authority-district/22UN,Life Opportunities,H860 - Disabled Adaptations,C200 - Main Contractor,07/08/2012,1049537-2,280,REDACTED PERSONAL DATA,REDACTED PERSONAL DATA
Tendring DC,http://statistics.data.gov.uk/id/local-authority-district/22UN,Life Opportunities,6160 - Princes Theatre,4622 - Hired Services - Artistes and Production Companies,28/08/2012,1049820-1,1500,2110444 - Martyn Lucas,ONE NIGHT OF VEGAS SETTLEMENT
Tendring DC,http://statistics.data.gov.uk/id/local-authority-district/22UN,Life Opportunities,7520 - Tourism Publicity Marketing Promotion,5160 - Advertising,14/08/2012,2099131-1,295,2109207 - Midlands Signs Leicester Ltd,London & Home Counties
Tendring DC,http://statistics.data.gov.uk/id/local-authority-district/22UN,Life Opportunities,5140 - Homelessness,4683 - Other Homelessness Expenses,28/08/2012,2099847-1,500,REDACTED PERSONAL DATA,REDACTED PERSONAL DATA
Tendring DC,http://statistics.data.gov.uk/id/local-authority-district/22UN,Life Opportunities,6160 - Princes Theatre,4622 - Hired Services - Artistes and Production Companies,28/08/2012,2099856-1,2277.07,REDACTED PERSONAL DATA,REDACTED PERSONAL DATA
Tendring DC,http://statistics.data.gov.uk/id/local-authority-district/22UN,Life Opportunities,9920 - HRA Balance Sheet,B860 - Housing Rents - Cash,07/08/2012,1049620-1,175.11,REDACTED PERSONAL DATA,REDACTED PERSONAL DATA
Tendring DC,http://statistics.data.gov.uk/id/local-authority-district/22UN,Life Opportunities,9920 - HRA Balance Sheet,B860 - Housing Rents - Cash,07/08/2012,1049570-1,14.2,REDACTED PERSONAL DATA,REDACTED PERSONAL DATA
Tendring DC,http://statistics.data.gov.uk/id/local-authority-district/22UN,Life Opportunities,9920 - HRA Balance Sheet,B860 - Housing Rents - Cash,07/08/2012,1049624-1,13.6,REDACTED PERSONAL DATA,REDACTED PERSONAL DATA
Tendring DC,http://statistics.data.gov.uk/id/local-authority-district/22UN,Life Opportunities,9920 - HRA Balance Sheet,B860 - Housing Rents - Cash,07/08/2012,1049625-1,7.1,REDACTED PERSONAL DATA,REDACTED PERSONAL DATA
Tendring DC,http://statistics.data.gov.uk/id/local-authority-district/22UN,Life Opportunities,5480 - HRA - Repair & Maintenance,2071 - Electric Installation Testing,28/08/2012,2099904-1,2222.44,2110684 - Mitie Property Services,"Test, upgrade & re-wire, 22 properties"
Tendring DC,http://statistics.data.gov.uk/id/local-authority-district/22UN,Life Opportunities,5480 - HRA - Repair & Maintenance,2072 - Planned Partial Refurbishment To Electrical Instal,28/08/2012,2099904-2,7385.43,2110684 - Mitie Property Services,"Test, upgrade & re-wire, 22 properties"
Tendring DC,http://statistics.data.gov.uk/id/local-authority-district/22UN,Life Opportunities,8540 - Leisure Centre Clacton,4400 - Maintenance Under Service Agreements,14/08/2012,2099102-1,60.4,2104791 - Mobile Mini Uk Ltd,4/7/12 - 31/7/12
Tendring DC,http://statistics.data.gov.uk/id/local-authority-district/22UN,Life Opportunities,8540 - Leisure Centre Clacton,4400 - Maintenance Under Service Agreements,21/08/2012,2099602-1,60.4,2104791 - Mobile Mini Uk Ltd,1/8/12 - 28/8/12
Tendring DC,http://statistics.data.gov.uk/id/local-authority-district/22UN,Life Opportunities,5480 - HRA - Repair & Maintenance,2073 - Smoke Alarm Service/Testing,14/08/2012,2099448-1,3922.76,REDACTED PERSONAL DATA,REDACTED PERSONAL DATA
Tendring DC,http://statistics.data.gov.uk/id/local-authority-district/22UN,Life Opportunities,5480 - HRA - Repair & Maintenance,2075 - Gas Service Contract Servicing/Testing (Domestic I,14/08/2012,2099448-2,11795.72,REDACTED PERSONAL DATA,REDACTED PERSONAL DATA
Tendring DC,http://statistics.data.gov.uk/id/local-authority-district/22UN,Life Opportunities,5480 - HRA - Repair & Maintenance,2076 - Gas Service Contract Other Refurbishment/Repairs (,14/08/2012,2099448-3,3918.05,REDACTED PERSONAL DATA,REDACTED PERSONAL DATA
Tendring DC,http://statistics.data.gov.uk/id/local-authority-district/22UN,Life Opportunities,9920 - HRA Balance Sheet,B860 - Housing Rents - Cash,07/08/2012,1049621-1,7.1,REDACTED PERSONAL DATA,REDACTED PERSONAL DATA
Tendring DC,http://statistics.data.gov.uk/id/local-authority-district/22UN,Life Opportunities,9920 - HRA Balance Sheet,B860 - Housing Rents - Cash,21/08/2012,2099554-1,19.39,REDACTED PERSONAL DATA,REDACTED PERSONAL DATA
Tendring DC,http://statistics.data.gov.uk/id/local-authority-district/22UN,Life Opportunities,9920 - HRA Balance Sheet,B860 - Housing Rents - Cash,28/08/2012,2099842-1,135.34,REDACTED PERSONAL DATA,REDACTED PERSONAL DATA
Tendring DC,http://statistics.data.gov.uk/id/local-authority-district/22UN,Life Opportunities,9920 - HRA Balance Sheet,B860 - Housing Rents - Cash,07/08/2012,1049626-1,14.2,REDACTED PERSONAL DATA,REDACTED PERSONAL DATA
Tendring DC,http://statistics.data.gov.uk/id/local-authority-district/22UN,Life Opportunities,9920 - HRA Balance Sheet,B860 - Housing Rents - Cash,07/08/2012,1049571-1,14.2,REDACTED PERSONAL DATA,REDACTED PERSONAL DATA
Tendring DC,http://statistics.data.gov.uk/id/local-authority-district/22UN,Life Opportunities,9920 - HRA Balance Sheet,B860 - Housing Rents - Cash,07/08/2012,1049622-1,7.1,REDACTED PERSONAL DATA,REDACTED PERSONAL DATA
Tendring DC,http://statistics.data.gov.uk/id/local-authority-district/22UN,Life Opportunities,6740 - Careline,9050 - Careline Income,07/08/2012,2099030-1,10.5,REDACTED PERSONAL DATA,REDACTED PERSONAL DATA
Tendring DC,http://statistics.data.gov.uk/id/local-authority-district/22UN,Life Opportunities,9920 - HRA Balance Sheet,B860 - Housing Rents - Cash,07/08/2012,1049569-1,6.6,REDACTED PERSONAL DATA,REDACTED PERSONAL DATA
Tendring DC,http://statistics.data.gov.uk/id/local-authority-district/22UN,Life Opportunities,9920 - HRA Balance Sheet,B860 - Housing Rents - Cash,28/08/2012,2099844-1,35.48,REDACTED PERSONAL DATA,REDACTED PERSONAL DATA
Tendring DC,http://statistics.data.gov.uk/id/local-authority-district/22UN,Life Opportunities,6740 - Careline,9050 - Careline Income,07/08/2012,2099029-1,14.57,REDACTED PERSONAL DATA,REDACTED PERSONAL DATA
Tendring DC,http://statistics.data.gov.uk/id/local-authority-district/22UN,Life Opportunities,9920 - HRA Balance Sheet,B860 - Housing Rents - Cash,14/08/2012,2099337-1,198.62,REDACTED PERSONAL DATA,REDACTED PERSONAL DATA
Tendring DC,http://statistics.data.gov.uk/id/local-authority-district/22UN,Life Opportunities,6740 - Careline,9050 - Careline Income,07/08/2012,2099031-1,13.41,REDACTED PERSONAL DATA,REDACTED PERSONAL DATA
Tendring DC,http://statistics.data.gov.uk/id/local-authority-district/22UN,Life Opportunities,9920 - HRA Balance Sheet,B860 - Housing Rents - Cash,21/08/2012,2099553-1,78.5,REDACTED PERSONAL DATA,REDACTED PERSONAL DATA
Tendring DC,http://statistics.data.gov.uk/id/local-authority-district/22UN,Life Opportunities,5240 - HRA - Managing Tenancies,5242 - Tenant Relations,07/08/2012,1049560-1,10,REDACTED PERSONAL DATA,REDACTED PERSONAL DATA
Tendring DC,http://statistics.data.gov.uk/id/local-authority-district/22UN,Life Opportunities,5240 - HRA - Managing Tenancies,5242 - Tenant Relations,14/08/2012,2099304-1,10,REDACTED PERSONAL DATA,REDACTED PERSONAL DATA
Tendring DC,http://statistics.data.gov.uk/id/local-authority-district/22UN,Life Opportunities,5240 - HRA - Managing Tenancies,5242 - Tenant Relations,28/08/2012,2099837-1,10,REDACTED PERSONAL DATA,REDACTED PERSONAL DATA
Tendring DC,http://statistics.data.gov.uk/id/local-authority-district/22UN,Life Opportunities,6160 - Princes Theatre,4080 - Materials & Consumables,28/08/2012,2099858-1,95,REDACTED PERSONAL DATA,REDACTED PERSONAL DATA
Tendring DC,http://statistics.data.gov.uk/id/local-authority-district/22UN,Life Opportunities,9920 - HRA Balance Sheet,B860 - Housing Rents - Cash,14/08/2012,2099338-1,262.31,REDACTED PERSONAL DATA,REDACTED PERSONAL DATA
Tendring DC,http://statistics.data.gov.uk/id/local-authority-district/22UN,Life Opportunities,H920 - DFGs,C400 - Grant payments,21/08/2012,2099561-1,24,REDACTED PERSONAL DATA,REDACTED PERSONAL DATA
Tendring DC,http://statistics.data.gov.uk/id/local-authority-district/22UN,Life Opportunities,9920 - HRA Balance Sheet,B860 - Housing Rents - Cash,07/08/2012,1049572-1,7.1,REDACTED PERSONAL DATA,REDACTED PERSONAL DATA
Tendring DC,http://statistics.data.gov.uk/id/local-authority-district/22UN,Life Opportunities,6740 - Careline,9050 - Careline Income,07/08/2012,2099032-1,9.33,REDACTED PERSONAL DATA,REDACTED PERSONAL DATA
Tendring DC,http://statistics.data.gov.uk/id/local-authority-district/22UN,Life Opportunities,9920 - HRA Balance Sheet,B860 - Housing Rents - Cash,07/08/2012,1049623-1,14.2,REDACTED PERSONAL DATA,REDACTED PERSONAL DATA
Tendring DC,http://statistics.data.gov.uk/id/local-authority-district/22UN,Life Opportunities,5240 - HRA - Managing Tenancies,5242 - Tenant Relations,07/08/2012,1049564-1,10,REDACTED PERSONAL DATA,REDACTED PERSONAL DATA
Tendring DC,http://statistics.data.gov.uk/id/local-authority-district/22UN,Life Opportunities,5240 - HRA - Managing Tenancies,5242 - Tenant Relations,14/08/2012,2099302-1,10,REDACTED PERSONAL DATA,REDACTED PERSONAL DATA
Tendring DC,http://statistics.data.gov.uk/id/local-authority-district/22UN,Life Opportunities,5240 - HRA - Managing Tenancies,5242 - Tenant Relations,28/08/2012,2099841-1,10,REDACTED PERSONAL DATA,REDACTED PERSONAL DATA
Tendring DC,http://statistics.data.gov.uk/id/local-authority-district/22UN,Life Opportunities,7600 - Tourist Information Centres,9356 - Commission Sales,14/08/2012,2099398-1,1087.57,2110032 - National Express Ltd,July Commission
Tendring DC,http://statistics.data.gov.uk/id/local-authority-district/22UN,Life Opportunities,6160 - Princes Theatre,5160 - Advertising,07/08/2012,1049583-1,68.6,2100989 - Newsquest (London) Ltd,THEATRE ADS
Tendring DC,http://statistics.data.gov.uk/id/local-authority-district/22UN,Life Opportunities,6160 - Princes Theatre,5160 - Advertising,07/08/2012,1049584-1,67.9,2100989 - Newsquest (London) Ltd,THEATRE ADS
Tendring DC,http://statistics.data.gov.uk/id/local-authority-district/22UN,Life Opportunities,8540 - Leisure Centre Clacton,5160 - Advertising,14/08/2012,1049692-1,1044,2100989 - Newsquest (London) Ltd,
Tendring DC,http://statistics.data.gov.uk/id/local-authority-district/22UN,Life Opportunities,6160 - Princes Theatre,5160 - Advertising,14/08/2012,2099125-1,67.9,2100989 - Newsquest (London) Ltd,Theatre Ads
Tendring DC,http://statistics.data.gov.uk/id/local-authority-district/22UN,Life Opportunities,6160 - Princes Theatre,5160 - Advertising,14/08/2012,2099126-1,67.9,2100989 - Newsquest (London) Ltd,Theatre Ads
Tendring DC,http://statistics.data.gov.uk/id/local-authority-district/22UN,Life Opportunities,5880 - Management Of Sport & Leisure Facilities,4597 - Hired Services - Payments to Contractors,14/08/2012,2099130-1,434.9,2100989 - Newsquest (London) Ltd,Leisure Centre Advert
Tendring DC,http://statistics.data.gov.uk/id/local-authority-district/22UN,Life Opportunities,6160 - Princes Theatre,5160 - Advertising,21/08/2012,2099481-1,115.5,2100989 - Newsquest (London) Ltd,Coasting Into Summer
Tendring DC,http://statistics.data.gov.uk/id/local-authority-district/22UN,Life Opportunities,6160 - Princes Theatre,5160 - Advertising,21/08/2012,2099482-1,129.5,2100989 - Newsquest (London) Ltd,Theatre Ads
Tendring DC,http://statistics.data.gov.uk/id/local-authority-district/22UN,Life Opportunities,6160 - Princes Theatre,5160 - Advertising,21/08/2012,2099483-1,129,2100989 - Newsquest (London) Ltd,Theatre Ads
Tendring DC,http://statistics.data.gov.uk/id/local-authority-district/22UN,Life Opportunities,6160 - Princes Theatre,5160 - Advertising,28/08/2012,2099887-1,149,2100989 - Newsquest (London) Ltd,Theatre Ads
Tendring DC,http://statistics.data.gov.uk/id/local-authority-district/22UN,Life Opportunities,5140 - Homelessness,4683 - Other Homelessness Expenses,28/08/2012,2099846-1,187.52,REDACTED PERSONAL DATA,REDACTED PERSONAL DATA
Tendring DC,http://statistics.data.gov.uk/id/local-authority-district/22UN,Life Opportunities,5260 - HRA - Rent Collection And Accounting,4757 - IT External Charges,21/08/2012,2099450-1,250,REDACTED COMMERCIAL CONFIDENTIALITY,REDACTED COMMERCIAL CONFIDENTIALITY
Tendring DC,http://statistics.data.gov.uk/id/local-authority-district/22UN,Life Opportunities,5140 - Homelessness,4683 - Other Homelessness Expenses,14/08/2012,2099133-1,25,REDACTED PERSONAL DATA,REDACTED PERSONAL DATA
Tendring DC,http://statistics.data.gov.uk/id/local-authority-district/22UN,Life Opportunities,5240 - HRA - Managing Tenancies,4644 - Energy Performance Certificate Costs,21/08/2012,2099642-1,780,REDACTED PERSONAL DATA,REDACTED PERSONAL DATA
Tendring DC,http://statistics.data.gov.uk/id/local-authority-district/22UN,Life Opportunities,1650 - Building Services Service Unit,4400 - Maintenance Under Service Agreements,21/08/2012,1049737-1,47.23,REDACTED COMMERCIAL CONFIDENTIALITY,REDACTED COMMERCIAL CONFIDENTIALITY
Tendring DC,http://statistics.data.gov.uk/id/local-authority-district/22UN,Life Opportunities,1650 - Building Services Service Unit,4300 - Printing & Stationery,21/08/2012,1049738-1,0.31,REDACTED COMMERCIAL CONFIDENTIALITY,REDACTED COMMERCIAL CONFIDENTIALITY
Tendring DC,http://statistics.data.gov.uk/id/local-authority-district/22UN,Life Opportunities,5140 - Homelessness,4683 - Other Homelessness Expenses,14/08/2012,2099294-1,430,2101072 - Omega Property Services,Deposit Guarantee
Tendring DC,http://statistics.data.gov.uk/id/local-authority-district/22UN,Life Opportunities,5140 - Homelessness,4683 - Other Homelessness Expenses,14/08/2012,2099295-1,275,2112364 - Omega Property Services,Deposit Guarantee
Tendring DC,http://statistics.data.gov.uk/id/local-authority-district/22UN,Life Opportunities,5140 - Homelessness,4683 - Other Homelessness Expenses,14/08/2012,2099296-1,272,2112364 - Omega Property Services,Deposit Guarantee
Tendring DC,http://statistics.data.gov.uk/id/local-authority-district/22UN,Life Opportunities,5140 - Homelessness,4683 - Other Homelessness Expenses,28/08/2012,2099848-1,695,REDACTED PERSONAL DATA,REDACTED PERSONAL DATA
Tendring DC,http://statistics.data.gov.uk/id/local-authority-district/22UN,Life Opportunities,H920 - DFGs,C400 - Grant payments,21/08/2012,2099769-1,2087.71,REDACTED PERSONAL DATA,REDACTED PERSONAL DATA
Tendring DC,http://statistics.data.gov.uk/id/local-authority-district/22UN,Life Opportunities,H920 - DFGs,C400 - Grant payments,21/08/2012,2099770-1,2667.63,REDACTED PERSONAL DATA,REDACTED PERSONAL DATA
Tendring DC,http://statistics.data.gov.uk/id/local-authority-district/22UN,Life Opportunities,6160 - Princes Theatre,5306 - Confectionary,07/08/2012,1049579-1,117.6,2101083 - Osgood Smith,CONFECTIONARY
Tendring DC,http://statistics.data.gov.uk/id/local-authority-district/22UN,Life Opportunities,6160 - Princes Theatre,5306 - Confectionary,07/08/2012,1049580-1,55.3,2101083 - Osgood Smith,CONFECTIONARY
Tendring DC,http://statistics.data.gov.uk/id/local-authority-district/22UN,Life Opportunities,7560 - Tourism Publications,5160 - Advertising,07/08/2012,1049581-1,55.46,2101083 - Osgood Smith,CONFECTIONARY
Tendring DC,http://statistics.data.gov.uk/id/local-authority-district/22UN,Life Opportunities,8520 - Frinton & Walton Swimming Pool,5311 - General Provisions - Vending,14/08/2012,1049704-1,261.66,2101083 - Osgood Smith,FRINTON WALTON POOL
Tendring DC,http://statistics.data.gov.uk/id/local-authority-district/22UN,Life Opportunities,8520 - Frinton & Walton Swimming Pool,5311 - General Provisions - Vending,14/08/2012,1049705-1,76.27,2101083 - Osgood Smith,FRINTON WALTON POOL
Tendring DC,http://statistics.data.gov.uk/id/local-authority-district/22UN,Life Opportunities,8520 - Frinton & Walton Swimming Pool,5311 - General Provisions - Vending,14/08/2012,1049706-1,186.6,2101083 - Osgood Smith,FRINTON WALTON POOL
Tendring DC,http://statistics.data.gov.uk/id/local-authority-district/22UN,Life Opportunities,8520 - Frinton & Walton Swimming Pool,5311 - General Provisions - Vending,14/08/2012,1049707-1,21.58,2101083 - Osgood Smith,FRINTON WALTON POOL
Tendring DC,http://statistics.data.gov.uk/id/local-authority-district/22UN,Life Opportunities,8520 - Frinton & Walton Swimming Pool,5311 - General Provisions - Vending,14/08/2012,1049708-1,119.75,2101083 - Osgood Smith,FRINTON WALTON POOL
Tendring DC,http://statistics.data.gov.uk/id/local-authority-district/22UN,Life Opportunities,5820 - Harwich Sports Centre,5311 - General Provisions - Vending,14/08/2012,1049709-1,123.4,2101083 - Osgood Smith,CANTEEN GOODS
Tendring DC,http://statistics.data.gov.uk/id/local-authority-district/22UN,Life Opportunities,5820 - Harwich Sports Centre,5311 - General Provisions - Vending,14/08/2012,1049710-1,75.88,2101083 - Osgood Smith,CANTEEN SUPPLIES
Tendring DC,http://statistics.data.gov.uk/id/local-authority-district/22UN,Life Opportunities,5800 - Brightlingsea Sports Centre,5316 - General Provisions,14/08/2012,1049711-1,141.24,2101083 - Osgood Smith,OSGOOD SMITH
Tendring DC,http://statistics.data.gov.uk/id/local-authority-district/22UN,Life Opportunities,5860 - Manningtree Sports Centre,5311 - General Provisions - Vending,28/08/2012,1049769-1,30.95,2101083 - Osgood Smith,VENDING SUPPLIES
Tendring DC,http://statistics.data.gov.uk/id/local-authority-district/22UN,Life Opportunities,8520 - Frinton & Walton Swimming Pool,5311 - General Provisions - Vending,28/08/2012,1049770-1,16.56,2101083 - Osgood Smith,FRINTON POOL
Tendring DC,http://statistics.data.gov.uk/id/local-authority-district/22UN,Life Opportunities,5820 - Harwich Sports Centre,5311 - General Provisions - Vending,28/08/2012,1049771-1,41.34,2101083 - Osgood Smith,CANTEEN GOODS
Tendring DC,http://statistics.data.gov.uk/id/local-authority-district/22UN,Life Opportunities,5820 - Harwich Sports Centre,5311 - General Provisions - Vending,28/08/2012,1049772-1,111.58,2101083 - Osgood Smith,CANTEEN GOODS
Tendring DC,http://statistics.data.gov.uk/id/local-authority-district/22UN,Life Opportunities,8520 - Frinton & Walton Swimming Pool,5311 - General Provisions - Vending,28/08/2012,1049813-1,150.68,2101083 - Osgood Smith,FRINTON POOL
Tendring DC,http://statistics.data.gov.uk/id/local-authority-district/22UN,Life Opportunities,8520 - Frinton & Walton Swimming Pool,5311 - General Provisions - Vending,14/08/2012,2099335-1,-5,2101083 - Osgood Smith,Frinton & Walton Pool
Tendring DC,http://statistics.data.gov.uk/id/local-authority-district/22UN,Life Opportunities,8510 - Dovercourt Swimming Pool & All Weather Facilities,5311 - General Provisions - Vending,21/08/2012,2099458-1,17.34,2101083 - Osgood Smith,Dovercourt Pool
Tendring DC,http://statistics.data.gov.uk/id/local-authority-district/22UN,Life Opportunities,5860 - Manningtree Sports Centre,5311 - General Provisions - Vending,21/08/2012,2099459-1,75.06,2101083 - Osgood Smith,Vending Supplier
Tendring DC,http://statistics.data.gov.uk/id/local-authority-district/22UN,Life Opportunities,5860 - Manningtree Sports Centre,5311 - General Provisions - Vending,21/08/2012,2099459-2,-5,2101083 - Osgood Smith,Vending Supplier
Tendring DC,http://statistics.data.gov.uk/id/local-authority-district/22UN,Life Opportunities,5860 - Manningtree Sports Centre,5311 - General Provisions - Vending,21/08/2012,2099473-1,13.23,2101083 - Osgood Smith,Vending Supplies
Tendring DC,http://statistics.data.gov.uk/id/local-authority-district/22UN,Life Opportunities,5800 - Brightlingsea Sports Centre,5316 - General Provisions,28/08/2012,2099895-1,143.24,2101083 - Osgood Smith,Osgood Smith
Tendring DC,http://statistics.data.gov.uk/id/local-authority-district/22UN,Life Opportunities,8520 - Frinton & Walton Swimming Pool,5311 - General Provisions - Vending,28/08/2012,2099896-1,106.98,2101083 - Osgood Smith,Frinton & Walton Pool
Tendring DC,http://statistics.data.gov.uk/id/local-authority-district/22UN,Life Opportunities,8540 - Leisure Centre Clacton,2100 - Building Repairs,28/08/2012,1049779-1,130,2101034 - Oxborrow Engineering,
Tendring DC,http://statistics.data.gov.uk/id/local-authority-district/22UN,Life Opportunities,8540 - Leisure Centre Clacton,2300 - Energy Costs - Fuel Oil,14/08/2012,2099098-1,1380.5,2107113 - Pace Fuelcare Ltd,
Tendring DC,http://statistics.data.gov.uk/id/local-authority-district/22UN,Life Opportunities,8540 - Leisure Centre Clacton,2300 - Energy Costs - Fuel Oil,14/08/2012,2099169-1,1687.4,2107113 - Pace Fuelcare Ltd,
Tendring DC,http://statistics.data.gov.uk/id/local-authority-district/22UN,Life Opportunities,5240 - HRA - Managing Tenancies,6625 - Tenants Compensation Scheme,21/08/2012,2099799-1,265,REDACTED COMMERCIAL CONFIDENTIALITY,REDACTED COMMERCIAL CONFIDENTIALITY
Tendring DC,http://statistics.data.gov.uk/id/local-authority-district/22UN,Life Opportunities,8540 - Leisure Centre Clacton,5160 - Advertising,14/08/2012,2099116-1,150,2101097 - Peter Lockyer Advertising Ltd,
Tendring DC,http://statistics.data.gov.uk/id/local-authority-district/22UN,Life Opportunities,5420 - HRA - Communal Cleaning,2706 - Communal Areas Cleaning Expenses,21/08/2012,2099455-1,3521.58,REDACTED COMMERCIAL CONFIDENTIALITY,REDACTED COMMERCIAL CONFIDENTIALITY
Tendring DC,http://statistics.data.gov.uk/id/local-authority-district/22UN,Life Opportunities,7620 - Air Show,5500 - Miscellaneous Expenses,14/08/2012,2099120-1,68.54,2110447 - Premier Inn Business Account,Flight Team Hotel
Tendring DC,http://statistics.data.gov.uk/id/local-authority-district/22UN,Life Opportunities,6160 - Princes Theatre,4622 - Hired Services - Artistes and Production Companies,14/08/2012,2099118-1,4421.26,2111110 - Premier Stage Productions Ltd,Little Big Club Settlement
Tendring DC,http://statistics.data.gov.uk/id/local-authority-district/22UN,Life Opportunities,6160 - Princes Theatre,5160 - Advertising,07/08/2012,1049586-1,180,2107459 - Prospector,POSTER DISTRIBUTION
Tendring DC,http://statistics.data.gov.uk/id/local-authority-district/22UN,Life Opportunities,6160 - Princes Theatre,5160 - Advertising,14/08/2012,2099127-1,480,2107459 - Prospector,Poster Distribution
Tendring DC,http://statistics.data.gov.uk/id/local-authority-district/22UN,Life Opportunities,5260 - HRA - Rent Collection And Accounting,4312 - Tenancy Stationery,14/08/2012,2099132-1,450,REDACTED COMMERCIAL CONFIDENTIALITY,REDACTED COMMERCIAL CONFIDENTIALITY
Tendring DC,http://statistics.data.gov.uk/id/local-authority-district/22UN,Life Opportunities,H710 - Selected Improvements,C200 - Main Contractor,21/08/2012,1049735-1,3200,REDACTED COMMERCIAL CONFIDENTIALITY,REDACTED COMMERCIAL CONFIDENTIALITY
Tendring DC,http://statistics.data.gov.uk/id/local-authority-district/22UN,Life Opportunities,H805 - Major Refurbishment of Heating,C200 - Main Contractor,21/08/2012,1049736-1,1600,REDACTED COMMERCIAL CONFIDENTIALITY,REDACTED COMMERCIAL CONFIDENTIALITY
REDACTED PERSONAL DATA,http://statistics.data.gov.uk/id/local-authority-district/22UN,Life Opportunities,8540 - Leisure Centre Clacton,1700 - Training - Courses,14/08/2012,2099309-1,35,REDACTED PERSONAL DATA,REDACTED PERSONAL DATA
Tendring DC,http://statistics.data.gov.uk/id/local-authority-district/22UN,Life Opportunities,7520 - Tourism Publicity Marketing Promotion,5160 - Advertising,28/08/2012,2099884-1,800,2106834 - Redwood Publishing Ltd,M&S Advert
Tendring DC,http://statistics.data.gov.uk/id/local-authority-district/22UN,Life Opportunities,9900 - General Fund Balance Sheet,B382 - Rechargeable Works - Other,21/08/2012,1049730-1,5207,REDACTED COMMERCIAL CONFIDENTIALITY,REDACTED COMMERCIAL CONFIDENTIALITY
Tendring DC,http://statistics.data.gov.uk/id/local-authority-district/22UN,Life Opportunities,H800 - Structural Repairs,C200 - Main Contractor,14/08/2012,2099137-1,1995.22,REDACTED PERSONAL DATA,REDACTED PERSONAL DATA
Tendring DC,http://statistics.data.gov.uk/id/local-authority-district/22UN,Life Opportunities,6740 - Careline,4350 - Photocopier Hire,07/08/2012,1049455-1,260.77,2101090 - Ricoh UK Ltd,HIRE PHOTOCOPIER JULY-SEPT 12
Tendring DC,http://statistics.data.gov.uk/id/local-authority-district/22UN,Life Opportunities,8520 - Frinton & Walton Swimming Pool,4400 - Maintenance Under Service Agreements,14/08/2012,1049690-1,118.11,2101090 - Ricoh UK Ltd,FRINTON WALTON POOL
Tendring DC,http://statistics.data.gov.uk/id/local-authority-district/22UN,Life Opportunities,5220 - HRA - Policy & Management,4355 - Books & Periodicals,14/08/2012,2099400-1,115,REDACTED PERSONAL DATA,REDACTED PERSONAL DATA
Tendring DC,http://statistics.data.gov.uk/id/local-authority-district/22UN,Life Opportunities,8510 - Dovercourt Swimming Pool & All Weather Facilities,1700 - Training - Courses,14/08/2012,1049682-1,36.95,2101127 - RLSS UK Enterprises Ltd,DOVERCOURT POOL
Tendring DC,http://statistics.data.gov.uk/id/local-authority-district/22UN,Life Opportunities,8520 - Frinton & Walton Swimming Pool,1700 - Training - Courses,14/08/2012,1049716-1,172.5,2101127 - RLSS UK Enterprises Ltd,FRINTON WALTON POOL
Tendring DC,http://statistics.data.gov.uk/id/local-authority-district/22UN,Life Opportunities,8510 - Dovercourt Swimming Pool & All Weather Facilities,1700 - Training - Courses,07/08/2012,2099065-1,52.45,REDACTED PERSONAL DATA,REDACTED PERSONAL DATA
Tendring DC,http://statistics.data.gov.uk/id/local-authority-district/22UN,Life Opportunities,H710 - Selected Improvements,C200 - Main Contractor,07/08/2012,1049540-1,600,2101187 - Roalco Limited,CROOKED ELMS
Tendring DC,http://statistics.data.gov.uk/id/local-authority-district/22UN,Life Opportunities,5480 - HRA - Repair & Maintenance,2088 - Disabled Adaptations,07/08/2012,1049541-1,140.32,REDACTED PERSONAL DATA,REDACTED PERSONAL DATA
Tendring DC,http://statistics.data.gov.uk/id/local-authority-district/22UN,Life Opportunities,5480 - HRA - Repair & Maintenance,2088 - Disabled Adaptations,07/08/2012,1049542-1,147.48,REDACTED PERSONAL DATA,REDACTED PERSONAL DATA
Tendring DC,http://statistics.data.gov.uk/id/local-authority-district/22UN,Life Opportunities,H810 - Electrical Re-wiring,C200 - Main Contractor,21/08/2012,1049739-1,1650,REDACTED COMMERCIAL CONFIDENTIALITY,REDACTED COMMERCIAL CONFIDENTIALITY
Tendring DC,http://statistics.data.gov.uk/id/local-authority-district/22UN,Life Opportunities,5480 - HRA - Repair & Maintenance,2007 - Responsive Maintenance - Electrical Installations,28/08/2012,1049783-1,30.46,REDACTED PERSONAL DATA,REDACTED PERSONAL DATA
Tendring DC,http://statistics.data.gov.uk/id/local-authority-district/22UN,Life Opportunities,5480 - HRA - Repair & Maintenance,2088 - Disabled Adaptations,14/08/2012,2099356-1,50.02,REDACTED PERSONAL DATA,REDACTED PERSONAL DATA
Tendring DC,http://statistics.data.gov.uk/id/local-authority-district/22UN,Life Opportunities,5480 - HRA - Repair & Maintenance,2088 - Disabled Adaptations,14/08/2012,2099357-1,94.02,REDACTED PERSONAL DATA,REDACTED PERSONAL DATA
Tendring DC,http://statistics.data.gov.uk/id/local-authority-district/22UN,Life Opportunities,H705 - Window/Door Replacement,C200 - Main Contractor,21/08/2012,2099715-1,250,REDACTED COMMERCIAL CONFIDENTIALITY,REDACTED COMMERCIAL CONFIDENTIALITY
Tendring DC,http://statistics.data.gov.uk/id/local-authority-district/22UN,Life Opportunities,H705 - Window/Door Replacement,C200 - Main Contractor,21/08/2012,2099716-1,15.23,REDACTED COMMERCIAL CONFIDENTIALITY,REDACTED COMMERCIAL CONFIDENTIALITY
Tendring DC,http://statistics.data.gov.uk/id/local-authority-district/22UN,Life Opportunities,5480 - HRA - Repair & Maintenance,2088 - Disabled Adaptations,21/08/2012,2099717-1,149.16,REDACTED PERSONAL DATA,REDACTED PERSONAL DATA
Tendring DC,http://statistics.data.gov.uk/id/local-authority-district/22UN,Life Opportunities,5480 - HRA - Repair & Maintenance,2088 - Disabled Adaptations,21/08/2012,2099718-1,194.57,REDACTED PERSONAL DATA,REDACTED PERSONAL DATA
Tendring DC,http://statistics.data.gov.uk/id/local-authority-district/22UN,Life Opportunities,5480 - HRA - Repair & Maintenance,2088 - Disabled Adaptations,21/08/2012,2099719-1,302.83,REDACTED PERSONAL DATA,REDACTED PERSONAL DATA
Tendring DC,http://statistics.data.gov.uk/id/local-authority-district/22UN,Life Opportunities,5480 - HRA - Repair & Maintenance,2088 - Disabled Adaptations,21/08/2012,2099720-1,121.63,REDACTED PERSONAL DATA,REDACTED PERSONAL DATA
Tendring DC,http://statistics.data.gov.uk/id/local-authority-district/22UN,Life Opportunities,5480 - HRA - Repair & Maintenance,2088 - Disabled Adaptations,21/08/2012,2099721-1,152.09,REDACTED PERSONAL DATA,REDACTED PERSONAL DATA
Tendring DC,http://statistics.data.gov.uk/id/local-authority-district/22UN,Life Opportunities,5480 - HRA - Repair & Maintenance,2088 - Disabled Adaptations,21/08/2012,2099722-1,30.46,REDACTED PERSONAL DATA,REDACTED PERSONAL DATA
Tendring DC,http://statistics.data.gov.uk/id/local-authority-district/22UN,Life Opportunities,5480 - HRA - Repair & Maintenance,2088 - Disabled Adaptations,21/08/2012,2099723-1,153.76,REDACTED PERSONAL DATA,REDACTED PERSONAL DATA
Tendring DC,http://statistics.data.gov.uk/id/local-authority-district/22UN,Life Opportunities,5480 - HRA - Repair & Maintenance,2088 - Disabled Adaptations,21/08/2012,2099724-1,38.44,REDACTED PERSONAL DATA,REDACTED PERSONAL DATA
Tendring DC,http://statistics.data.gov.uk/id/local-authority-district/22UN,Life Opportunities,5480 - HRA - Repair & Maintenance,2088 - Disabled Adaptations,21/08/2012,2099725-1,38.44,REDACTED PERSONAL DATA,REDACTED PERSONAL DATA
Tendring DC,http://statistics.data.gov.uk/id/local-authority-district/22UN,Life Opportunities,5480 - HRA - Repair & Maintenance,2000 - Responsive Maintenance - Miscellaneous,21/08/2012,2099800-1,132304.87,2101187 - Roalco Limited,Roalco
Tendring DC,http://statistics.data.gov.uk/id/local-authority-district/22UN,Life Opportunities,5240 - HRA - Managing Tenancies,5242 - Tenant Relations,21/08/2012,2099484-1,99,REDACTED PERSONAL DATA,REDACTED PERSONAL DATA
Tendring DC,http://statistics.data.gov.uk/id/local-authority-district/22UN,Life Opportunities,H800 - Structural Repairs,C200 - Main Contractor,07/08/2012,1049545-1,648,REDACTED PERSONAL DATA,REDACTED PERSONAL DATA
Tendring DC,http://statistics.data.gov.uk/id/local-authority-district/22UN,Life Opportunities,H800 - Structural Repairs,C200 - Main Contractor,14/08/2012,2099355-1,13401.31,REDACTED PERSONAL DATA,REDACTED PERSONAL DATA
Tendring DC,http://statistics.data.gov.uk/id/local-authority-district/22UN,Life Opportunities,5240 - HRA - Managing Tenancies,5242 - Tenant Relations,07/08/2012,1049559-1,10,REDACTED PERSONAL DATA,REDACTED PERSONAL DATA
Tendring DC,http://statistics.data.gov.uk/id/local-authority-district/22UN,Life Opportunities,5240 - HRA - Managing Tenancies,5242 - Tenant Relations,14/08/2012,2099305-1,10,REDACTED PERSONAL DATA,REDACTED PERSONAL DATA
Tendring DC,http://statistics.data.gov.uk/id/local-authority-district/22UN,Life Opportunities,5240 - HRA - Managing Tenancies,5242 - Tenant Relations,28/08/2012,2099836-1,10,REDACTED PERSONAL DATA,REDACTED PERSONAL DATA
Tendring DC,http://statistics.data.gov.uk/id/local-authority-district/22UN,Life Opportunities,5240 - HRA - Managing Tenancies,5242 - Tenant Relations,07/08/2012,1049602-1,70,REDACTED COMMERCIAL CONFIDENTIALITY,REDACTED COMMERCIAL CONFIDENTIALITY
Tendring DC,http://statistics.data.gov.uk/id/local-authority-district/22UN,Life Opportunities,5240 - HRA - Managing Tenancies,5242 - Tenant Relations,14/08/2012,2099134-1,49.24,REDACTED COMMERCIAL CONFIDENTIALITY,REDACTED COMMERCIAL CONFIDENTIALITY
Tendring DC,http://statistics.data.gov.uk/id/local-authority-district/22UN,Life Opportunities,6740 - Careline,4700 - Postage,14/08/2012,2099432-1,52.14,2101139 - Royal Mail,Royal Mail June & July 12
Tendring DC,http://statistics.data.gov.uk/id/local-authority-district/22UN,Life Opportunities,8540 - Leisure Centre Clacton,2100 - Building Repairs,28/08/2012,1049780-1,12,2109169 - S J Leisure Contractors Ltd,
Tendring DC,http://statistics.data.gov.uk/id/local-authority-district/22UN,Life Opportunities,8540 - Leisure Centre Clacton,2100 - Building Repairs,21/08/2012,2099564-1,140.5,2109169 - S J Leisure Contractors Ltd,
Tendring DC,http://statistics.data.gov.uk/id/local-authority-district/22UN,Life Opportunities,H860 - Disabled Adaptations,C200 - Main Contractor,21/08/2012,2099714-1,545,REDACTED PERSONAL DATA,REDACTED PERSONAL DATA
Tendring DC,http://statistics.data.gov.uk/id/local-authority-district/22UN,Life Opportunities,H860 - Disabled Adaptations,C200 - Main Contractor,21/08/2012,2099714-2,288.6,REDACTED PERSONAL DATA,REDACTED PERSONAL DATA
Tendring DC,http://statistics.data.gov.uk/id/local-authority-district/22UN,Life Opportunities,5360 - HRA - Sheltered Units,4040 - Equipment & Tools,14/08/2012,2099187-1,78.4,REDACTED PERSONAL DATA,REDACTED PERSONAL DATA
Tendring DC,http://statistics.data.gov.uk/id/local-authority-district/22UN,Life Opportunities,9900 - General Fund Balance Sheet,B382 - Rechargeable Works - Other,28/08/2012,2099834-1,120,REDACTED COMMERCIAL CONFIDENTIALITY,REDACTED COMMERCIAL CONFIDENTIALITY
Tendring DC,http://statistics.data.gov.uk/id/local-authority-district/22UN,Life Opportunities,9900 - General Fund Balance Sheet,B382 - Rechargeable Works - Other,28/08/2012,2099835-1,120,REDACTED COMMERCIAL CONFIDENTIALITY,REDACTED COMMERCIAL CONFIDENTIALITY
Tendring DC,http://statistics.data.gov.uk/id/local-authority-district/22UN,Life Opportunities,5480 - HRA - Repair & Maintenance,2096 - Asbestos testing/removal,14/08/2012,2099349-1,140,REDACTED PERSONAL DATA,REDACTED PERSONAL DATA
Tendring DC,http://statistics.data.gov.uk/id/local-authority-district/22UN,Life Opportunities,5480 - HRA - Repair & Maintenance,2096 - Asbestos testing/removal,14/08/2012,2099349-2,160,REDACTED PERSONAL DATA,REDACTED PERSONAL DATA
Tendring DC,http://statistics.data.gov.uk/id/local-authority-district/22UN,Life Opportunities,6740 - Careline,4040 - Equipment & Tools,28/08/2012,2099824-1,89.97,2111847 - SEC UK Delivery t/as Staples,Staples
Tendring DC,http://statistics.data.gov.uk/id/local-authority-district/22UN,Life Opportunities,8540 - Leisure Centre Clacton,2100 - Building Repairs,28/08/2012,1049814-1,525,2104678 - Sentinel Water Limited,
Tendring DC,http://statistics.data.gov.uk/id/local-authority-district/22UN,Life Opportunities,6160 - Princes Theatre,4040 - Equipment & Tools,28/08/2012,2099862-1,335.79,2100032 - Signs Made Easy,Poster Boards
Tendring DC,http://statistics.data.gov.uk/id/local-authority-district/22UN,Life Opportunities,5800 - Brightlingsea Sports Centre,5160 - Advertising,14/08/2012,2099378-1,69,2103454 - Simad Publications,Look Magazine
Tendring DC,http://statistics.data.gov.uk/id/local-authority-district/22UN,Life Opportunities,5480 - HRA - Repair & Maintenance,2062 - Communal TV Aerials Repairs,28/08/2012,1049819-1,35,REDACTED PERSONAL DATA,REDACTED PERSONAL DATA
Tendring DC,http://statistics.data.gov.uk/id/local-authority-district/22UN,Life Opportunities,5480 - HRA - Repair & Maintenance,2062 - Communal TV Aerials Repairs,21/08/2012,2099643-1,263,REDACTED PERSONAL DATA,REDACTED PERSONAL DATA
Tendring DC,http://statistics.data.gov.uk/id/local-authority-district/22UN,Life Opportunities,5480 - HRA - Repair & Maintenance,2062 - Communal TV Aerials Repairs,21/08/2012,2099646-1,245.45,REDACTED PERSONAL DATA,REDACTED PERSONAL DATA
Tendring DC,http://statistics.data.gov.uk/id/local-authority-district/22UN,Life Opportunities,5480 - HRA - Repair & Maintenance,2062 - Communal TV Aerials Repairs,28/08/2012,2099865-1,35,REDACTED PERSONAL DATA,REDACTED PERSONAL DATA
Tendring DC,http://statistics.data.gov.uk/id/local-authority-district/22UN,Life Opportunities,8540 - Leisure Centre Clacton,4000 - Furniture,21/08/2012,2099567-1,743.98,2102966 - Sound Dynamics,
Tendring DC,http://statistics.data.gov.uk/id/local-authority-district/22UN,Life Opportunities,8540 - Leisure Centre Clacton,5160 - Advertising,14/08/2012,2099152-1,250,2112410 - South East Express,
Tendring DC,http://statistics.data.gov.uk/id/local-authority-district/22UN,Life Opportunities,7000 - CCTV,4718 - Fixed Communication Lines,21/08/2012,2099544-1,63.91,2108907 - Southern Communications Ltd,Southern Comms - July
Tendring DC,http://statistics.data.gov.uk/id/local-authority-district/22UN,Life Opportunities,5360 - HRA - Sheltered Units,4710 - Telephones - Charges,21/08/2012,2099544-2,100.86,2108907 - Southern Communications Ltd,Southern Comms - July
Tendring DC,http://statistics.data.gov.uk/id/local-authority-district/22UN,Life Opportunities,5360 - HRA - Sheltered Units,4710 - Telephones - Charges,21/08/2012,2099544-3,99.63,2108907 - Southern Communications Ltd,Southern Comms - July
Tendring DC,http://statistics.data.gov.uk/id/local-authority-district/22UN,Life Opportunities,5360 - HRA - Sheltered Units,4710 - Telephones - Charges,21/08/2012,2099544-4,76.59,2108907 - Southern Communications Ltd,Southern Comms - July
Tendring DC,http://statistics.data.gov.uk/id/local-authority-district/22UN,Life Opportunities,5360 - HRA - Sheltered Units,4710 - Telephones - Charges,21/08/2012,2099544-5,22.5,2108907 - Southern Communications Ltd,Southern Comms - July
Tendring DC,http://statistics.data.gov.uk/id/local-authority-district/22UN,Life Opportunities,5360 - HRA - Sheltered Units,4710 - Telephones - Charges,21/08/2012,2099544-6,104.44,2108907 - Southern Communications Ltd,Southern Comms - July
Tendring DC,http://statistics.data.gov.uk/id/local-authority-district/22UN,Life Opportunities,5360 - HRA - Sheltered Units,4710 - Telephones - Charges,21/08/2012,2099544-7,78.73,2108907 - Southern Communications Ltd,Southern Comms - July
Tendring DC,http://statistics.data.gov.uk/id/local-authority-district/22UN,Life Opportunities,5360 - HRA - Sheltered Units,4710 - Telephones - Charges,21/08/2012,2099544-8,76.88,2108907 - Southern Communications Ltd,Southern Comms - July
Tendring DC,http://statistics.data.gov.uk/id/local-authority-district/22UN,Life Opportunities,H705 - Window/Door Replacement,C200 - Main Contractor,07/08/2012,2099091-1,101237.8,REDACTED COMMERCIAL CONFIDENTIALITY,REDACTED COMMERCIAL CONFIDENTIALITY
Tendring DC,http://statistics.data.gov.uk/id/local-authority-district/22UN,Life Opportunities,5480 - HRA - Repair & Maintenance,2019 - Repair & Maintenance - Keys,21/08/2012,2099488-1,295.35,REDACTED PERSONAL DATA,REDACTED PERSONAL DATA
Tendring DC,http://statistics.data.gov.uk/id/local-authority-district/22UN,Life Opportunities,5800 - Brightlingsea Sports Centre,2100 - Building Repairs,14/08/2012,1049688-1,200.5,2101278 - Sportsafe UK Ltd,SPORTSAFE UK
Tendring DC,http://statistics.data.gov.uk/id/local-authority-district/22UN,Life Opportunities,8520 - Frinton & Walton Swimming Pool,4000 - Furniture,14/08/2012,1048539-1,-38,2102268 - St John Ambulance Supplies,FRINTON WALTON POOL
Tendring DC,http://statistics.data.gov.uk/id/local-authority-district/22UN,Life Opportunities,5360 - HRA - Sheltered Units,4040 - Equipment & Tools,14/08/2012,2098926-1,5.61,REDACTED PERSONAL DATA,REDACTED PERSONAL DATA
Tendring DC,http://statistics.data.gov.uk/id/local-authority-district/22UN,Life Opportunities,8540 - Leisure Centre Clacton,5500 - Miscellaneous Expenses,14/08/2012,2099096-1,87.81,2102268 - St John Ambulance Supplies,
Tendring DC,http://statistics.data.gov.uk/id/local-authority-district/22UN,Life Opportunities,8540 - Leisure Centre Clacton,5500 - Miscellaneous Expenses,14/08/2012,2099097-1,3.6,2102268 - St John Ambulance Supplies,
Tendring DC,http://statistics.data.gov.uk/id/local-authority-district/22UN,Life Opportunities,6160 - Princes Theatre,4040 - Equipment & Tools,14/08/2012,2099121-1,129.35,2101300 - Stage Electrics,Lighting Equipment
Tendring DC,http://statistics.data.gov.uk/id/local-authority-district/22UN,Life Opportunities,6160 - Princes Theatre,4040 - Equipment & Tools,21/08/2012,2099479-1,531.73,2101300 - Stage Electrics,Lighting & Fixtures
Tendring DC,http://statistics.data.gov.uk/id/local-authority-district/22UN,Life Opportunities,H860 - Disabled Adaptations,C200 - Main Contractor,14/08/2012,2099360-1,2670,2101360 - Stannah Lift Services Limited,3 Ford Lane Alresford
Tendring DC,http://statistics.data.gov.uk/id/local-authority-district/22UN,Life Opportunities,5480 - HRA - Repair & Maintenance,2070 - Lift/Stairlift Repairs,14/08/2012,2099361-1,2166,REDACTED PERSONAL DATA,REDACTED PERSONAL DATA
Tendring DC,http://statistics.data.gov.uk/id/local-authority-district/22UN,Life Opportunities,H860 - Disabled Adaptations,C200 - Main Contractor,14/08/2012,2099362-1,1450,REDACTED PERSONAL DATA,REDACTED PERSONAL DATA
Tendring DC,http://statistics.data.gov.uk/id/local-authority-district/22UN,Life Opportunities,5480 - HRA - Repair & Maintenance,2069 - Lift/Stairlift Servicing,14/08/2012,2099449-1,1563.9,2101360 - Stannah Lift Services Limited,Life Servcie & Repair
Tendring DC,http://statistics.data.gov.uk/id/local-authority-district/22UN,Life Opportunities,5480 - HRA - Repair & Maintenance,2070 - Lift/Stairlift Repairs,14/08/2012,2099449-2,579.48,2101360 - Stannah Lift Services Limited,Life Servcie & Repair
Tendring DC,http://statistics.data.gov.uk/id/local-authority-district/22UN,Life Opportunities,5140 - Homelessness,4683 - Other Homelessness Expenses,21/08/2012,2099486-1,420,REDACTED PERSONAL DATA,REDACTED PERSONAL DATA
Tendring DC,http://statistics.data.gov.uk/id/local-authority-district/22UN,Life Opportunities,5240 - HRA - Managing Tenancies,5242 - Tenant Relations,28/08/2012,2099828-1,64,REDACTED PERSONAL DATA,REDACTED PERSONAL DATA
Tendring DC,http://statistics.data.gov.uk/id/local-authority-district/22UN,Life Opportunities,H920 - DFGs,C400 - Grant payments,07/08/2012,2099036-1,318.56,REDACTED PERSONAL DATA,REDACTED PERSONAL DATA
Tendring DC,http://statistics.data.gov.uk/id/local-authority-district/22UN,Life Opportunities,H920 - DFGs,C400 - Grant payments,07/08/2012,2099037-1,189.49,REDACTED PERSONAL DATA,REDACTED PERSONAL DATA
Tendring DC,http://statistics.data.gov.uk/id/local-authority-district/22UN,Life Opportunities,H920 - DFGs,C400 - Grant payments,28/08/2012,2099875-1,146.5,REDACTED PERSONAL DATA,REDACTED PERSONAL DATA
Tendring DC,http://statistics.data.gov.uk/id/local-authority-district/22UN,Life Opportunities,9900 - General Fund Balance Sheet,B382 - Rechargeable Works - Other,28/08/2012,2099874-1,7.5,2101314 - T V Licensing,TV Licence
Tendring DC,http://statistics.data.gov.uk/id/local-authority-district/22UN,Life Opportunities,8540 - Leisure Centre Clacton,5500 - Miscellaneous Expenses,28/08/2012,1049778-1,145,2105725 - Taylor Made Designs (UK) Ltd,
Tendring DC,http://statistics.data.gov.uk/id/local-authority-district/22UN,Life Opportunities,8510 - Dovercourt Swimming Pool & All Weather Facilities,4400 - Maintenance Under Service Agreements,28/08/2012,1049765-1,417.5,2101355 - Technical Surfaces Ltd,DOVERCOURT POOL
Tendring DC,http://statistics.data.gov.uk/id/local-authority-district/22UN,Life Opportunities,1240 - Housing Services Service Unit,1700 - Training - Courses,14/08/2012,2099192-1,1376,REDACTED COMMERCIAL CONFIDENTIALITY,REDACTED COMMERCIAL CONFIDENTIALITY
Tendring DC,http://statistics.data.gov.uk/id/local-authority-district/22UN,Life Opportunities,7620 - Air Show,8590 - Programme Sales,07/08/2012,1049566-1,730,2101377 - Tendring District Council,CLACTON AIRSHOW 2012- FLOATS
Tendring DC,http://statistics.data.gov.uk/id/local-authority-district/22UN,Life Opportunities,6160 - Princes Theatre,4040 - Equipment & Tools,21/08/2012,2099775-1,3.73,REDACTED PERSONAL DATA,REDACTED PERSONAL DATA
Tendring DC,http://statistics.data.gov.uk/id/local-authority-district/22UN,Life Opportunities,7620 - Air Show,5500 - Miscellaneous Expenses,21/08/2012,2099775-10,1.55,REDACTED PERSONAL DATA,REDACTED PERSONAL DATA
Tendring DC,http://statistics.data.gov.uk/id/local-authority-district/22UN,Life Opportunities,5240 - HRA - Managing Tenancies,5242 - Tenant Relations,21/08/2012,2099775-11,1.75,REDACTED PERSONAL DATA,REDACTED PERSONAL DATA
Tendring DC,http://statistics.data.gov.uk/id/local-authority-district/22UN,Life Opportunities,5240 - HRA - Managing Tenancies,5242 - Tenant Relations,21/08/2012,2099775-12,8.89,REDACTED PERSONAL DATA,REDACTED PERSONAL DATA
Tendring DC,http://statistics.data.gov.uk/id/local-authority-district/22UN,Life Opportunities,6160 - Princes Theatre,4040 - Equipment & Tools,21/08/2012,2099775-13,1.74,REDACTED PERSONAL DATA,REDACTED PERSONAL DATA
Tendring DC,http://statistics.data.gov.uk/id/local-authority-district/22UN,Life Opportunities,6160 - Princes Theatre,4040 - Equipment & Tools,21/08/2012,2099775-14,7.46,REDACTED PERSONAL DATA,REDACTED PERSONAL DATA
Tendring DC,http://statistics.data.gov.uk/id/local-authority-district/22UN,Life Opportunities,6160 - Princes Theatre,4040 - Equipment & Tools,21/08/2012,2099775-15,11.66,REDACTED PERSONAL DATA,REDACTED PERSONAL DATA
Tendring DC,http://statistics.data.gov.uk/id/local-authority-district/22UN,Life Opportunities,6160 - Princes Theatre,4040 - Equipment & Tools,21/08/2012,2099775-16,0.89,REDACTED PERSONAL DATA,REDACTED PERSONAL DATA
Tendring DC,http://statistics.data.gov.uk/id/local-authority-district/22UN,Life Opportunities,6160 - Princes Theatre,4040 - Equipment & Tools,21/08/2012,2099775-17,5.03,REDACTED PERSONAL DATA,REDACTED PERSONAL DATA
Tendring DC,http://statistics.data.gov.uk/id/local-authority-district/22UN,Life Opportunities,6160 - Princes Theatre,4040 - Equipment & Tools,21/08/2012,2099775-18,2.74,REDACTED PERSONAL DATA,REDACTED PERSONAL DATA
Tendring DC,http://statistics.data.gov.uk/id/local-authority-district/22UN,Life Opportunities,6160 - Princes Theatre,4040 - Equipment & Tools,21/08/2012,2099775-19,4.16,REDACTED PERSONAL DATA,REDACTED PERSONAL DATA
Tendring DC,http://statistics.data.gov.uk/id/local-authority-district/22UN,Life Opportunities,6160 - Princes Theatre,4040 - Equipment & Tools,21/08/2012,2099775-2,3.17,REDACTED PERSONAL DATA,REDACTED PERSONAL DATA
Tendring DC,http://statistics.data.gov.uk/id/local-authority-district/22UN,Life Opportunities,7620 - Air Show,4800 - Hospitality,21/08/2012,2099775-20,3.18,REDACTED PERSONAL DATA,REDACTED PERSONAL DATA
Tendring DC,http://statistics.data.gov.uk/id/local-authority-district/22UN,Life Opportunities,7620 - Air Show,4800 - Hospitality,21/08/2012,2099775-21,1.74,REDACTED PERSONAL DATA,REDACTED PERSONAL DATA
Tendring DC,http://statistics.data.gov.uk/id/local-authority-district/22UN,Life Opportunities,6160 - Princes Theatre,4040 - Equipment & Tools,21/08/2012,2099775-22,4.71,REDACTED PERSONAL DATA,REDACTED PERSONAL DATA
Tendring DC,http://statistics.data.gov.uk/id/local-authority-district/22UN,Life Opportunities,6160 - Princes Theatre,4040 - Equipment & Tools,21/08/2012,2099775-3,46.45,REDACTED PERSONAL DATA,REDACTED PERSONAL DATA
Tendring DC,http://statistics.data.gov.uk/id/local-authority-district/22UN,Life Opportunities,6160 - Princes Theatre,4040 - Equipment & Tools,21/08/2012,2099775-4,1.18,REDACTED PERSONAL DATA,REDACTED PERSONAL DATA
Tendring DC,http://statistics.data.gov.uk/id/local-authority-district/22UN,Life Opportunities,1050 - Leisure Service Unit,3302 - Car Allowances - Officers,21/08/2012,2099775-5,8.68,REDACTED PERSONAL DATA,REDACTED PERSONAL DATA
Tendring DC,http://statistics.data.gov.uk/id/local-authority-district/22UN,Life Opportunities,6160 - Princes Theatre,4080 - Materials & Consumables,21/08/2012,2099775-6,1.18,REDACTED PERSONAL DATA,REDACTED PERSONAL DATA
Tendring DC,http://statistics.data.gov.uk/id/local-authority-district/22UN,Life Opportunities,7520 - Tourism Publicity Marketing Promotion,5160 - Advertising,21/08/2012,2099775-7,2.08,REDACTED PERSONAL DATA,REDACTED PERSONAL DATA
Tendring DC,http://statistics.data.gov.uk/id/local-authority-district/22UN,Life Opportunities,6160 - Princes Theatre,4080 - Materials & Consumables,21/08/2012,2099775-8,2.31,REDACTED PERSONAL DATA,REDACTED PERSONAL DATA
Tendring DC,http://statistics.data.gov.uk/id/local-authority-district/22UN,Life Opportunities,6160 - Princes Theatre,4080 - Materials & Consumables,21/08/2012,2099775-9,3.19,REDACTED PERSONAL DATA,REDACTED PERSONAL DATA
Tendring DC,http://statistics.data.gov.uk/id/local-authority-district/22UN,Life Opportunities,8540 - Leisure Centre Clacton,2100 - Building Repairs,21/08/2012,2099776-1,15,2101357 - Tendring District Council,Petty Cash - Clacton Leisure Centre
Tendring DC,http://statistics.data.gov.uk/id/local-authority-district/22UN,Life Opportunities,8560 - Happy Valley Recreation Ground Pitch & Putt,4040 - Equipment & Tools,21/08/2012,2099776-10,3.3,2101357 - Tendring District Council,Petty Cash - Clacton Leisure Centre
Tendring DC,http://statistics.data.gov.uk/id/local-authority-district/22UN,Life Opportunities,8540 - Leisure Centre Clacton,2100 - Building Repairs,21/08/2012,2099776-11,6.63,2101357 - Tendring District Council,Petty Cash - Clacton Leisure Centre
Tendring DC,http://statistics.data.gov.uk/id/local-authority-district/22UN,Life Opportunities,8540 - Leisure Centre Clacton,4000 - Furniture,21/08/2012,2099776-12,30.88,2101357 - Tendring District Council,Petty Cash - Clacton Leisure Centre
Tendring DC,http://statistics.data.gov.uk/id/local-authority-district/22UN,Life Opportunities,8540 - Leisure Centre Clacton,5500 - Miscellaneous Expenses,21/08/2012,2099776-13,6.49,2101357 - Tendring District Council,Petty Cash - Clacton Leisure Centre
Tendring DC,http://statistics.data.gov.uk/id/local-authority-district/22UN,Life Opportunities,8530 - Brightlingsea Swimming Pool,4200 - Clothing & Uniforms,21/08/2012,2099776-14,33.35,2101357 - Tendring District Council,Petty Cash - Clacton Leisure Centre
Tendring DC,http://statistics.data.gov.uk/id/local-authority-district/22UN,Life Opportunities,8540 - Leisure Centre Clacton,2100 - Building Repairs,21/08/2012,2099776-15,9.99,2101357 - Tendring District Council,Petty Cash - Clacton Leisure Centre
Tendring DC,http://statistics.data.gov.uk/id/local-authority-district/22UN,Life Opportunities,8540 - Leisure Centre Clacton,5500 - Miscellaneous Expenses,21/08/2012,2099776-16,40,2101357 - Tendring District Council,Petty Cash - Clacton Leisure Centre
Tendring DC,http://statistics.data.gov.uk/id/local-authority-district/22UN,Life Opportunities,8540 - Leisure Centre Clacton,4597 - Hired Services - Payments to Contractors,21/08/2012,2099776-17,6.44,2101357 - Tendring District Council,Petty Cash - Clacton Leisure Centre
Tendring DC,http://statistics.data.gov.uk/id/local-authority-district/22UN,Life Opportunities,8540 - Leisure Centre Clacton,2100 - Building Repairs,21/08/2012,2099776-2,2.49,2101357 - Tendring District Council,Petty Cash - Clacton Leisure Centre
Tendring DC,http://statistics.data.gov.uk/id/local-authority-district/22UN,Life Opportunities,8540 - Leisure Centre Clacton,4000 - Furniture,21/08/2012,2099776-3,3.47,2101357 - Tendring District Council,Petty Cash - Clacton Leisure Centre
Tendring DC,http://statistics.data.gov.uk/id/local-authority-district/22UN,Life Opportunities,8530 - Brightlingsea Swimming Pool,4000 - Furniture,21/08/2012,2099776-4,16.58,2101357 - Tendring District Council,Petty Cash - Clacton Leisure Centre
Tendring DC,http://statistics.data.gov.uk/id/local-authority-district/22UN,Life Opportunities,8530 - Brightlingsea Swimming Pool,4000 - Furniture,21/08/2012,2099776-5,28.18,2101357 - Tendring District Council,Petty Cash - Clacton Leisure Centre
Tendring DC,http://statistics.data.gov.uk/id/local-authority-district/22UN,Life Opportunities,8530 - Brightlingsea Swimming Pool,4000 - Furniture,21/08/2012,2099776-6,26,2101357 - Tendring District Council,Petty Cash - Clacton Leisure Centre
Tendring DC,http://statistics.data.gov.uk/id/local-authority-district/22UN,Life Opportunities,8530 - Brightlingsea Swimming Pool,4000 - Furniture,21/08/2012,2099776-7,9.99,2101357 - Tendring District Council,Petty Cash - Clacton Leisure Centre
Tendring DC,http://statistics.data.gov.uk/id/local-authority-district/22UN,Life Opportunities,8540 - Leisure Centre Clacton,2100 - Building Repairs,21/08/2012,2099776-8,2.49,2101357 - Tendring District Council,Petty Cash - Clacton Leisure Centre
Tendring DC,http://statistics.data.gov.uk/id/local-authority-district/22UN,Life Opportunities,8540 - Leisure Centre Clacton,4000 - Furniture,21/08/2012,2099776-9,3.74,2101357 - Tendring District Council,Petty Cash - Clacton Leisure Centre
Tendring DC,http://statistics.data.gov.uk/id/local-authority-district/22UN,Life Opportunities,6160 - Princes Theatre,9255 - Leisure and Sports Over/under Banking,28/08/2012,2099873-1,19,2101377 - Tendring District Council,
Tendring DC,http://statistics.data.gov.uk/id/local-authority-district/22UN,Life Opportunities,5860 - Manningtree Sports Centre,4040 - Equipment & Tools,28/08/2012,2099881-1,16.75,2101357 - Tendring District Council,Petty Cash - Manningtree Sports Centre
Tendring DC,http://statistics.data.gov.uk/id/local-authority-district/22UN,Life Opportunities,5860 - Manningtree Sports Centre,4040 - Equipment & Tools,28/08/2012,2099881-2,12.85,2101357 - Tendring District Council,Petty Cash - Manningtree Sports Centre
Tendring DC,http://statistics.data.gov.uk/id/local-authority-district/22UN,Life Opportunities,5860 - Manningtree Sports Centre,4040 - Equipment & Tools,28/08/2012,2099881-3,3.5,2101357 - Tendring District Council,Petty Cash - Manningtree Sports Centre
Tendring DC,http://statistics.data.gov.uk/id/local-authority-district/22UN,Life Opportunities,6740 - Careline,4710 - Telephones - Charges,28/08/2012,2099882-1,9.15,2101357 - Tendring District Council,Petty Cash - Careline
Tendring DC,http://statistics.data.gov.uk/id/local-authority-district/22UN,Life Opportunities,6740 - Careline,5500 - Miscellaneous Expenses,28/08/2012,2099882-10,10.79,2101357 - Tendring District Council,Petty Cash - Careline
Tendring DC,http://statistics.data.gov.uk/id/local-authority-district/22UN,Life Opportunities,6740 - Careline,5500 - Miscellaneous Expenses,28/08/2012,2099882-11,20.83,2101357 - Tendring District Council,Petty Cash - Careline
Tendring DC,http://statistics.data.gov.uk/id/local-authority-district/22UN,Life Opportunities,6740 - Careline,5500 - Miscellaneous Expenses,28/08/2012,2099882-12,0.83,2101357 - Tendring District Council,Petty Cash - Careline
Tendring DC,http://statistics.data.gov.uk/id/local-authority-district/22UN,Life Opportunities,6740 - Careline,5500 - Miscellaneous Expenses,28/08/2012,2099882-13,12.48,2101357 - Tendring District Council,Petty Cash - Careline
Tendring DC,http://statistics.data.gov.uk/id/local-authority-district/22UN,Life Opportunities,6740 - Careline,5500 - Miscellaneous Expenses,28/08/2012,2099882-2,1.91,2101357 - Tendring District Council,Petty Cash - Careline
Tendring DC,http://statistics.data.gov.uk/id/local-authority-district/22UN,Life Opportunities,6740 - Careline,5500 - Miscellaneous Expenses,28/08/2012,2099882-3,3.25,2101357 - Tendring District Council,Petty Cash - Careline
Tendring DC,http://statistics.data.gov.uk/id/local-authority-district/22UN,Life Opportunities,6740 - Careline,1700 - Training - Courses,28/08/2012,2099882-4,40,2101357 - Tendring District Council,Petty Cash - Careline
Tendring DC,http://statistics.data.gov.uk/id/local-authority-district/22UN,Life Opportunities,6740 - Careline,3060 - Running Costs - Diesel,28/08/2012,2099882-5,9,2101357 - Tendring District Council,Petty Cash - Careline
Tendring DC,http://statistics.data.gov.uk/id/local-authority-district/22UN,Life Opportunities,6740 - Careline,3060 - Running Costs - Diesel,28/08/2012,2099882-6,6.4,2101357 - Tendring District Council,Petty Cash - Careline
Tendring DC,http://statistics.data.gov.uk/id/local-authority-district/22UN,Life Opportunities,6740 - Careline,3060 - Running Costs - Diesel,28/08/2012,2099882-7,7.2,2101357 - Tendring District Council,Petty Cash - Careline
Tendring DC,http://statistics.data.gov.uk/id/local-authority-district/22UN,Life Opportunities,6740 - Careline,5500 - Miscellaneous Expenses,28/08/2012,2099882-8,1.66,2101357 - Tendring District Council,Petty Cash - Careline
Tendring DC,http://statistics.data.gov.uk/id/local-authority-district/22UN,Life Opportunities,6740 - Careline,5500 - Miscellaneous Expenses,28/08/2012,2099882-9,0.35,2101357 - Tendring District Council,Petty Cash - Careline
Tendring DC,http://statistics.data.gov.uk/id/local-authority-district/22UN,Life Opportunities,5140 - Homelessness,4683 - Other Homelessness Expenses,14/08/2012,2099297-1,110,2101491 - The Letting Link,Deposit Guarantee
Tendring DC,http://statistics.data.gov.uk/id/local-authority-district/22UN,Life Opportunities,5140 - Homelessness,4683 - Other Homelessness Expenses,14/08/2012,2099298-1,228,REDACTED PERSONAL DATA,REDACTED PERSONAL DATA
Tendring DC,http://statistics.data.gov.uk/id/local-authority-district/22UN,Life Opportunities,5140 - Homelessness,4683 - Other Homelessness Expenses,07/08/2012,2099033-1,560,REDACTED PERSONAL DATA,REDACTED PERSONAL DATA
Tendring DC,http://statistics.data.gov.uk/id/local-authority-district/22UN,Life Opportunities,5140 - Homelessness,4680 - Bed & Breakfast Accommodation,21/08/2012,2099487-1,91.67,REDACTED COMMERCIAL CONFIDENTIALITY,REDACTED COMMERCIAL CONFIDENTIALITY
Tendring DC,http://statistics.data.gov.uk/id/local-authority-district/22UN,Life Opportunities,5860 - Manningtree Sports Centre,4400 - Maintenance Under Service Agreements,14/08/2012,1049680-1,67.21,2105048 - The Sunlight Service Group Ltd,ROLLER TOWELS RENTAL X 13 WEEKS
Tendring DC,http://statistics.data.gov.uk/id/local-authority-district/22UN,Life Opportunities,5820 - Harwich Sports Centre,4597 - Hired Services - Payments to Contractors,21/08/2012,2099460-1,33.93,2105048 - The Sunlight Service Group Ltd,Roller Towell
Tendring DC,http://statistics.data.gov.uk/id/local-authority-district/22UN,Life Opportunities,5480 - HRA - Repair & Maintenance,2016 - PVCu Window And Door Repairs,07/08/2012,1049546-1,25.5,REDACTED PERSONAL DATA,REDACTED PERSONAL DATA
Tendring DC,http://statistics.data.gov.uk/id/local-authority-district/22UN,Life Opportunities,5480 - HRA - Repair & Maintenance,2016 - PVCu Window And Door Repairs,07/08/2012,1049547-1,608.99,REDACTED PERSONAL DATA,REDACTED PERSONAL DATA
Tendring DC,http://statistics.data.gov.uk/id/local-authority-district/22UN,Life Opportunities,5480 - HRA - Repair & Maintenance,2016 - PVCu Window And Door Repairs,07/08/2012,1049548-1,30.26,REDACTED PERSONAL DATA,REDACTED PERSONAL DATA
Tendring DC,http://statistics.data.gov.uk/id/local-authority-district/22UN,Life Opportunities,5480 - HRA - Repair & Maintenance,2016 - PVCu Window And Door Repairs,07/08/2012,1049549-1,41.01,REDACTED PERSONAL DATA,REDACTED PERSONAL DATA
Tendring DC,http://statistics.data.gov.uk/id/local-authority-district/22UN,Life Opportunities,5480 - HRA - Repair & Maintenance,2016 - PVCu Window And Door Repairs,07/08/2012,1049550-1,134.89,REDACTED PERSONAL DATA,REDACTED PERSONAL DATA
Tendring DC,http://statistics.data.gov.uk/id/local-authority-district/22UN,Life Opportunities,5480 - HRA - Repair & Maintenance,2016 - PVCu Window And Door Repairs,07/08/2012,1049551-1,78.89,REDACTED PERSONAL DATA,REDACTED PERSONAL DATA
Tendring DC,http://statistics.data.gov.uk/id/local-authority-district/22UN,Life Opportunities,5480 - HRA - Repair & Maintenance,2016 - PVCu Window And Door Repairs,07/08/2012,1049552-1,33.41,REDACTED PERSONAL DATA,REDACTED PERSONAL DATA
Tendring DC,http://statistics.data.gov.uk/id/local-authority-district/22UN,Life Opportunities,5480 - HRA - Repair & Maintenance,2016 - PVCu Window And Door Repairs,07/08/2012,1049553-1,52.75,REDACTED PERSONAL DATA,REDACTED PERSONAL DATA
Tendring DC,http://statistics.data.gov.uk/id/local-authority-district/22UN,Life Opportunities,5480 - HRA - Repair & Maintenance,2016 - PVCu Window And Door Repairs,07/08/2012,1049554-1,108.79,REDACTED PERSONAL DATA,REDACTED PERSONAL DATA
Tendring DC,http://statistics.data.gov.uk/id/local-authority-district/22UN,Life Opportunities,5480 - HRA - Repair & Maintenance,2016 - PVCu Window And Door Repairs,07/08/2012,1049555-1,29.75,REDACTED PERSONAL DATA,REDACTED PERSONAL DATA
Tendring DC,http://statistics.data.gov.uk/id/local-authority-district/22UN,Life Opportunities,5480 - HRA - Repair & Maintenance,2016 - PVCu Window And Door Repairs,07/08/2012,1049556-1,25,REDACTED PERSONAL DATA,REDACTED PERSONAL DATA
Tendring DC,http://statistics.data.gov.uk/id/local-authority-district/22UN,Life Opportunities,5480 - HRA - Repair & Maintenance,2016 - PVCu Window And Door Repairs,07/08/2012,1049557-1,28.5,REDACTED PERSONAL DATA,REDACTED PERSONAL DATA
Tendring DC,http://statistics.data.gov.uk/id/local-authority-district/22UN,Life Opportunities,5480 - HRA - Repair & Maintenance,2016 - PVCu Window And Door Repairs,21/08/2012,1049761-1,34.51,REDACTED PERSONAL DATA,REDACTED PERSONAL DATA
Tendring DC,http://statistics.data.gov.uk/id/local-authority-district/22UN,Life Opportunities,5480 - HRA - Repair & Maintenance,2016 - PVCu Window And Door Repairs,28/08/2012,1049787-1,43.47,REDACTED PERSONAL DATA,REDACTED PERSONAL DATA
Tendring DC,http://statistics.data.gov.uk/id/local-authority-district/22UN,Life Opportunities,5480 - HRA - Repair & Maintenance,2016 - PVCu Window And Door Repairs,28/08/2012,1049788-1,29.75,REDACTED PERSONAL DATA,REDACTED PERSONAL DATA
Tendring DC,http://statistics.data.gov.uk/id/local-authority-district/22UN,Life Opportunities,5480 - HRA - Repair & Maintenance,2016 - PVCu Window And Door Repairs,28/08/2012,1049789-1,28.5,REDACTED PERSONAL DATA,REDACTED PERSONAL DATA
Tendring DC,http://statistics.data.gov.uk/id/local-authority-district/22UN,Life Opportunities,5480 - HRA - Repair & Maintenance,2016 - PVCu Window And Door Repairs,28/08/2012,1049790-1,74.64,REDACTED PERSONAL DATA,REDACTED PERSONAL DATA
Tendring DC,http://statistics.data.gov.uk/id/local-authority-district/22UN,Life Opportunities,5480 - HRA - Repair & Maintenance,2016 - PVCu Window And Door Repairs,28/08/2012,1049791-1,25.5,REDACTED PERSONAL DATA,REDACTED PERSONAL DATA
Tendring DC,http://statistics.data.gov.uk/id/local-authority-district/22UN,Life Opportunities,5480 - HRA - Repair & Maintenance,2016 - PVCu Window And Door Repairs,28/08/2012,1049792-1,132.74,REDACTED PERSONAL DATA,REDACTED PERSONAL DATA
Tendring DC,http://statistics.data.gov.uk/id/local-authority-district/22UN,Life Opportunities,5480 - HRA - Repair & Maintenance,2016 - PVCu Window And Door Repairs,28/08/2012,1049793-1,34.51,REDACTED PERSONAL DATA,REDACTED PERSONAL DATA
Tendring DC,http://statistics.data.gov.uk/id/local-authority-district/22UN,Life Opportunities,5480 - HRA - Repair & Maintenance,2016 - PVCu Window And Door Repairs,28/08/2012,1049794-1,29.75,REDACTED PERSONAL DATA,REDACTED PERSONAL DATA
Tendring DC,http://statistics.data.gov.uk/id/local-authority-district/22UN,Life Opportunities,5480 - HRA - Repair & Maintenance,2016 - PVCu Window And Door Repairs,28/08/2012,1049795-1,25,REDACTED PERSONAL DATA,REDACTED PERSONAL DATA
Tendring DC,http://statistics.data.gov.uk/id/local-authority-district/22UN,Life Opportunities,5480 - HRA - Repair & Maintenance,2016 - PVCu Window And Door Repairs,28/08/2012,1049796-1,106.87,REDACTED PERSONAL DATA,REDACTED PERSONAL DATA
Tendring DC,http://statistics.data.gov.uk/id/local-authority-district/22UN,Life Opportunities,5480 - HRA - Repair & Maintenance,2016 - PVCu Window And Door Repairs,28/08/2012,1049797-1,38.48,REDACTED PERSONAL DATA,REDACTED PERSONAL DATA
Tendring DC,http://statistics.data.gov.uk/id/local-authority-district/22UN,Life Opportunities,5480 - HRA - Repair & Maintenance,2016 - PVCu Window And Door Repairs,28/08/2012,1049798-1,25.5,REDACTED PERSONAL DATA,REDACTED PERSONAL DATA
Tendring DC,http://statistics.data.gov.uk/id/local-authority-district/22UN,Life Opportunities,5480 - HRA - Repair & Maintenance,2016 - PVCu Window And Door Repairs,28/08/2012,1049799-1,69.57,REDACTED PERSONAL DATA,REDACTED PERSONAL DATA
Tendring DC,http://statistics.data.gov.uk/id/local-authority-district/22UN,Life Opportunities,5480 - HRA - Repair & Maintenance,2016 - PVCu Window And Door Repairs,28/08/2012,1049800-1,50.05,REDACTED PERSONAL DATA,REDACTED PERSONAL DATA
Tendring DC,http://statistics.data.gov.uk/id/local-authority-district/22UN,Life Opportunities,5480 - HRA - Repair & Maintenance,2016 - PVCu Window And Door Repairs,28/08/2012,1049801-1,25,REDACTED PERSONAL DATA,REDACTED PERSONAL DATA
Tendring DC,http://statistics.data.gov.uk/id/local-authority-district/22UN,Life Opportunities,5480 - HRA - Repair & Maintenance,2016 - PVCu Window And Door Repairs,28/08/2012,1049802-1,25,REDACTED PERSONAL DATA,REDACTED PERSONAL DATA
Tendring DC,http://statistics.data.gov.uk/id/local-authority-district/22UN,Life Opportunities,5480 - HRA - Repair & Maintenance,2016 - PVCu Window And Door Repairs,28/08/2012,1049803-1,28.31,REDACTED PERSONAL DATA,REDACTED PERSONAL DATA
Tendring DC,http://statistics.data.gov.uk/id/local-authority-district/22UN,Life Opportunities,5480 - HRA - Repair & Maintenance,2016 - PVCu Window And Door Repairs,28/08/2012,1049804-1,25,REDACTED PERSONAL DATA,REDACTED PERSONAL DATA
Tendring DC,http://statistics.data.gov.uk/id/local-authority-district/22UN,Life Opportunities,5480 - HRA - Repair & Maintenance,2016 - PVCu Window And Door Repairs,14/08/2012,2099213-1,114.51,REDACTED PERSONAL DATA,REDACTED PERSONAL DATA
Tendring DC,http://statistics.data.gov.uk/id/local-authority-district/22UN,Life Opportunities,5480 - HRA - Repair & Maintenance,2016 - PVCu Window And Door Repairs,14/08/2012,2099214-1,29.3,REDACTED PERSONAL DATA,REDACTED PERSONAL DATA
Tendring DC,http://statistics.data.gov.uk/id/local-authority-district/22UN,Life Opportunities,5480 - HRA - Repair & Maintenance,2016 - PVCu Window And Door Repairs,14/08/2012,2099215-1,25,REDACTED PERSONAL DATA,REDACTED PERSONAL DATA
Tendring DC,http://statistics.data.gov.uk/id/local-authority-district/22UN,Life Opportunities,5480 - HRA - Repair & Maintenance,2016 - PVCu Window And Door Repairs,14/08/2012,2099216-1,316.44,REDACTED PERSONAL DATA,REDACTED PERSONAL DATA
Tendring DC,http://statistics.data.gov.uk/id/local-authority-district/22UN,Life Opportunities,5480 - HRA - Repair & Maintenance,2016 - PVCu Window And Door Repairs,14/08/2012,2099217-1,25.5,REDACTED PERSONAL DATA,REDACTED PERSONAL DATA
Tendring DC,http://statistics.data.gov.uk/id/local-authority-district/22UN,Life Opportunities,5480 - HRA - Repair & Maintenance,2016 - PVCu Window And Door Repairs,14/08/2012,2099218-1,78.44,REDACTED PERSONAL DATA,REDACTED PERSONAL DATA
Tendring DC,http://statistics.data.gov.uk/id/local-authority-district/22UN,Life Opportunities,5480 - HRA - Repair & Maintenance,2016 - PVCu Window And Door Repairs,14/08/2012,2099219-1,31.24,REDACTED PERSONAL DATA,REDACTED PERSONAL DATA
Tendring DC,http://statistics.data.gov.uk/id/local-authority-district/22UN,Life Opportunities,5480 - HRA - Repair & Maintenance,2016 - PVCu Window And Door Repairs,14/08/2012,2099220-1,111.87,REDACTED PERSONAL DATA,REDACTED PERSONAL DATA
Tendring DC,http://statistics.data.gov.uk/id/local-authority-district/22UN,Life Opportunities,5480 - HRA - Repair & Maintenance,2016 - PVCu Window And Door Repairs,14/08/2012,2099221-1,25,REDACTED PERSONAL DATA,REDACTED PERSONAL DATA
Tendring DC,http://statistics.data.gov.uk/id/local-authority-district/22UN,Life Opportunities,5480 - HRA - Repair & Maintenance,2016 - PVCu Window And Door Repairs,14/08/2012,2099222-1,25,REDACTED PERSONAL DATA,REDACTED PERSONAL DATA
Tendring DC,http://statistics.data.gov.uk/id/local-authority-district/22UN,Life Opportunities,5480 - HRA - Repair & Maintenance,2016 - PVCu Window And Door Repairs,14/08/2012,2099223-1,25,REDACTED PERSONAL DATA,REDACTED PERSONAL DATA
Tendring DC,http://statistics.data.gov.uk/id/local-authority-district/22UN,Life Opportunities,5480 - HRA - Repair & Maintenance,2016 - PVCu Window And Door Repairs,14/08/2012,2099224-1,87.1,REDACTED PERSONAL DATA,REDACTED PERSONAL DATA
Tendring DC,http://statistics.data.gov.uk/id/local-authority-district/22UN,Life Opportunities,5480 - HRA - Repair & Maintenance,2016 - PVCu Window And Door Repairs,14/08/2012,2099225-1,34.23,REDACTED PERSONAL DATA,REDACTED PERSONAL DATA
Tendring DC,http://statistics.data.gov.uk/id/local-authority-district/22UN,Life Opportunities,5480 - HRA - Repair & Maintenance,2016 - PVCu Window And Door Repairs,14/08/2012,2099226-1,25,REDACTED PERSONAL DATA,REDACTED PERSONAL DATA
Tendring DC,http://statistics.data.gov.uk/id/local-authority-district/22UN,Life Opportunities,5480 - HRA - Repair & Maintenance,2016 - PVCu Window And Door Repairs,14/08/2012,2099227-1,28.5,REDACTED PERSONAL DATA,REDACTED PERSONAL DATA
Tendring DC,http://statistics.data.gov.uk/id/local-authority-district/22UN,Life Opportunities,5480 - HRA - Repair & Maintenance,2016 - PVCu Window And Door Repairs,14/08/2012,2099228-1,10.63,REDACTED PERSONAL DATA,REDACTED PERSONAL DATA
Tendring DC,http://statistics.data.gov.uk/id/local-authority-district/22UN,Life Opportunities,5480 - HRA - Repair & Maintenance,2016 - PVCu Window And Door Repairs,14/08/2012,2099229-1,10.63,REDACTED PERSONAL DATA,REDACTED PERSONAL DATA
Tendring DC,http://statistics.data.gov.uk/id/local-authority-district/22UN,Life Opportunities,5480 - HRA - Repair & Maintenance,2016 - PVCu Window And Door Repairs,14/08/2012,2099230-1,10.63,REDACTED PERSONAL DATA,REDACTED PERSONAL DATA
Tendring DC,http://statistics.data.gov.uk/id/local-authority-district/22UN,Life Opportunities,5480 - HRA - Repair & Maintenance,2016 - PVCu Window And Door Repairs,14/08/2012,2099231-1,65.26,REDACTED PERSONAL DATA,REDACTED PERSONAL DATA
Tendring DC,http://statistics.data.gov.uk/id/local-authority-district/22UN,Life Opportunities,5480 - HRA - Repair & Maintenance,2016 - PVCu Window And Door Repairs,14/08/2012,2099232-1,25.5,REDACTED PERSONAL DATA,REDACTED PERSONAL DATA
Tendring DC,http://statistics.data.gov.uk/id/local-authority-district/22UN,Life Opportunities,5480 - HRA - Repair & Maintenance,2016 - PVCu Window And Door Repairs,14/08/2012,2099314-1,51.79,REDACTED PERSONAL DATA,REDACTED PERSONAL DATA
Tendring DC,http://statistics.data.gov.uk/id/local-authority-district/22UN,Life Opportunities,5480 - HRA - Repair & Maintenance,2016 - PVCu Window And Door Repairs,14/08/2012,2099315-1,180.48,REDACTED PERSONAL DATA,REDACTED PERSONAL DATA
Tendring DC,http://statistics.data.gov.uk/id/local-authority-district/22UN,Life Opportunities,5480 - HRA - Repair & Maintenance,2016 - PVCu Window And Door Repairs,14/08/2012,2099316-1,28.5,REDACTED PERSONAL DATA,REDACTED PERSONAL DATA
Tendring DC,http://statistics.data.gov.uk/id/local-authority-district/22UN,Life Opportunities,5480 - HRA - Repair & Maintenance,2016 - PVCu Window And Door Repairs,14/08/2012,2099317-1,186.99,REDACTED PERSONAL DATA,REDACTED PERSONAL DATA
Tendring DC,http://statistics.data.gov.uk/id/local-authority-district/22UN,Life Opportunities,5480 - HRA - Repair & Maintenance,2016 - PVCu Window And Door Repairs,14/08/2012,2099318-1,54.3,REDACTED PERSONAL DATA,REDACTED PERSONAL DATA
Tendring DC,http://statistics.data.gov.uk/id/local-authority-district/22UN,Life Opportunities,5480 - HRA - Repair & Maintenance,2016 - PVCu Window And Door Repairs,14/08/2012,2099319-1,34.23,REDACTED PERSONAL DATA,REDACTED PERSONAL DATA
Tendring DC,http://statistics.data.gov.uk/id/local-authority-district/22UN,Life Opportunities,5480 - HRA - Repair & Maintenance,2016 - PVCu Window And Door Repairs,14/08/2012,2099320-1,113.89,REDACTED PERSONAL DATA,REDACTED PERSONAL DATA
Tendring DC,http://statistics.data.gov.uk/id/local-authority-district/22UN,Life Opportunities,5480 - HRA - Repair & Maintenance,2016 - PVCu Window And Door Repairs,14/08/2012,2099321-1,10.63,REDACTED PERSONAL DATA,REDACTED PERSONAL DATA
Tendring DC,http://statistics.data.gov.uk/id/local-authority-district/22UN,Life Opportunities,5480 - HRA - Repair & Maintenance,2016 - PVCu Window And Door Repairs,14/08/2012,2099322-1,25,REDACTED PERSONAL DATA,REDACTED PERSONAL DATA
Tendring DC,http://statistics.data.gov.uk/id/local-authority-district/22UN,Life Opportunities,5480 - HRA - Repair & Maintenance,2016 - PVCu Window And Door Repairs,14/08/2012,2099323-1,28.5,REDACTED PERSONAL DATA,REDACTED PERSONAL DATA
Tendring DC,http://statistics.data.gov.uk/id/local-authority-district/22UN,Life Opportunities,5480 - HRA - Repair & Maintenance,2016 - PVCu Window And Door Repairs,14/08/2012,2099324-1,25,REDACTED PERSONAL DATA,REDACTED PERSONAL DATA
Tendring DC,http://statistics.data.gov.uk/id/local-authority-district/22UN,Life Opportunities,5480 - HRA - Repair & Maintenance,2016 - PVCu Window And Door Repairs,14/08/2012,2099325-1,28.5,REDACTED PERSONAL DATA,REDACTED PERSONAL DATA
Tendring DC,http://statistics.data.gov.uk/id/local-authority-district/22UN,Life Opportunities,5480 - HRA - Repair & Maintenance,2016 - PVCu Window And Door Repairs,14/08/2012,2099326-1,38.48,REDACTED PERSONAL DATA,REDACTED PERSONAL DATA
Tendring DC,http://statistics.data.gov.uk/id/local-authority-district/22UN,Life Opportunities,5480 - HRA - Repair & Maintenance,2016 - PVCu Window And Door Repairs,14/08/2012,2099327-1,120.27,REDACTED PERSONAL DATA,REDACTED PERSONAL DATA
Tendring DC,http://statistics.data.gov.uk/id/local-authority-district/22UN,Life Opportunities,5480 - HRA - Repair & Maintenance,2016 - PVCu Window And Door Repairs,14/08/2012,2099328-1,10.63,REDACTED PERSONAL DATA,REDACTED PERSONAL DATA
Tendring DC,http://statistics.data.gov.uk/id/local-authority-district/22UN,Life Opportunities,5480 - HRA - Repair & Maintenance,2016 - PVCu Window And Door Repairs,14/08/2012,2099329-1,61.87,REDACTED PERSONAL DATA,REDACTED PERSONAL DATA
Tendring DC,http://statistics.data.gov.uk/id/local-authority-district/22UN,Life Opportunities,5480 - HRA - Repair & Maintenance,2016 - PVCu Window And Door Repairs,14/08/2012,2099330-1,43.47,REDACTED PERSONAL DATA,REDACTED PERSONAL DATA
Tendring DC,http://statistics.data.gov.uk/id/local-authority-district/22UN,Life Opportunities,5480 - HRA - Repair & Maintenance,2016 - PVCu Window And Door Repairs,14/08/2012,2099331-1,93.75,REDACTED PERSONAL DATA,REDACTED PERSONAL DATA
Tendring DC,http://statistics.data.gov.uk/id/local-authority-district/22UN,Life Opportunities,5480 - HRA - Repair & Maintenance,2016 - PVCu Window And Door Repairs,14/08/2012,2099332-1,28.43,REDACTED PERSONAL DATA,REDACTED PERSONAL DATA
Tendring DC,http://statistics.data.gov.uk/id/local-authority-district/22UN,Life Opportunities,5480 - HRA - Repair & Maintenance,2016 - PVCu Window And Door Repairs,14/08/2012,2099333-1,32.02,REDACTED PERSONAL DATA,REDACTED PERSONAL DATA
Tendring DC,http://statistics.data.gov.uk/id/local-authority-district/22UN,Life Opportunities,5140 - Homelessness,4689 - Special Homelessness Projects Expenses,14/08/2012,2099404-1,25.5,REDACTED COMMERCIAL CONFIDENTIALITY,REDACTED COMMERCIAL CONFIDENTIALITY
Tendring DC,http://statistics.data.gov.uk/id/local-authority-district/22UN,Life Opportunities,5480 - HRA - Repair & Maintenance,2016 - PVCu Window And Door Repairs,14/08/2012,2099405-1,55.27,REDACTED PERSONAL DATA,REDACTED PERSONAL DATA
Tendring DC,http://statistics.data.gov.uk/id/local-authority-district/22UN,Life Opportunities,5480 - HRA - Repair & Maintenance,2016 - PVCu Window And Door Repairs,14/08/2012,2099406-1,43.47,REDACTED PERSONAL DATA,REDACTED PERSONAL DATA
Tendring DC,http://statistics.data.gov.uk/id/local-authority-district/22UN,Life Opportunities,5480 - HRA - Repair & Maintenance,2016 - PVCu Window And Door Repairs,14/08/2012,2099407-1,31.24,REDACTED PERSONAL DATA,REDACTED PERSONAL DATA
Tendring DC,http://statistics.data.gov.uk/id/local-authority-district/22UN,Life Opportunities,5480 - HRA - Repair & Maintenance,2016 - PVCu Window And Door Repairs,14/08/2012,2099408-1,1088.92,REDACTED PERSONAL DATA,REDACTED PERSONAL DATA
Tendring DC,http://statistics.data.gov.uk/id/local-authority-district/22UN,Life Opportunities,5480 - HRA - Repair & Maintenance,2019 - Repair & Maintenance - Keys,14/08/2012,2099409-1,289.71,REDACTED PERSONAL DATA,REDACTED PERSONAL DATA
Tendring DC,http://statistics.data.gov.uk/id/local-authority-district/22UN,Life Opportunities,5480 - HRA - Repair & Maintenance,2016 - PVCu Window And Door Repairs,14/08/2012,2099410-1,44.02,REDACTED PERSONAL DATA,REDACTED PERSONAL DATA
Tendring DC,http://statistics.data.gov.uk/id/local-authority-district/22UN,Life Opportunities,5480 - HRA - Repair & Maintenance,2016 - PVCu Window And Door Repairs,14/08/2012,2099411-1,30.26,REDACTED PERSONAL DATA,REDACTED PERSONAL DATA
Tendring DC,http://statistics.data.gov.uk/id/local-authority-district/22UN,Life Opportunities,5480 - HRA - Repair & Maintenance,2016 - PVCu Window And Door Repairs,14/08/2012,2099412-1,38.48,REDACTED PERSONAL DATA,REDACTED PERSONAL DATA
Tendring DC,http://statistics.data.gov.uk/id/local-authority-district/22UN,Life Opportunities,5480 - HRA - Repair & Maintenance,2016 - PVCu Window And Door Repairs,14/08/2012,2099413-1,28.5,REDACTED PERSONAL DATA,REDACTED PERSONAL DATA
Tendring DC,http://statistics.data.gov.uk/id/local-authority-district/22UN,Life Opportunities,5480 - HRA - Repair & Maintenance,2016 - PVCu Window And Door Repairs,14/08/2012,2099414-1,58.76,REDACTED PERSONAL DATA,REDACTED PERSONAL DATA
Tendring DC,http://statistics.data.gov.uk/id/local-authority-district/22UN,Life Opportunities,5480 - HRA - Repair & Maintenance,2016 - PVCu Window And Door Repairs,14/08/2012,2099415-1,60.5,REDACTED PERSONAL DATA,REDACTED PERSONAL DATA
Tendring DC,http://statistics.data.gov.uk/id/local-authority-district/22UN,Life Opportunities,5480 - HRA - Repair & Maintenance,2016 - PVCu Window And Door Repairs,14/08/2012,2099416-1,34.51,REDACTED PERSONAL DATA,REDACTED PERSONAL DATA
Tendring DC,http://statistics.data.gov.uk/id/local-authority-district/22UN,Life Opportunities,5480 - HRA - Repair & Maintenance,2016 - PVCu Window And Door Repairs,14/08/2012,2099417-1,34.51,REDACTED PERSONAL DATA,REDACTED PERSONAL DATA
Tendring DC,http://statistics.data.gov.uk/id/local-authority-district/22UN,Life Opportunities,5480 - HRA - Repair & Maintenance,2016 - PVCu Window And Door Repairs,14/08/2012,2099418-1,178.43,REDACTED PERSONAL DATA,REDACTED PERSONAL DATA
Tendring DC,http://statistics.data.gov.uk/id/local-authority-district/22UN,Life Opportunities,5480 - HRA - Repair & Maintenance,2016 - PVCu Window And Door Repairs,14/08/2012,2099419-1,133.07,REDACTED PERSONAL DATA,REDACTED PERSONAL DATA
Tendring DC,http://statistics.data.gov.uk/id/local-authority-district/22UN,Life Opportunities,5480 - HRA - Repair & Maintenance,2016 - PVCu Window And Door Repairs,14/08/2012,2099420-1,25.5,REDACTED PERSONAL DATA,REDACTED PERSONAL DATA
Tendring DC,http://statistics.data.gov.uk/id/local-authority-district/22UN,Life Opportunities,5480 - HRA - Repair & Maintenance,2016 - PVCu Window And Door Repairs,14/08/2012,2099421-1,10.63,REDACTED PERSONAL DATA,REDACTED PERSONAL DATA
Tendring DC,http://statistics.data.gov.uk/id/local-authority-district/22UN,Life Opportunities,5480 - HRA - Repair & Maintenance,2016 - PVCu Window And Door Repairs,21/08/2012,2099611-1,52.75,REDACTED PERSONAL DATA,REDACTED PERSONAL DATA
Tendring DC,http://statistics.data.gov.uk/id/local-authority-district/22UN,Life Opportunities,5480 - HRA - Repair & Maintenance,2016 - PVCu Window And Door Repairs,21/08/2012,2099612-1,25,REDACTED PERSONAL DATA,REDACTED PERSONAL DATA
Tendring DC,http://statistics.data.gov.uk/id/local-authority-district/22UN,Life Opportunities,5480 - HRA - Repair & Maintenance,2016 - PVCu Window And Door Repairs,21/08/2012,2099613-1,69.23,REDACTED PERSONAL DATA,REDACTED PERSONAL DATA
Tendring DC,http://statistics.data.gov.uk/id/local-authority-district/22UN,Life Opportunities,5480 - HRA - Repair & Maintenance,2016 - PVCu Window And Door Repairs,21/08/2012,2099614-1,28.5,REDACTED PERSONAL DATA,REDACTED PERSONAL DATA
Tendring DC,http://statistics.data.gov.uk/id/local-authority-district/22UN,Life Opportunities,5480 - HRA - Repair & Maintenance,2016 - PVCu Window And Door Repairs,21/08/2012,2099615-1,74.25,REDACTED PERSONAL DATA,REDACTED PERSONAL DATA
Tendring DC,http://statistics.data.gov.uk/id/local-authority-district/22UN,Life Opportunities,5480 - HRA - Repair & Maintenance,2016 - PVCu Window And Door Repairs,21/08/2012,2099616-1,148.98,REDACTED PERSONAL DATA,REDACTED PERSONAL DATA
Tendring DC,http://statistics.data.gov.uk/id/local-authority-district/22UN,Life Opportunities,5480 - HRA - Repair & Maintenance,2016 - PVCu Window And Door Repairs,21/08/2012,2099617-1,28.5,REDACTED PERSONAL DATA,REDACTED PERSONAL DATA
Tendring DC,http://statistics.data.gov.uk/id/local-authority-district/22UN,Life Opportunities,5480 - HRA - Repair & Maintenance,2016 - PVCu Window And Door Repairs,21/08/2012,2099618-1,25,REDACTED PERSONAL DATA,REDACTED PERSONAL DATA
Tendring DC,http://statistics.data.gov.uk/id/local-authority-district/22UN,Life Opportunities,5480 - HRA - Repair & Maintenance,2016 - PVCu Window And Door Repairs,21/08/2012,2099619-1,25,REDACTED PERSONAL DATA,REDACTED PERSONAL DATA
Tendring DC,http://statistics.data.gov.uk/id/local-authority-district/22UN,Life Opportunities,5480 - HRA - Repair & Maintenance,2016 - PVCu Window And Door Repairs,03/08/2012,2099620-1,-34.51,REDACTED PERSONAL DATA,REDACTED PERSONAL DATA
Tendring DC,http://statistics.data.gov.uk/id/local-authority-district/22UN,Life Opportunities,5480 - HRA - Repair & Maintenance,2016 - PVCu Window And Door Repairs,21/08/2012,2099621-1,43.47,REDACTED PERSONAL DATA,REDACTED PERSONAL DATA
Tendring DC,http://statistics.data.gov.uk/id/local-authority-district/22UN,Life Opportunities,5480 - HRA - Repair & Maintenance,2016 - PVCu Window And Door Repairs,21/08/2012,2099622-1,38.48,REDACTED PERSONAL DATA,REDACTED PERSONAL DATA
Tendring DC,http://statistics.data.gov.uk/id/local-authority-district/22UN,Life Opportunities,5480 - HRA - Repair & Maintenance,2016 - PVCu Window And Door Repairs,21/08/2012,2099623-1,30.26,REDACTED PERSONAL DATA,REDACTED PERSONAL DATA
Tendring DC,http://statistics.data.gov.uk/id/local-authority-district/22UN,Life Opportunities,5480 - HRA - Repair & Maintenance,2016 - PVCu Window And Door Repairs,21/08/2012,2099624-1,10.63,REDACTED PERSONAL DATA,REDACTED PERSONAL DATA
Tendring DC,http://statistics.data.gov.uk/id/local-authority-district/22UN,Life Opportunities,5480 - HRA - Repair & Maintenance,2016 - PVCu Window And Door Repairs,21/08/2012,2099625-1,85.27,REDACTED PERSONAL DATA,REDACTED PERSONAL DATA
Tendring DC,http://statistics.data.gov.uk/id/local-authority-district/22UN,Life Opportunities,5480 - HRA - Repair & Maintenance,2016 - PVCu Window And Door Repairs,21/08/2012,2099626-1,38.48,REDACTED PERSONAL DATA,REDACTED PERSONAL DATA
Tendring DC,http://statistics.data.gov.uk/id/local-authority-district/22UN,Life Opportunities,5480 - HRA - Repair & Maintenance,2016 - PVCu Window And Door Repairs,21/08/2012,2099627-1,25.5,REDACTED PERSONAL DATA,REDACTED PERSONAL DATA
Tendring DC,http://statistics.data.gov.uk/id/local-authority-district/22UN,Life Opportunities,5480 - HRA - Repair & Maintenance,2016 - PVCu Window And Door Repairs,21/08/2012,2099628-1,69.57,REDACTED PERSONAL DATA,REDACTED PERSONAL DATA
Tendring DC,http://statistics.data.gov.uk/id/local-authority-district/22UN,Life Opportunities,5480 - HRA - Repair & Maintenance,2016 - PVCu Window And Door Repairs,21/08/2012,2099629-1,25,REDACTED PERSONAL DATA,REDACTED PERSONAL DATA
Tendring DC,http://statistics.data.gov.uk/id/local-authority-district/22UN,Life Opportunities,5480 - HRA - Repair & Maintenance,2016 - PVCu Window And Door Repairs,21/08/2012,2099663-1,25,REDACTED PERSONAL DATA,REDACTED PERSONAL DATA
Tendring DC,http://statistics.data.gov.uk/id/local-authority-district/22UN,Life Opportunities,5480 - HRA - Repair & Maintenance,2016 - PVCu Window And Door Repairs,21/08/2012,2099664-1,126.79,REDACTED PERSONAL DATA,REDACTED PERSONAL DATA
Tendring DC,http://statistics.data.gov.uk/id/local-authority-district/22UN,Life Opportunities,5480 - HRA - Repair & Maintenance,2016 - PVCu Window And Door Repairs,21/08/2012,2099665-1,28.43,REDACTED PERSONAL DATA,REDACTED PERSONAL DATA
